Workbook

Sheet INGRESO DE DATOS
B13: Nombre del Asegurado Titular | D13: NOMBRE COMPLETO
B15: Número de adultos en la póliza | D15: 2 | F15: Número de niños en la póliza | J15: 3
B17: Edad del Asegurado Titular | D17: 65 | F17: Edad del/la cónyuge | J17: 71
G20: Variante con coaseguro fuera del país de residencia | H20: FALSE | J20: FALSE
B25: 2 | D25: 2

Sheet Global Ultimate
A14: GLOBAL ULTIMATE HEALTH PLAN | E14: Nombre del Asegurado Titular | F14: =+'INGRESO DE DATOS'!$D$13 -> NOMBRE COMPLETO
E16: Número de adultos en la póliza | F16: =+'INGRESO DE DATOS'!$D$15 -> 2 | G16: Edad del Asegurado Titular | H16: =+'INGRESO DE DATOS'!$D$17 -> 65
E18: Número de niños en la póliza | F18: =+'INGRESO DE DATOS'!$J$15 -> 3 | G18: Edad del/la conyuge | H18: =+'INGRESO DE DATOS'!$J$17 -> 71
E20: Número de niños menores de 16 años | F20: =+'INGRESO DE DATOS'!$B$25 -> 2 | G20: Fecha de la cotización: | H20: =NOW() -> 2021-11-08T17:34:27.120
H21: FALSE
E22: Deducibles | G22: PLAN 1 | H22: PLAN 2
E23: En el país de residencia | G23: 0 | H23: 1000
E24: Fuera del país de residencia | G24: 0 | H24: 1000
E26: Tarifas anuales
E27: Prima para Asegurado Titular | G27: =(VLOOKUP($H$16,Tablas!$A$905:$G$971,3,TRUE)) -> 64879 | H27: =(VLOOKUP($H$16,Tablas!$A$905:$G$971,4,TRUE)) -> 41859
E28: Prima para conyuge | G28: =(IF($F$16=1,0,(VLOOKUP($H$18,Tablas!$A$905:$G$971,3,TRUE)))) -> 107089 | H28: =(IF($F$16=1,0,(VLOOKUP($H$18,Tablas!$A$905:$G$971,4,TRUE)))) -> 69089
E29: Prima para hijo (s) | G29: =(IF($F$16=1, (IF($F$18=0, 0, (IF($F$20>$F$18, (VLOOKUP($F$18,Tablas!$A$972:$G$974,3,TRUE)), (IF($F$18>4,(IF($F$20=0, (VLOOKUP(3,Tablas!$A$972:$G$974,3,TRUE)), (IF($F$20=1, (VLOOKUP(3,Tablas!$A$972:$G$974,3,TRUE)), (IF($F$20=2, (VLOOKUP(3,Tablas!$A$972:$G$974,3,TRUE)), (VLOOKUP(3,Tablas!$A$972:$G$974,3,TRUE)))))))), (IF($F$18=4,(IF(4-$F$20=0,(VLOOKUP(2,Tablas!$A$972:$G$974,3,TRUE)), (IF(4-$F$20=1,(VLOOKUP(2,Tablas!$A$972:$G$974,3,TRUE)), (IF(4-$F$20=2, (VLOOKUP(2,Tablas!$A$972:$G$974,3,TRUE)), (VLOOKUP(3,Tablas!$A$972:$G$974,3,TRUE)))))))), (IF($F$18=3,(IF(3-$F$20=0,(VLOOKUP(1,Tablas!$A$972:$G$974,3,TRUE)), (IF(3-$F$20=1,(VLOOKUP(1,Tablas!$A$972:$G$974,3,TRUE)), (IF(3-$F$20=2, (VLOOKUP(2,Tablas!$A$972:$G$974,3,TRUE)), (VLOOKUP(3,Tablas!$A$972:$G$974,3,TRUE)))))))), (IF($F$18=2,(IF(2-$F$20=0, 0, (IF(2-$F$20=1,(VLOOKUP(1,Tablas!$A$972:$G$974,3,TRUE)), (IF(2-$F$20=2, (VLOOKUP(2,Tablas!$A$972:$G$974,3,TRUE)), 0)))))), (IF($F$18=1,(IF(1-$F$20=0, 0, (IF(1-$F$20=1,(VLOOKUP(1,Tablas!$A$972:$G$974,3,TRUE)),0)))),0)))))))))))))), (IF($F$18=0, 0, (IF($F$20>$F$18, (VLOOKUP($F$18,Tablas!$A$972:$G$974,3,TRUE)), (IF($F$18=4,(IF(4-$F$20=0, 0, (IF(4-$F$20=1, (VLOOKUP(1,Tablas!$A$972:$G$974,3,TRUE)), (IF(4-$F$20=2, (VLOOKUP(2,Tablas!$A$972:$G$974,3,TRUE)), (IF(4-$F$20=3, (VLOOKUP(3,Tablas!$A$972:$G$974,3,TRUE)), (IF(4-$F$20=4, (VLOOKUP(3,Tablas!$A$972:$G$974,3,TRUE)), 0)))))))))), (IF($F$18=5,(IF(5-$F$20=0, (VLOOKUP(1,Tablas!$A$972:$G$974,3,TRUE)), (IF(5-$F$20=1, (VLOOKUP(1,Tablas!$A$972:$G$974,3,TRUE)), (IF(5-$F$20=2, (VLOOKUP(2,Tablas!$A$972:$G$974,3,TRUE)), (IF(5-$F$20=3, (VLOOKUP(3,Tablas!$A$972:$G$974,3,TRUE)), (IF(5-$F$20=4, (VLOOKUP(3,Tablas!$A$972:$G$974,3,TRUE)), (VLOOKUP(3,Tablas!$A$972:$G$974,3,TRUE)))))))))))), (IF($F$18=6,(IF(6-$F$20=0, (VLOOKUP(2,Tablas!$A$972:$G$974,3,TRUE)), (IF(6-$F$20=1, (VLOOKUP(2,Tablas!$A$972:$G$974,3,TRUE)), (IF(6-$F$20=2, (VLOOKUP(2,Tablas!$A$972:$G$974,3,TRUE)), (IF(6-$F$20=3, (VLOOKUP(3,Tablas!$A$972:$G$974,3,TRUE)), (IF(6-$F$20=4, (VLOOKUP(3,Tablas!$A$972:$G$974,3,TRUE)), (VLOOKUP(3,Tablas!$A$972:$G$974,3,TRUE)))))))))))), (IF($F$18>6,(IF(7-$F$20=0, (VLOOKUP(3,Tablas!$A$972:$G$974,3,TRUE)), (IF(7-$F$20=1, (VLOOKUP(3,Tablas!$A$972:$G$974,3,TRUE)), (IF(7-$F$20=2, (VLOOKUP(3,Tablas!$A$972:$G$974,3,TRUE)), (IF(7-$F$20=3, (VLOOKUP(3,Tablas!$A$972:$G$974,3,TRUE)), (IF(7-$F$20=4, (VLOOKUP(3,Tablas!$A$972:$G$974,3,TRUE)), (VLOOKUP(3,Tablas!$A$972:$G$974,3,TRUE)))))))))))), (IF($F$18=3,(IF(3-$F$20=0,0, (IF(3-$F$20=1,(VLOOKUP(1,Tablas!$A$972:$G$974,3,TRUE)), (IF(3-$F$20=2, (VLOOKUP(2,Tablas!$A$972:$G$974,3,TRUE)), (VLOOKUP(3,Tablas!$A$972:$G$974,3,TRUE)))))))), (IF($F$18=2,(IF(2-$F$20=0, 0, (IF(2-$F$20=1,(VLOOKUP(1,Tablas!$A$972:$G$974,3,TRUE)), (IF(2-$F$20=2, (VLOOKUP(2,Tablas!$A$972:$G$974,3,TRUE)), 0)))))), (IF($F$18=1,(IF(1-$F$20=0, 0, (IF(1-$F$20=1,(VLOOKUP(1,Tablas!$A$972:$G$974,3,TRUE)),0)))),0)))))))))))))))))))) -> 7354 | H29: =(IF($F$16=1, (IF($F$18=0, 0, (IF($F$20>$F$18, (VLOOKUP($F$18,Tablas!$A$972:$G$974,4,TRUE)), (IF($F$18>4,(IF($F$20=0, (VLOOKUP(3,Tablas!$A$972:$G$974,4,TRUE)), (IF($F$20=1, (VLOOKUP(3,Tablas!$A$972:$G$974,4,TRUE)), (IF($F$20=2, (VLOOKUP(3,Tablas!$A$972:$G$974,4,TRUE)), (VLOOKUP(3,Tablas!$A$972:$G$974,4,TRUE)))))))), (IF($F$18=4,(IF(4-$F$20=0,(VLOOKUP(2,Tablas!$A$972:$G$974,4,TRUE)), (IF(4-$F$20=1,(VLOOKUP(2,Tablas!$A$972:$G$974,4,TRUE)), (IF(4-$F$20=2, (VLOOKUP(2,Tablas!$A$972:$G$974,4,TRUE)), (VLOOKUP(3,Tablas!$A$972:$G$974,4,TRUE)))))))), (IF($F$18=3,(IF(3-$F$20=0,(VLOOKUP(1,Tablas!$A$972:$G$974,4,TRUE)), (IF(3-$F$20=1,(VLOOKUP(1,Tablas!$A$972:$G$974,4,TRUE)), (IF(3-$F$20=2, (VLOOKUP(2,Tablas!$A$972:$G$974,4,TRUE)), (VLOOKUP(3,Tablas!$A$972:$G$974,4,TRUE)))))))), (IF($F$18=2,(IF(2-$F$20=0, 0, (IF(2-$F$20=1,(VLOOKUP(1,Tablas!$A$972:$G$974,4,TRUE)), (IF(2-$F$20=2, (VLOOKUP(2,Tablas!$A$972:$G$974,4,TRUE)), 0)))))), (IF($F$18=1,(IF(1-$F$20=0, 0, (IF(1-$F$20=1,(VLOOKUP(1,Tablas!$A$972:$G$974,4,TRUE)),0)))),0)))))))))))))), (IF($F$18=0, 0, (IF($F$20>$F$18, (VLOOKUP($F$18,Tablas!$A$972:$G$974,4,TRUE)), (IF($F$18=4,(IF(4-$F$20=0, 0, (IF(4-$F$20=1, (VLOOKUP(1,Tablas!$A$972:$G$974,4,TRUE)), (IF(4-$F$20=2, (VLOOKUP(2,Tablas!$A$972:$G$974,4,TRUE)), (IF(4-$F$20=3, (VLOOKUP(3,Tablas!$A$972:$G$974,4,TRUE)), (IF(4-$F$20=4, (VLOOKUP(3,Tablas!$A$972:$G$974,4,TRUE)), 0)))))))))), (IF($F$18=5,(IF(5-$F$20=0, (VLOOKUP(1,Tablas!$A$972:$G$974,4,TRUE)), (IF(5-$F$20=1, (VLOOKUP(1,Tablas!$A$972:$G$974,4,TRUE)), (IF(5-$F$20=2, (VLOOKUP(2,Tablas!$A$972:$G$974,4,TRUE)), (IF(5-$F$20=3, (VLOOKUP(3,Tablas!$A$972:$G$974,4,TRUE)), (IF(5-$F$20=4, (VLOOKUP(3,Tablas!$A$972:$G$974,4,TRUE)), (VLOOKUP(3,Tablas!$A$972:$G$974,4,TRUE)))))))))))), (IF($F$18=6,(IF(6-$F$20=0, (VLOOKUP(2,Tablas!$A$972:$G$974,4,TRUE)), (IF(6-$F$20=1, (VLOOKUP(2,Tablas!$A$972:$G$974,4,TRUE)), (IF(6-$F$20=2, (VLOOKUP(2,Tablas!$A$972:$G$974,4,TRUE)), (IF(6-$F$20=3, (VLOOKUP(3,Tablas!$A$972:$G$974,4,TRUE)), (IF(6-$F$20=4, (VLOOKUP(3,Tablas!$A$972:$G$974,4,TRUE)), (VLOOKUP(3,Tablas!$A$972:$G$974,4,TRUE)))))))))))), (IF($F$18>6,(IF(7-$F$20=0, (VLOOKUP(3,Tablas!$A$972:$G$974,4,TRUE)), (IF(7-$F$20=1, (VLOOKUP(3,Tablas!$A$972:$G$974,4,TRUE)), (IF(7-$F$20=2, (VLOOKUP(3,Tablas!$A$972:$G$974,4,TRUE)), (IF(7-$F$20=3, (VLOOKUP(3,Tablas!$A$972:$G$974,4,TRUE)), (IF(7-$F$20=4, (VLOOKUP(3,Tablas!$A$972:$G$974,4,TRUE)), (VLOOKUP(3,Tablas!$A$972:$G$974,4,TRUE)))))))))))), (IF($F$18=3,(IF(3-$F$20=0,0, (IF(3-$F$20=1,(VLOOKUP(1,Tablas!$A$972:$G$974,4,TRUE)), (IF(3-$F$20=2, (VLOOKUP(2,Tablas!$A$972:$G$974,4,TRUE)), (VLOOKUP(3,Tablas!$A$972:$G$974,4,TRUE)))))))), (IF($F$18=2,(IF(2-$F$20=0, 0, (IF(2-$F$20=1,(VLOOKUP(1,Tablas!$A$972:$G$974,4,TRUE)), (IF(2-$F$20=2, (VLOOKUP(2,Tablas!$A$972:$G$974,4,TRUE)), 0)))))), (IF($F$18=1,(IF(1-$F$20=0, 0, (IF(1-$F$20=1,(VLOOKUP(1,Tablas!$A$972:$G$974,4,TRUE)),0)))),0)))))))))))))))))))) -> 4744
E30: Total de Prima neta | G30: =SUM(G27:G29) -> 179322 | H30: =SUM(H27:H29) -> 115692
E31: Tarifa administrativa anual | G31: 75 | H31: 75
E32: IVA (12%) | G32: =(G31+G30)*0% -> 0 | H32: =(H31+H30)*0% -> 0
E33: TOTAL ANUAL | G33: =SUM(G30:G32) -> 179397 | H33: =SUM(H30:H32) -> 115767
E34: Ahorros en tarifas de prima para niños | G34: =IF($F$16=1,IF($F$18=0,0,IF($F$20=0,0,IF($F$20=1,(VLOOKUP(1,Tablas!$A$972:$G$974,3,TRUE)),(VLOOKUP(2,Tablas!$A$972:$G$974,3,TRUE))))), IF($F$18=0,0,IF($F$20=0,0,IF($F$20=1,(VLOOKUP(1,Tablas!$A$972:$G$974,3,TRUE)),IF($F$20=2,(VLOOKUP(2,Tablas!$A$972:$G$974,3,TRUE)), (VLOOKUP(3,Tablas!$A$972:$G$974,3,TRUE))))))) -> 12496 | H34: =IF($F$16=1,IF($F$18=0,0,IF($F$20=0,0,IF($F$20=1,(VLOOKUP(1,Tablas!$A$972:$G$974,4,TRUE)),(VLOOKUP(2,Tablas!$A$972:$G$974,4,TRUE))))), IF($F$18=0,0,IF($F$20=0,0,IF($F$20=1,(VLOOKUP(1,Tablas!$A$972:$G$974,4,TRUE)),IF($F$20=2,(VLOOKUP(2,Tablas!$A$972:$G$974,4,TRUE)), (VLOOKUP(3,Tablas!$A$972:$G$974,4,TRUE))))))) -> 8063
E36: Tarifas semi anuales
E37: Prima para Asegurado Titular | G37: =VLOOKUP($H$16,Tablas!$A$1428:$G$1494,3,TRUE) -> 34385.87 | H37: =VLOOKUP($H$16,Tablas!$A$1428:$G$1494,4,TRUE) -> 22185.27
E38: Prima para conyuge | G38: =IF($F$16=1,0,(VLOOKUP($H$18,Tablas!$A$1428:$G$1494,3,TRUE))) -> 56757.17 | H38: =IF($F$16=1,0,(VLOOKUP($H$18,Tablas!$A$1428:$G$1494,4,TRUE))) -> 36617.17
E39: Prima para hijo (s) | G39: =IF($F$16=1, (IF($F$18=0, 0, (IF($F$20>$F$18, (VLOOKUP($F$18,Tablas!$A$1495:$G$1497,3,TRUE)), (IF($F$18>4,(IF($F$20=0, (VLOOKUP(3,Tablas!$A$1495:$G$1497,3,TRUE)), (IF($F$20=1, (VLOOKUP(3,Tablas!$A$1495:$G$1497,3,TRUE)), (IF($F$20=2, (VLOOKUP(3,Tablas!$A$1495:$G$1497,3,TRUE)), (VLOOKUP(3,Tablas!$A$1495:$G$1497,3,TRUE)))))))), (IF($F$18=4,(IF(4-$F$20=0,(VLOOKUP(2,Tablas!$A$1495:$G$1497,3,TRUE)), (IF(4-$F$20=1,(VLOOKUP(2,Tablas!$A$1495:$G$1497,3,TRUE)), (IF(4-$F$20=2, (VLOOKUP(2,Tablas!$A$1495:$G$1497,3,TRUE)), (VLOOKUP(3,Tablas!$A$1495:$G$1497,3,TRUE)))))))), (IF($F$18=3,(IF(3-$F$20=0,(VLOOKUP(1,Tablas!$A$1495:$G$1497,3,TRUE)), (IF(3-$F$20=1,(VLOOKUP(1,Tablas!$A$1495:$G$1497,3,TRUE)), (IF(3-$F$20=2, (VLOOKUP(2,Tablas!$A$1495:$G$1497,3,TRUE)), (VLOOKUP(3,Tablas!$A$1495:$G$1497,3,TRUE)))))))), (IF($F$18=2,(IF(2-$F$20=0, 0, (IF(2-$F$20=1,(VLOOKUP(1,Tablas!$A$1495:$G$1497,3,TRUE)), (IF(2-$F$20=2, (VLOOKUP(2,Tablas!$A$1495:$G$1497,3,TRUE)), 0)))))), (IF($F$18=1,(IF(1-$F$20=0, 0, (IF(1-$F$20=1,(VLOOKUP(1,Tablas!$A$1495:$G$1497,3,TRUE)),0)))),0)))))))))))))), (IF($F$18=0, 0, (IF($F$20>$F$18, (VLOOKUP($F$18,Tablas!$A$1495:$G$1497,3,TRUE)), (IF($F$18=4,(IF(4-$F$20=0, 0, (IF(4-$F$20=1, (VLOOKUP(1,Tablas!$A$1495:$G$1497,3,TRUE)), (IF(4-$F$20=2, (VLOOKUP(2,Tablas!$A$1495:$G$1497,3,TRUE)), (IF(4-$F$20=3, (VLOOKUP(3,Tablas!$A$1495:$G$1497,3,TRUE)), (IF(4-$F$20=4, (VLOOKUP(3,Tablas!$A$1495:$G$1497,3,TRUE)), 0)))))))))), (IF($F$18=5,(IF(5-$F$20=0, (VLOOKUP(1,Tablas!$A$1495:$G$1497,3,TRUE)), (IF(5-$F$20=1, (VLOOKUP(1,Tablas!$A$1495:$G$1497,3,TRUE)), (IF(5-$F$20=2, (VLOOKUP(2,Tablas!$A$1495:$G$1497,3,TRUE)), (IF(5-$F$20=3, (VLOOKUP(3,Tablas!$A$1495:$G$1497,3,TRUE)), (IF(5-$F$20=4, (VLOOKUP(3,Tablas!$A$1495:$G$1497,3,TRUE)), (VLOOKUP(3,Tablas!$A$1495:$G$1497,3,TRUE)))))))))))), (IF($F$18=6,(IF(6-$F$20=0, (VLOOKUP(2,Tablas!$A$1495:$G$1497,3,TRUE)), (IF(6-$F$20=1, (VLOOKUP(2,Tablas!$A$1495:$G$1497,3,TRUE)), (IF(6-$F$20=2, (VLOOKUP(2,Tablas!$A$1495:$G$1497,3,TRUE)), (IF(6-$F$20=3, (VLOOKUP(3,Tablas!$A$1495:$G$1497,3,TRUE)), (IF(6-$F$20=4, (VLOOKUP(3,Tablas!$A$1495:$G$1497,3,TRUE)), (VLOOKUP(3,Tablas!$A$1495:$G$1497,3,TRUE)))))))))))), (IF($F$18>6,(IF(7-$F$20=0, (VLOOKUP(3,Tablas!$A$1495:$G$1497,3,TRUE)), (IF(7-$F$20=1, (VLOOKUP(3,Tablas!$A$1495:$G$1497,3,TRUE)), (IF(7-$F$20=2, (VLOOKUP(3,Tablas!$A$1495:$G$1497,3,TRUE)), (IF(7-$F$20=3, (VLOOKUP(3,Tablas!$A$1495:$G$1497,3,TRUE)), (IF(7-$F$20=4, (VLOOKUP(3,Tablas!$A$1495:$G$1497,3,TRUE)), (VLOOKUP(3,Tablas!$A$1495:$G$1497,3,TRUE)))))))))))), (IF($F$18=3,(IF(3-$F$20=0,0, (IF(3-$F$20=1,(VLOOKUP(1,Tablas!$A$1495:$G$1497,3,TRUE)), (IF(3-$F$20=2, (VLOOKUP(2,Tablas!$A$1495:$G$1497,3,TRUE)), (VLOOKUP(3,Tablas!$A$1495:$G$1497,3,TRUE)))))))), (IF($F$18=2,(IF(2-$F$20=0, 0, (IF(2-$F$20=1,(VLOOKUP(1,Tablas!$A$1495:$G$1497,3,TRUE)), (IF(2-$F$20=2, (VLOOKUP(2,Tablas!$A$1495:$G$1497,3,TRUE)), 0)))))), (IF($F$18=1,(IF(1-$F$20=0, 0, (IF(1-$F$20=1,(VLOOKUP(1,Tablas!$A$1495:$G$1497,3,TRUE)),0)))),0))))))))))))))))))) -> 3897.62 | H39: =IF($F$16=1, (IF($F$18=0, 0, (IF($F$20>$F$18, (VLOOKUP($F$18,Tablas!$A$1495:$G$1497,4,TRUE)), (IF($F$18>4,(IF($F$20=0, (VLOOKUP(3,Tablas!$A$1495:$G$1497,4,TRUE)), (IF($F$20=1, (VLOOKUP(3,Tablas!$A$1495:$G$1497,4,TRUE)), (IF($F$20=2, (VLOOKUP(3,Tablas!$A$1495:$G$1497,4,TRUE)), (VLOOKUP(3,Tablas!$A$1495:$G$1497,4,TRUE)))))))), (IF($F$18=4,(IF(4-$F$20=0,(VLOOKUP(2,Tablas!$A$1495:$G$1497,4,TRUE)), (IF(4-$F$20=1,(VLOOKUP(2,Tablas!$A$1495:$G$1497,4,TRUE)), (IF(4-$F$20=2, (VLOOKUP(2,Tablas!$A$1495:$G$1497,4,TRUE)), (VLOOKUP(3,Tablas!$A$1495:$G$1497,4,TRUE)))))))), (IF($F$18=3,(IF(3-$F$20=0,(VLOOKUP(1,Tablas!$A$1495:$G$1497,4,TRUE)), (IF(3-$F$20=1,(VLOOKUP(1,Tablas!$A$1495:$G$1497,4,TRUE)), (IF(3-$F$20=2, (VLOOKUP(2,Tablas!$A$1495:$G$1497,4,TRUE)), (VLOOKUP(3,Tablas!$A$1495:$G$1497,4,TRUE)))))))), (IF($F$18=2,(IF(2-$F$20=0, 0, (IF(2-$F$20=1,(VLOOKUP(1,Tablas!$A$1495:$G$1497,4,TRUE)), (IF(2-$F$20=2, (VLOOKUP(2,Tablas!$A$1495:$G$1497,4,TRUE)), 0)))))), (IF($F$18=1,(IF(1-$F$20=0, 0, (IF(1-$F$20=1,(VLOOKUP(1,Tablas!$A$1495:$G$1497,4,TRUE)),0)))),0)))))))))))))), (IF($F$18=0, 0, (IF($F$20>$F$18, (VLOOKUP($F$18,Tablas!$A$1495:$G$1497,4,TRUE)), (IF($F$18=4,(IF(4-$F$20=0, 0, (IF(4-$F$20=1, (VLOOKUP(1,Tablas!$A$1495:$G$1497,4,TRUE)), (IF(4-$F$20=2, (VLOOKUP(2,Tablas!$A$1495:$G$1497,4,TRUE)), (IF(4-$F$20=3, (VLOOKUP(3,Tablas!$A$1495:$G$1497,4,TRUE)), (IF(4-$F$20=4, (VLOOKUP(3,Tablas!$A$1495:$G$1497,4,TRUE)), 0)))))))))), (IF($F$18=5,(IF(5-$F$20=0, (VLOOKUP(1,Tablas!$A$1495:$G$1497,4,TRUE)), (IF(5-$F$20=1, (VLOOKUP(1,Tablas!$A$1495:$G$1497,4,TRUE)), (IF(5-$F$20=2, (VLOOKUP(2,Tablas!$A$1495:$G$1497,4,TRUE)), (IF(5-$F$20=3, (VLOOKUP(3,Tablas!$A$1495:$G$1497,4,TRUE)), (IF(5-$F$20=4, (VLOOKUP(3,Tablas!$A$1495:$G$1497,4,TRUE)), (VLOOKUP(3,Tablas!$A$1495:$G$1497,4,TRUE)))))))))))), (IF($F$18=6,(IF(6-$F$20=0, (VLOOKUP(2,Tablas!$A$1495:$G$1497,4,TRUE)), (IF(6-$F$20=1, (VLOOKUP(2,Tablas!$A$1495:$G$1497,4,TRUE)), (IF(6-$F$20=2, (VLOOKUP(2,Tablas!$A$1495:$G$1497,4,TRUE)), (IF(6-$F$20=3, (VLOOKUP(3,Tablas!$A$1495:$G$1497,4,TRUE)), (IF(6-$F$20=4, (VLOOKUP(3,Tablas!$A$1495:$G$1497,4,TRUE)), (VLOOKUP(3,Tablas!$A$1495:$G$1497,4,TRUE)))))))))))), (IF($F$18>6,(IF(7-$F$20=0, (VLOOKUP(3,Tablas!$A$1495:$G$1497,4,TRUE)), (IF(7-$F$20=1, (VLOOKUP(3,Tablas!$A$1495:$G$1497,4,TRUE)), (IF(7-$F$20=2, (VLOOKUP(3,Tablas!$A$1495:$G$1497,4,TRUE)), (IF(7-$F$20=3, (VLOOKUP(3,Tablas!$A$1495:$G$1497,4,TRUE)), (IF(7-$F$20=4, (VLOOKUP(3,Tablas!$A$1495:$G$1497,4,TRUE)), (VLOOKUP(3,Tablas!$A$1495:$G$1497,4,TRUE)))))))))))), (IF($F$18=3,(IF(3-$F$20=0,0, (IF(3-$F$20=1,(VLOOKUP(1,Tablas!$A$1495:$G$1497,4,TRUE)), (IF(3-$F$20=2, (VLOOKUP(2,Tablas!$A$1495:$G$1497,4,TRUE)), (VLOOKUP(3,Tablas!$A$1495:$G$1497,4,TRUE)))))))), (IF($F$18=2,(IF(2-$F$20=0, 0, (IF(2-$F$20=1,(VLOOKUP(1,Tablas!$A$1495:$G$1497,4,TRUE)), (IF(2-$F$20=2, (VLOOKUP(2,Tablas!$A$1495:$G$1497,4,TRUE)), 0)))))), (IF($F$18=1,(IF(1-$F$20=0, 0, (IF(1-$F$20=1,(VLOOKUP(1,Tablas!$A$1495:$G$1497,4,TRUE)),0)))),0))))))))))))))))))) -> 2514.32
E40: Total de Prima neta | G40: =SUM(G37:G39) -> 95040.66 | H40: =SUM(H37:H39) -> 61316.76
E41: Tarifa administrativa anual | G41: 75 | H41: 75
E42: IVA (12%) | G42: =(G40+G41)*0% -> 0 | H42: =(H40+H41)*0% -> 0
E43: TOTAL de primera cuota | G43: =SUM(G40:G42) -> 95115.66 | H43: =SUM(H40:H42) -> 61391.76
E44: Costo de segunda cuota | G44: =G40+G42 -> 95040.66 | H44: =H40+H42 -> 61316.76
E45: TOTAL ANUAL | G45: =G43+G44 -> 190156.32 | H45: =H43+H44 -> 122708.52
E46: Ahorros en tarifas de prima para niños | G46: =IF($F$16=1,IF($F$18=0,0,IF($F$20=0,0,IF($F$20=1,(VLOOKUP(1,Tablas!$A$1495:$G$1497,3,TRUE)),(VLOOKUP(2,Tablas!$A$1495:$G$1497,3,TRUE))))), IF($F$18=0,0,IF($F$20=0,0,IF($F$20=1,(VLOOKUP(1,Tablas!$A$1495:$G$1497,3,TRUE)),IF($F$20=2,(VLOOKUP(2,Tablas!$A$1495:$G$1497,3,TRUE)), (VLOOKUP(3,Tablas!$A$1495:$G$1497,3,TRUE))))))) -> 6622.88 | H46: =IF($F$16=1,IF($F$18=0,0,IF($F$20=0,0,IF($F$20=1,(VLOOKUP(1,Tablas!$A$1495:$G$1497,4,TRUE)),(VLOOKUP(2,Tablas!$A$1495:$G$1497,4,TRUE))))), IF($F$18=0,0,IF($F$20=0,0,IF($F$20=1,(VLOOKUP(1,Tablas!$A$1495:$G$1497,4,TRUE)),IF($F$20=2,(VLOOKUP(2,Tablas!$A$1495:$G$1497,4,TRUE)), (VLOOKUP(3,Tablas!$A$1495:$G$1497,4,TRUE))))))) -> 4273.39
E48: Tarifas trimestrales
E49: Prima para Asegurado Titular | G49: =VLOOKUP($H$16,Tablas!$A$1054:$G$1120,3,TRUE) -> 17841.725 | H49: =VLOOKUP($H$16,Tablas!$A$1054:$G$1120,4,TRUE) -> 11511.225
E50: Prima para conyuge | G50: =IF($F$16=1,0,(VLOOKUP($H$18,Tablas!$A$1054:$G$1120,3,TRUE))) -> 29449.475 | H50: =IF($F$16=1,0,(VLOOKUP($H$18,Tablas!$A$1054:$G$1120,4,TRUE))) -> 18999.475
E51: Prima para hijo (s) | G51: =IF($F$16=1, (IF($F$18=0, 0, (IF($F$20>$F$18, (VLOOKUP($F$18,Tablas!$A$1121:$G$1123,3,TRUE)), (IF($F$18>4,(IF($F$20=0, (VLOOKUP(3,Tablas!$A$1121:$G$1123,3,TRUE)), (IF($F$20=1, (VLOOKUP(3,Tablas!$A$1121:$G$1123,3,TRUE)), (IF($F$20=2, (VLOOKUP(3,Tablas!$A$1121:$G$1123,3,TRUE)), (VLOOKUP(3,Tablas!$A$1121:$G$1123,3,TRUE)))))))), (IF($F$18=4,(IF(4-$F$20=0,(VLOOKUP(2,Tablas!$A$1121:$G$1123,3,TRUE)), (IF(4-$F$20=1,(VLOOKUP(2,Tablas!$A$1121:$G$1123,3,TRUE)), (IF(4-$F$20=2, (VLOOKUP(2,Tablas!$A$1121:$G$1123,3,TRUE)), (VLOOKUP(3,Tablas!$A$1121:$G$1123,3,TRUE)))))))), (IF($F$18=3,(IF(3-$F$20=0,(VLOOKUP(1,Tablas!$A$1121:$G$1123,3,TRUE)), (IF(3-$F$20=1,(VLOOKUP(1,Tablas!$A$1121:$G$1123,3,TRUE)), (IF(3-$F$20=2, (VLOOKUP(2,Tablas!$A$1121:$G$1123,3,TRUE)), (VLOOKUP(3,Tablas!$A$1121:$G$1123,3,TRUE)))))))), (IF($F$18=2,(IF(2-$F$20=0, 0, (IF(2-$F$20=1,(VLOOKUP(1,Tablas!$A$1121:$G$1123,3,TRUE)), (IF(2-$F$20=2, (VLOOKUP(2,Tablas!$A$1121:$G$1123,3,TRUE)), 0)))))), (IF($F$18=1,(IF(1-$F$20=0, 0, (IF(1-$F$20=1,(VLOOKUP(1,Tablas!$A$1121:$G$1123,3,TRUE)),0)))),0)))))))))))))), (IF($F$18=0, 0, (IF($F$20>$F$18, (VLOOKUP($F$18,Tablas!$A$1121:$G$1123,3,TRUE)), (IF($F$18=4,(IF(4-$F$20=0, 0, (IF(4-$F$20=1, (VLOOKUP(1,Tablas!$A$1121:$G$1123,3,TRUE)), (IF(4-$F$20=2, (VLOOKUP(2,Tablas!$A$1121:$G$1123,3,TRUE)), (IF(4-$F$20=3, (VLOOKUP(3,Tablas!$A$1121:$G$1123,3,TRUE)), (IF(4-$F$20=4, (VLOOKUP(3,Tablas!$A$1121:$G$1123,3,TRUE)), 0)))))))))), (IF($F$18=5,(IF(5-$F$20=0, (VLOOKUP(1,Tablas!$A$1121:$G$1123,3,TRUE)), (IF(5-$F$20=1, (VLOOKUP(1,Tablas!$A$1121:$G$1123,3,TRUE)), (IF(5-$F$20=2, (VLOOKUP(2,Tablas!$A$1121:$G$1123,3,TRUE)), (IF(5-$F$20=3, (VLOOKUP(3,Tablas!$A$1121:$G$1123,3,TRUE)), (IF(5-$F$20=4, (VLOOKUP(3,Tablas!$A$1121:$G$1123,3,TRUE)), (VLOOKUP(3,Tablas!$A$1121:$G$1123,3,TRUE)))))))))))), (IF($F$18=6,(IF(6-$F$20=0, (VLOOKUP(2,Tablas!$A$1121:$G$1123,3,TRUE)), (IF(6-$F$20=1, (VLOOKUP(2,Tablas!$A$1121:$G$1123,3,TRUE)), (IF(6-$F$20=2, (VLOOKUP(2,Tablas!$A$1121:$G$1123,3,TRUE)), (IF(6-$F$20=3, (VLOOKUP(3,Tablas!$A$1121:$G$1123,3,TRUE)), (IF(6-$F$20=4, (VLOOKUP(3,Tablas!$A$1121:$G$1123,3,TRUE)), (VLOOKUP(3,Tablas!$A$1121:$G$1123,3,TRUE)))))))))))), (IF($F$18>6,(IF(7-$F$20=0, (VLOOKUP(3,Tablas!$A$1121:$G$1123,3,TRUE)), (IF(7-$F$20=1, (VLOOKUP(3,Tablas!$A$1121:$G$1123,3,TRUE)), (IF(7-$F$20=2, (VLOOKUP(3,Tablas!$A$1121:$G$1123,3,TRUE)), (IF(7-$F$20=3, (VLOOKUP(3,Tablas!$A$1121:$G$1123,3,TRUE)), (IF(7-$F$20=4, (VLOOKUP(3,Tablas!$A$1121:$G$1123,3,TRUE)), (VLOOKUP(3,Tablas!$A$1121:$G$1123,3,TRUE)))))))))))), (IF($F$18=3,(IF(3-$F$20=0,0, (IF(3-$F$20=1,(VLOOKUP(1,Tablas!$A$1121:$G$1123,3,TRUE)), (IF(3-$F$20=2, (VLOOKUP(2,Tablas!$A$1121:$G$1123,3,TRUE)), (VLOOKUP(3,Tablas!$A$1121:$G$1123,3,TRUE)))))))), (IF($F$18=2,(IF(2-$F$20=0, 0, (IF(2-$F$20=1,(VLOOKUP(1,Tablas!$A$1121:$G$1123,3,TRUE)), (IF(2-$F$20=2, (VLOOKUP(2,Tablas!$A$1121:$G$1123,3,TRUE)), 0)))))), (IF($F$18=1,(IF(1-$F$20=0, 0, (IF(1-$F$20=1,(VLOOKUP(1,Tablas!$A$1121:$G$1123,3,TRUE)),0)))),0))))))))))))))))))) -> 2022.35 | H51: =IF($F$16=1, (IF($F$18=0, 0, (IF($F$20>$F$18, (VLOOKUP($F$18,Tablas!$A$1121:$G$1123,4,TRUE)), (IF($F$18>4,(IF($F$20=0, (VLOOKUP(3,Tablas!$A$1121:$G$1123,4,TRUE)), (IF($F$20=1, (VLOOKUP(3,Tablas!$A$1121:$G$1123,4,TRUE)), (IF($F$20=2, (VLOOKUP(3,Tablas!$A$1121:$G$1123,4,TRUE)), (VLOOKUP(3,Tablas!$A$1121:$G$1123,4,TRUE)))))))), (IF($F$18=4,(IF(4-$F$20=0,(VLOOKUP(2,Tablas!$A$1121:$G$1123,4,TRUE)), (IF(4-$F$20=1,(VLOOKUP(2,Tablas!$A$1121:$G$1123,4,TRUE)), (IF(4-$F$20=2, (VLOOKUP(2,Tablas!$A$1121:$G$1123,4,TRUE)), (VLOOKUP(3,Tablas!$A$1121:$G$1123,4,TRUE)))))))), (IF($F$18=3,(IF(3-$F$20=0,(VLOOKUP(1,Tablas!$A$1121:$G$1123,4,TRUE)), (IF(3-$F$20=1,(VLOOKUP(1,Tablas!$A$1121:$G$1123,4,TRUE)), (IF(3-$F$20=2, (VLOOKUP(2,Tablas!$A$1121:$G$1123,4,TRUE)), (VLOOKUP(3,Tablas!$A$1121:$G$1123,4,TRUE)))))))), (IF($F$18=2,(IF(2-$F$20=0, 0, (IF(2-$F$20=1,(VLOOKUP(1,Tablas!$A$1121:$G$1123,4,TRUE)), (IF(2-$F$20=2, (VLOOKUP(2,Tablas!$A$1121:$G$1123,4,TRUE)), 0)))))), (IF($F$18=1,(IF(1-$F$20=0, 0, (IF(1-$F$20=1,(VLOOKUP(1,Tablas!$A$1121:$G$1123,4,TRUE)),0)))),0)))))))))))))), (IF($F$18=0, 0, (IF($F$20>$F$18, (VLOOKUP($F$18,Tablas!$A$1121:$G$1123,4,TRUE)), (IF($F$18=4,(IF(4-$F$20=0, 0, (IF(4-$F$20=1, (VLOOKUP(1,Tablas!$A$1121:$G$1123,4,TRUE)), (IF(4-$F$20=2, (VLOOKUP(2,Tablas!$A$1121:$G$1123,4,TRUE)), (IF(4-$F$20=3, (VLOOKUP(3,Tablas!$A$1121:$G$1123,4,TRUE)), (IF(4-$F$20=4, (VLOOKUP(3,Tablas!$A$1121:$G$1123,4,TRUE)), 0)))))))))), (IF($F$18=5,(IF(5-$F$20=0, (VLOOKUP(1,Tablas!$A$1121:$G$1123,4,TRUE)), (IF(5-$F$20=1, (VLOOKUP(1,Tablas!$A$1121:$G$1123,4,TRUE)), (IF(5-$F$20=2, (VLOOKUP(2,Tablas!$A$1121:$G$1123,4,TRUE)), (IF(5-$F$20=3, (VLOOKUP(3,Tablas!$A$1121:$G$1123,4,TRUE)), (IF(5-$F$20=4, (VLOOKUP(3,Tablas!$A$1121:$G$1123,4,TRUE)), (VLOOKUP(3,Tablas!$A$1121:$G$1123,4,TRUE)))))))))))), (IF($F$18=6,(IF(6-$F$20=0, (VLOOKUP(2,Tablas!$A$1121:$G$1123,4,TRUE)), (IF(6-$F$20=1, (VLOOKUP(2,Tablas!$A$1121:$G$1123,4,TRUE)), (IF(6-$F$20=2, (VLOOKUP(2,Tablas!$A$1121:$G$1123,4,TRUE)), (IF(6-$F$20=3, (VLOOKUP(3,Tablas!$A$1121:$G$1123,4,TRUE)), (IF(6-$F$20=4, (VLOOKUP(3,Tablas!$A$1121:$G$1123,4,TRUE)), (VLOOKUP(3,Tablas!$A$1121:$G$1123,4,TRUE)))))))))))), (IF($F$18>6,(IF(7-$F$20=0, (VLOOKUP(3,Tablas!$A$1121:$G$1123,4,TRUE)), (IF(7-$F$20=1, (VLOOKUP(3,Tablas!$A$1121:$G$1123,4,TRUE)), (IF(7-$F$20=2, (VLOOKUP(3,Tablas!$A$1121:$G$1123,4,TRUE)), (IF(7-$F$20=3, (VLOOKUP(3,Tablas!$A$1121:$G$1123,4,TRUE)), (IF(7-$F$20=4, (VLOOKUP(3,Tablas!$A$1121:$G$1123,4,TRUE)), (VLOOKUP(3,Tablas!$A$1121:$G$1123,4,TRUE)))))))))))), (IF($F$18=3,(IF(3-$F$20=0,0, (IF(3-$F$20=1,(VLOOKUP(1,Tablas!$A$1121:$G$1123,4,TRUE)), (IF(3-$F$20=2, (VLOOKUP(2,Tablas!$A$1121:$G$1123,4,TRUE)), (VLOOKUP(3,Tablas!$A$1121:$G$1123,4,TRUE)))))))), (IF($F$18=2,(IF(2-$F$20=0, 0, (IF(2-$F$20=1,(VLOOKUP(1,Tablas!$A$1121:$G$1123,4,TRUE)), (IF(2-$F$20=2, (VLOOKUP(2,Tablas!$A$1121:$G$1123,4,TRUE)), 0)))))), (IF($F$18=1,(IF(1-$F$20=0, 0, (IF(1-$F$20=1,(VLOOKUP(1,Tablas!$A$1121:$G$1123,4,TRUE)),0)))),0))))))))))))))))))) -> 1304.6
E52: Total de Prima neta | G52: =SUM(G49:G51) -> 49313.55 | H52: =SUM(H49:H51) -> 31815.3
E53: Tarifa administrativa anual | G53: 75 | H53: 75
E54: IVA (12%) | G54: =(G52+G53)*0% -> 0 | H54: =(H52+H53)*0% -> 0
E55: TOTAL de primera cuota | G55: =SUM(G52:G54) -> 49388.55 | H55: =SUM(H52:H54) -> 31890.3
E56: Costo de tarifa trimestral 2 a 4 | G56: =G52+G54 -> 49313.55 | H56: =H52+H54 -> 31815.3
E57: TOTAL ANUAL | G57: =G55+(G56*3) -> 197329.2 | H57: =H55+(H56*3) -> 127336.2
E58: Ahorros en tarifas de prima para niños | G58: =IF($F$16=1,IF($F$18=0,0,IF($F$20=0,0,IF($F$20=1,(VLOOKUP(1,Tablas!$A$1121:$G$1123,3,TRUE)),(VLOOKUP(2,Tablas!$A$1121:$G$1123,3,TRUE))))), IF($F$18=0,0,IF($F$20=0,0,IF($F$20=1,(VLOOKUP(1,Tablas!$A$1121:$G$1123,3,TRUE)),IF($F$20=2,(VLOOKUP(2,Tablas!$A$1121:$G$1123,3,TRUE)), (VLOOKUP(3,Tablas!$A$1121:$G$1123,3,TRUE))))))) -> 3436.4 | H58: =IF($F$16=1,IF($F$18=0,0,IF($F$20=0,0,IF($F$20=1,(VLOOKUP(1,Tablas!$A$1121:$G$1123,4,TRUE)),(VLOOKUP(2,Tablas!$A$1121:$G$1123,4,TRUE))))), IF($F$18=0,0,IF($F$20=0,0,IF($F$20=1,(VLOOKUP(1,Tablas!$A$1121:$G$1123,4,TRUE)),IF($F$20=2,(VLOOKUP(2,Tablas!$A$1121:$G$1123,4,TRUE)), (VLOOKUP(3,Tablas!$A$1121:$G$1123,4,TRUE))))))) -> 2217.325
E60: Tarifas mensuales
E61: Prima para Asegurado Titular | G61: =VLOOKUP($H$16,Tablas!$A$979:$G$1045,3,TRUE) -> 6055.373333 | H61: =VLOOKUP($H$16,Tablas!$A$979:$G$1045,4,TRUE) -> 3906.84
E62: Prima para conyuge | G62: =IF($F$16=1,0,(VLOOKUP($H$18,Tablas!$A$979:$G$1045,3,TRUE))) -> 9994.973333 | H62: =IF($F$16=1,0,(VLOOKUP($H$18,Tablas!$A$979:$G$1045,4,TRUE))) -> 6448.306667
E63: Prima para hijo (s) | G63: =IF($F$16=1, (IF($F$18=0, 0, (IF($F$20>$F$18, (VLOOKUP($F$18,Tablas!$A$1046:$G$1048,3,TRUE)), (IF($F$18>4,(IF($F$20=0, (VLOOKUP(3,Tablas!$A$1046:$G$1048,3,TRUE)), (IF($F$20=1, (VLOOKUP(3,Tablas!$A$1046:$G$1048,3,TRUE)), (IF($F$20=2, (VLOOKUP(3,Tablas!$A$1046:$G$1048,3,TRUE)), (VLOOKUP(3,Tablas!$A$1046:$G$1048,3,TRUE)))))))), (IF($F$18=4,(IF(4-$F$20=0,(VLOOKUP(2,Tablas!$A$1046:$G$1048,3,TRUE)), (IF(4-$F$20=1,(VLOOKUP(2,Tablas!$A$1046:$G$1048,3,TRUE)), (IF(4-$F$20=2, (VLOOKUP(2,Tablas!$A$1046:$G$1048,3,TRUE)), (VLOOKUP(3,Tablas!$A$1046:$G$1048,3,TRUE)))))))), (IF($F$18=3,(IF(3-$F$20=0,(VLOOKUP(1,Tablas!$A$1046:$G$1048,3,TRUE)), (IF(3-$F$20=1,(VLOOKUP(1,Tablas!$A$1046:$G$1048,3,TRUE)), (IF(3-$F$20=2, (VLOOKUP(2,Tablas!$A$1046:$G$1048,3,TRUE)), (VLOOKUP(3,Tablas!$A$1046:$G$1048,3,TRUE)))))))), (IF($F$18=2,(IF(2-$F$20=0, 0, (IF(2-$F$20=1,(VLOOKUP(1,Tablas!$A$1046:$G$1048,3,TRUE)), (IF(2-$F$20=2, (VLOOKUP(2,Tablas!$A$1046:$G$1048,3,TRUE)), 0)))))), (IF($F$18=1,(IF(1-$F$20=0, 0, (IF(1-$F$20=1,(VLOOKUP(1,Tablas!$A$1046:$G$1048,3,TRUE)),0)))),0)))))))))))))), (IF($F$18=0, 0, (IF($F$20>$F$18, (VLOOKUP($F$18,Tablas!$A$1046:$G$1048,3,TRUE)), (IF($F$18=4,(IF(4-$F$20=0, 0, (IF(4-$F$20=1, (VLOOKUP(1,Tablas!$A$1046:$G$1048,3,TRUE)), (IF(4-$F$20=2, (VLOOKUP(2,Tablas!$A$1046:$G$1048,3,TRUE)), (IF(4-$F$20=3, (VLOOKUP(3,Tablas!$A$1046:$G$1048,3,TRUE)), (IF(4-$F$20=4, (VLOOKUP(3,Tablas!$A$1046:$G$1048,3,TRUE)), 0)))))))))), (IF($F$18=5,(IF(5-$F$20=0, (VLOOKUP(1,Tablas!$A$1046:$G$1048,3,TRUE)), (IF(5-$F$20=1, (VLOOKUP(1,Tablas!$A$1046:$G$1048,3,TRUE)), (IF(5-$F$20=2, (VLOOKUP(2,Tablas!$A$1046:$G$1048,3,TRUE)), (IF(5-$F$20=3, (VLOOKUP(3,Tablas!$A$1046:$G$1048,3,TRUE)), (IF(5-$F$20=4, (VLOOKUP(3,Tablas!$A$1046:$G$1048,3,TRUE)), (VLOOKUP(3,Tablas!$A$1046:$G$1048,3,TRUE)))))))))))), (IF($F$18=6,(IF(6-$F$20=0, (VLOOKUP(2,Tablas!$A$1046:$G$1048,3,TRUE)), (IF(6-$F$20=1, (VLOOKUP(2,Tablas!$A$1046:$G$1048,3,TRUE)), (IF(6-$F$20=2, (VLOOKUP(2,Tablas!$A$1046:$G$1048,3,TRUE)), (IF(6-$F$20=3, (VLOOKUP(3,Tablas!$A$1046:$G$1048,3,TRUE)), (IF(6-$F$20=4, (VLOOKUP(3,Tablas!$A$1046:$G$1048,3,TRUE)), (VLOOKUP(3,Tablas!$A$1046:$G$1048,3,TRUE)))))))))))), (IF($F$18>6,(IF(7-$F$20=0, (VLOOKUP(3,Tablas!$A$1046:$G$1048,3,TRUE)), (IF(7-$F$20=1, (VLOOKUP(3,Tablas!$A$1046:$G$1048,3,TRUE)), (IF(7-$F$20=2, (VLOOKUP(3,Tablas!$A$1046:$G$1048,3,TRUE)), (IF(7-$F$20=3, (VLOOKUP(3,Tablas!$A$1046:$G$1048,3,TRUE)), (IF(7-$F$20=4, (VLOOKUP(3,Tablas!$A$1046:$G$1048,3,TRUE)), (VLOOKUP(3,Tablas!$A$1046:$G$1048,3,TRUE)))))))))))), (IF($F$18=3,(IF(3-$F$20=0,0, (IF(3-$F$20=1,(VLOOKUP(1,Tablas!$A$1046:$G$1048,3,TRUE)), (IF(3-$F$20=2, (VLOOKUP(2,Tablas!$A$1046:$G$1048,3,TRUE)), (VLOOKUP(3,Tablas!$A$1046:$G$1048,3,TRUE)))))))), (IF($F$18=2,(IF(2-$F$20=0, 0, (IF(2-$F$20=1,(VLOOKUP(1,Tablas!$A$1046:$G$1048,3,TRUE)), (IF(2-$F$20=2, (VLOOKUP(2,Tablas!$A$1046:$G$1048,3,TRUE)), 0)))))), (IF($F$18=1,(IF(1-$F$20=0, 0, (IF(1-$F$20=1,(VLOOKUP(1,Tablas!$A$1046:$G$1048,3,TRUE)),0)))),0))))))))))))))))))) -> 686.3733333 | H63: =IF($F$16=1, (IF($F$18=0, 0, (IF($F$20>$F$18, (VLOOKUP($F$18,Tablas!$A$1046:$G$1048,4,TRUE)), (IF($F$18>4,(IF($F$20=0, (VLOOKUP(3,Tablas!$A$1046:$G$1048,4,TRUE)), (IF($F$20=1, (VLOOKUP(3,Tablas!$A$1046:$G$1048,4,TRUE)), (IF($F$20=2, (VLOOKUP(3,Tablas!$A$1046:$G$1048,4,TRUE)), (VLOOKUP(3,Tablas!$A$1046:$G$1048,4,TRUE)))))))), (IF($F$18=4,(IF(4-$F$20=0,(VLOOKUP(2,Tablas!$A$1046:$G$1048,4,TRUE)), (IF(4-$F$20=1,(VLOOKUP(2,Tablas!$A$1046:$G$1048,4,TRUE)), (IF(4-$F$20=2, (VLOOKUP(2,Tablas!$A$1046:$G$1048,4,TRUE)), (VLOOKUP(3,Tablas!$A$1046:$G$1048,4,TRUE)))))))), (IF($F$18=3,(IF(3-$F$20=0,(VLOOKUP(1,Tablas!$A$1046:$G$1048,4,TRUE)), (IF(3-$F$20=1,(VLOOKUP(1,Tablas!$A$1046:$G$1048,4,TRUE)), (IF(3-$F$20=2, (VLOOKUP(2,Tablas!$A$1046:$G$1048,4,TRUE)), (VLOOKUP(3,Tablas!$A$1046:$G$1048,4,TRUE)))))))), (IF($F$18=2,(IF(2-$F$20=0, 0, (IF(2-$F$20=1,(VLOOKUP(1,Tablas!$A$1046:$G$1048,4,TRUE)), (IF(2-$F$20=2, (VLOOKUP(2,Tablas!$A$1046:$G$1048,4,TRUE)), 0)))))), (IF($F$18=1,(IF(1-$F$20=0, 0, (IF(1-$F$20=1,(VLOOKUP(1,Tablas!$A$1046:$G$1048,4,TRUE)),0)))),0)))))))))))))), (IF($F$18=0, 0, (IF($F$20>$F$18, (VLOOKUP($F$18,Tablas!$A$1046:$G$1048,4,TRUE)), (IF($F$18=4,(IF(4-$F$20=0, 0, (IF(4-$F$20=1, (VLOOKUP(1,Tablas!$A$1046:$G$1048,4,TRUE)), (IF(4-$F$20=2, (VLOOKUP(2,Tablas!$A$1046:$G$1048,4,TRUE)), (IF(4-$F$20=3, (VLOOKUP(3,Tablas!$A$1046:$G$1048,4,TRUE)), (IF(4-$F$20=4, (VLOOKUP(3,Tablas!$A$1046:$G$1048,4,TRUE)), 0)))))))))), (IF($F$18=5,(IF(5-$F$20=0, (VLOOKUP(1,Tablas!$A$1046:$G$1048,4,TRUE)), (IF(5-$F$20=1, (VLOOKUP(1,Tablas!$A$1046:$G$1048,4,TRUE)), (IF(5-$F$20=2, (VLOOKUP(2,Tablas!$A$1046:$G$1048,4,TRUE)), (IF(5-$F$20=3, (VLOOKUP(3,Tablas!$A$1046:$G$1048,4,TRUE)), (IF(5-$F$20=4, (VLOOKUP(3,Tablas!$A$1046:$G$1048,4,TRUE)), (VLOOKUP(3,Tablas!$A$1046:$G$1048,4,TRUE)))))))))))), (IF($F$18=6,(IF(6-$F$20=0, (VLOOKUP(2,Tablas!$A$1046:$G$1048,4,TRUE)), (IF(6-$F$20=1, (VLOOKUP(2,Tablas!$A$1046:$G$1048,4,TRUE)), (IF(6-$F$20=2, (VLOOKUP(2,Tablas!$A$1046:$G$1048,4,TRUE)), (IF(6-$F$20=3, (VLOOKUP(3,Tablas!$A$1046:$G$1048,4,TRUE)), (IF(6-$F$20=4, (VLOOKUP(3,Tablas!$A$1046:$G$1048,4,TRUE)), (VLOOKUP(3,Tablas!$A$1046:$G$1048,4,TRUE)))))))))))), (IF($F$18>6,(IF(7-$F$20=0, (VLOOKUP(3,Tablas!$A$1046:$G$1048,4,TRUE)), (IF(7-$F$20=1, (VLOOKUP(3,Tablas!$A$1046:$G$1048,4,TRUE)), (IF(7-$F$20=2, (VLOOKUP(3,Tablas!$A$1046:$G$1048,4,TRUE)), (IF(7-$F$20=3, (VLOOKUP(3,Tablas!$A$1046:$G$1048,4,TRUE)), (IF(7-$F$20=4, (VLOOKUP(3,Tablas!$A$1046:$G$1048,4,TRUE)), (VLOOKUP(3,Tablas!$A$1046:$G$1048,4,TRUE)))))))))))), (IF($F$18=3,(IF(3-$F$20=0,0, (IF(3-$F$20=1,(VLOOKUP(1,Tablas!$A$1046:$G$1048,4,TRUE)), (IF(3-$F$20=2, (VLOOKUP(2,Tablas!$A$1046:$G$1048,4,TRUE)), (VLOOKUP(3,Tablas!$A$1046:$G$1048,4,TRUE)))))))), (IF($F$18=2,(IF(2-$F$20=0, 0, (IF(2-$F$20=1,(VLOOKUP(1,Tablas!$A$1046:$G$1048,4,TRUE)), (IF(2-$F$20=2, (VLOOKUP(2,Tablas!$A$1046:$G$1048,4,TRUE)), 0)))))), (IF($F$18=1,(IF(1-$F$20=0, 0, (IF(1-$F$20=1,(VLOOKUP(1,Tablas!$A$1046:$G$1048,4,TRUE)),0)))),0))))))))))))))))))) -> 442.7733333
E64: Total de Prima neta | G64: =SUM(G61:G63) -> 16736.72 | H64: =SUM(H61:H63) -> 10797.92
E65: Tarifa administrativa anual | G65: 75 | H65: 75
E66: IVA (12%) | G66: =(G64+G65)*0% -> 0 | H66: =(H64+H65)*0% -> 0
E67: TOTAL de primera cuota | G67: =SUM(G64:G66) -> 16811.72 | H67: =SUM(H64:H66) -> 10872.92
E68: Costo de tarifa mensual 2 a 12 | G68: =G64+G66 -> 16736.72 | H68: =H64+H66 -> 10797.92
E69: TOTAL ANUAL | G69: =G67+(G68*11) -> 200915.64 | H69: =H67+(H68*11) -> 129650.04
E70: Ahorros en tarifas de prima para niños | G70: =IF($F$16=1,IF($F$18=0,0,IF($F$20=0,0,IF($F$20=1,(VLOOKUP(1,Tablas!$A$1046:$G$1048,3,TRUE)),(VLOOKUP(2,Tablas!$A$1046:$G$1048,3,TRUE))))), IF($F$18=0,0,IF($F$20=0,0,IF($F$20=1,(VLOOKUP(1,Tablas!$A$1046:$G$1048,3,TRUE)),IF($F$20=2,(VLOOKUP(2,Tablas!$A$1046:$G$1048,3,TRUE)), (VLOOKUP(3,Tablas!$A$1046:$G$1048,3,TRUE))))))) -> 1166.293333 | H70: =IF($F$16=1,IF($F$18=0,0,IF($F$20=0,0,IF($F$20=1,(VLOOKUP(1,Tablas!$A$1046:$G$1048,4,TRUE)),(VLOOKUP(2,Tablas!$A$1046:$G$1048,4,TRUE))))), IF($F$18=0,0,IF($F$20=0,0,IF($F$20=1,(VLOOKUP(1,Tablas!$A$1046:$G$1048,4,TRUE)),IF($F$20=2,(VLOOKUP(2,Tablas!$A$1046:$G$1048,4,TRUE)), (VLOOKUP(3,Tablas!$A$1046:$G$1048,4,TRUE))))))) -> 752.5466667
E72: Tarifas en US $ - Efectivas a partir del 1ro de enero de 2022
E73: Este presupuesto solamente tiene carácter informativo y en ningún momento expresa compromiso legal para suministrarle cobertura de seguro. La emisión de una póliza de seguro Bupa está sujeta a todas las evaluaciones de riesgo por parte de Bupa y a la recepción de todos los pagos de prima requeridos.

Sheet Global Elite
A16: GLOBAL ELITE HEALTH PLAN | D16: Nombre del Asegurado Titular | F16: =+'INGRESO DE DATOS'!$D$13 -> NOMBRE COMPLETO
D18: Número de adultos en la póliza | F18: =+'INGRESO DE DATOS'!$D$15 -> 2 | I18: Edad del Asegurado Titular | J18: =+'INGRESO DE DATOS'!$D$17 -> 65
D20: Número de niños en la póliza | F20: =+'INGRESO DE DATOS'!$J$15 -> 3 | I20: Edad del/la conyuge | J20: =+'INGRESO DE DATOS'!$J$17 -> 71
D22: Número de niños menores de 10 años | F22: =+'INGRESO DE DATOS'!$D$25 -> 2 | I22: Fecha de la cotización: | J22: =NOW() -> 2021-11-08T17:34:27.120
H23: FALSE
E24: DEDUCTIBLES | G24: PLAN 1 | H24: PLAN 2 | I24: PLAN 3 | J24: PLAN 4 | K24: PLAN 5
E25: En el país de residencia | G25: 250 | H25: 2000 | I25: 3500 | J25: 5000 | K25: 10000
E26: Fuera del país de residencia | G26: 5000 | H26: 2000 | I26: 3500 | J26: 5000 | K26: 10000
E28: Tarifas anuales
E29: Prima para Asegurado Titular | G29: =(VLOOKUP($J$18,Tablas!$A$6:$G$72,3,TRUE)) -> 27811 | H29: =(VLOOKUP($J$18,Tablas!$A$6:$G$72,4,TRUE)) -> 24376 | I29: =(VLOOKUP($J$18,Tablas!$A$6:$G$72,5,TRUE)) -> 19858 | J29: =(VLOOKUP($J$18,Tablas!$A$6:$G$72,6,TRUE)) -> 17219 | K29: =(VLOOKUP($J$18,Tablas!$A$6:$G$72,7,TRUE)) -> 13355
E30: Prima para conyuge | G30: =(IF($F$18=1,0,(VLOOKUP($J$20,Tablas!$A$6:$G$72,3,TRUE)))) -> 46292 | H30: =(IF($F$18=1,0,(VLOOKUP($J$20,Tablas!$A$6:$G$72,3,TRUE)))) -> 46292 | I30: =(IF($F$18=1,0,(VLOOKUP($J$20,Tablas!$A$6:$G$72,3,TRUE)))) -> 46292 | J30: =(IF($F$18=1,0,(VLOOKUP($J$20,Tablas!$A$6:$G$72,3,TRUE)))) -> 46292 | K30: =(IF($F$18=1,0,(VLOOKUP($J$20,Tablas!$A$6:$G$72,3,TRUE)))) -> 46292
E31: Prima para hijo (s) | G31: =(IF($F$18=1, (IF($F$20=0, 0, (IF($F$22>$F$20, (VLOOKUP($F$20,Tablas!$A$73:$G$75,3,TRUE)), (IF($F$20>4,(IF($F$22=0, (VLOOKUP(3,Tablas!$A$73:$G$75,3,TRUE)), (IF($F$22=1, (VLOOKUP(3,Tablas!$A$73:$G$75,3,TRUE)), (IF($F$22=2, (VLOOKUP(3,Tablas!$A$73:$G$75,3,TRUE)), (VLOOKUP(3,Tablas!$A$73:$G$75,3,TRUE)))))))), (IF($F$20=4,(IF(4-$F$22=0,(VLOOKUP(2,Tablas!$A$73:$G$75,3,TRUE)), (IF(4-$F$22=1,(VLOOKUP(2,Tablas!$A$73:$G$75,3,TRUE)), (IF(4-$F$22=2, (VLOOKUP(2,Tablas!$A$73:$G$75,3,TRUE)), (VLOOKUP(3,Tablas!$A$73:$G$75,3,TRUE)))))))), (IF($F$20=3,(IF(3-$F$22=0,(VLOOKUP(1,Tablas!$A$73:$G$75,3,TRUE)), (IF(3-$F$22=1,(VLOOKUP(1,Tablas!$A$73:$G$75,3,TRUE)), (IF(3-$F$22=2, (VLOOKUP(2,Tablas!$A$73:$G$75,3,TRUE)), (VLOOKUP(3,Tablas!$A$73:$G$75,3,TRUE)))))))), (IF($F$20=2,(IF(2-$F$22=0, 0, (IF(2-$F$22=1,(VLOOKUP(1,Tablas!$A$73:$G$75,3,TRUE)), (IF(2-$F$22=2, (VLOOKUP(2,Tablas!$A$73:$G$75,3,TRUE)), 0)))))), (IF($F$20=1,(IF(1-$F$22=0, 0, (IF(1-$F$22=1,(VLOOKUP(1,Tablas!$A$73:$G$75,3,TRUE)),0)))),0)))))))))))))), (IF($F$20=0, 0, (IF($F$22>$F$20, (VLOOKUP($F$20,Tablas!$A$73:$G$75,3,TRUE)), (IF($F$20=4,(IF(4-$F$22=0, 0, (IF(4-$F$22=1, (VLOOKUP(1,Tablas!$A$73:$G$75,3,TRUE)), (IF(4-$F$22=2, (VLOOKUP(2,Tablas!$A$73:$G$75,3,TRUE)), (IF(4-$F$22=3, (VLOOKUP(3,Tablas!$A$73:$G$75,3,TRUE)), (IF(4-$F$22=4, (VLOOKUP(3,Tablas!$A$73:$G$75,3,TRUE)), 0)))))))))), (IF($F$20=5,(IF(5-$F$22=0, (VLOOKUP(1,Tablas!$A$73:$G$75,3,TRUE)), (IF(5-$F$22=1, (VLOOKUP(1,Tablas!$A$73:$G$75,3,TRUE)), (IF(5-$F$22=2, (VLOOKUP(2,Tablas!$A$73:$G$75,3,TRUE)), (IF(5-$F$22=3, (VLOOKUP(3,Tablas!$A$73:$G$75,3,TRUE)), (IF(5-$F$22=4, (VLOOKUP(3,Tablas!$A$73:$G$75,3,TRUE)), (VLOOKUP(3,Tablas!$A$73:$G$75,3,TRUE)))))))))))), (IF($F$20=6,(IF(6-$F$22=0, (VLOOKUP(2,Tablas!$A$73:$G$75,3,TRUE)), (IF(6-$F$22=1, (VLOOKUP(2,Tablas!$A$73:$G$75,3,TRUE)), (IF(6-$F$22=2, (VLOOKUP(2,Tablas!$A$73:$G$75,3,TRUE)), (IF(6-$F$22=3, (VLOOKUP(3,Tablas!$A$73:$G$75,3,TRUE)), (IF(6-$F$22=4, (VLOOKUP(3,Tablas!$A$73:$G$75,3,TRUE)), (VLOOKUP(3,Tablas!$A$73:$G$75,3,TRUE)))))))))))), (IF($F$20>6,(IF(7-$F$22=0, (VLOOKUP(3,Tablas!$A$73:$G$75,3,TRUE)), (IF(7-$F$22=1, (VLOOKUP(3,Tablas!$A$73:$B$75,3,TRUE)), (IF(7-$F$22=2, (VLOOKUP(3,Tablas!$A$73:$G$75,3,TRUE)), (IF(7-$F$22=3, (VLOOKUP(3,Tablas!$A$73:$G$75,3,TRUE)), (IF(7-$F$22=4, (VLOOKUP(3,Tablas!$A$73:$G$75,3,TRUE)), (VLOOKUP(3,Tablas!$A$73:$G$75,3,TRUE)))))))))))), (IF($F$20=3,(IF(3-$F$22=0,0, (IF(3-$F$22=1,(VLOOKUP(1,Tablas!$A$73:$G$75,3,TRUE)), (IF(3-$F$22=2, (VLOOKUP(2,Tablas!$A$73:$G$75,3,TRUE)), (VLOOKUP(3,Tablas!$A$73:$G$75,3,TRUE)))))))), (IF($F$20=2,(IF(2-$F$22=0, 0, (IF(2-$F$22=1,(VLOOKUP(1,Tablas!$A$73:$G$75,3,TRUE)), (IF(2-$F$22=2, (VLOOKUP(2,Tablas!$A$73:$G$75,3,TRUE)), 0)))))), (IF($F$20=1,(IF(1-$F$22=0, 0, (IF(1-$F$22=1,(VLOOKUP(1,Tablas!$A$73:$G$75,3,TRUE)),0)))),0)))))))))))))))))))) -> 3163 | H31: =(IF($F$18=1, (IF($F$20=0, 0, (IF($F$22>$F$20, (VLOOKUP($F$20,Tablas!$A$73:$G$75,3,TRUE)), (IF($F$20>4,(IF($F$22=0, (VLOOKUP(3,Tablas!$A$73:$G$75,3,TRUE)), (IF($F$22=1, (VLOOKUP(3,Tablas!$A$73:$G$75,3,TRUE)), (IF($F$22=2, (VLOOKUP(3,Tablas!$A$73:$G$75,3,TRUE)), (VLOOKUP(3,Tablas!$A$73:$G$75,3,TRUE)))))))), (IF($F$20=4,(IF(4-$F$22=0,(VLOOKUP(2,Tablas!$A$73:$G$75,3,TRUE)), (IF(4-$F$22=1,(VLOOKUP(2,Tablas!$A$73:$G$75,3,TRUE)), (IF(4-$F$22=2, (VLOOKUP(2,Tablas!$A$73:$G$75,3,TRUE)), (VLOOKUP(3,Tablas!$A$73:$G$75,3,TRUE)))))))), (IF($F$20=3,(IF(3-$F$22=0,(VLOOKUP(1,Tablas!$A$73:$G$75,3,TRUE)), (IF(3-$F$22=1,(VLOOKUP(1,Tablas!$A$73:$G$75,3,TRUE)), (IF(3-$F$22=2, (VLOOKUP(2,Tablas!$A$73:$G$75,3,TRUE)), (VLOOKUP(3,Tablas!$A$73:$G$75,3,TRUE)))))))), (IF($F$20=2,(IF(2-$F$22=0, 0, (IF(2-$F$22=1,(VLOOKUP(1,Tablas!$A$73:$G$75,3,TRUE)), (IF(2-$F$22=2, (VLOOKUP(2,Tablas!$A$73:$G$75,3,TRUE)), 0)))))), (IF($F$20=1,(IF(1-$F$22=0, 0, (IF(1-$F$22=1,(VLOOKUP(1,Tablas!$A$73:$G$75,3,TRUE)),0)))),0)))))))))))))), (IF($F$20=0, 0, (IF($F$22>$F$20, (VLOOKUP($F$20,Tablas!$A$73:$G$75,3,TRUE)), (IF($F$20=4,(IF(4-$F$22=0, 0, (IF(4-$F$22=1, (VLOOKUP(1,Tablas!$A$73:$G$75,3,TRUE)), (IF(4-$F$22=2, (VLOOKUP(2,Tablas!$A$73:$G$75,3,TRUE)), (IF(4-$F$22=3, (VLOOKUP(3,Tablas!$A$73:$G$75,3,TRUE)), (IF(4-$F$22=4, (VLOOKUP(3,Tablas!$A$73:$G$75,3,TRUE)), 0)))))))))), (IF($F$20=5,(IF(5-$F$22=0, (VLOOKUP(1,Tablas!$A$73:$G$75,3,TRUE)), (IF(5-$F$22=1, (VLOOKUP(1,Tablas!$A$73:$G$75,3,TRUE)), (IF(5-$F$22=2, (VLOOKUP(2,Tablas!$A$73:$G$75,3,TRUE)), (IF(5-$F$22=3, (VLOOKUP(3,Tablas!$A$73:$G$75,3,TRUE)), (IF(5-$F$22=4, (VLOOKUP(3,Tablas!$A$73:$G$75,3,TRUE)), (VLOOKUP(3,Tablas!$A$73:$G$75,3,TRUE)))))))))))), (IF($F$20=6,(IF(6-$F$22=0, (VLOOKUP(2,Tablas!$A$73:$G$75,3,TRUE)), (IF(6-$F$22=1, (VLOOKUP(2,Tablas!$A$73:$G$75,3,TRUE)), (IF(6-$F$22=2, (VLOOKUP(2,Tablas!$A$73:$G$75,3,TRUE)), (IF(6-$F$22=3, (VLOOKUP(3,Tablas!$A$73:$G$75,3,TRUE)), (IF(6-$F$22=4, (VLOOKUP(3,Tablas!$A$73:$G$75,3,TRUE)), (VLOOKUP(3,Tablas!$A$73:$G$75,3,TRUE)))))))))))), (IF($F$20>6,(IF(7-$F$22=0, (VLOOKUP(3,Tablas!$A$73:$G$75,3,TRUE)), (IF(7-$F$22=1, (VLOOKUP(3,Tablas!$A$73:$B$75,3,TRUE)), (IF(7-$F$22=2, (VLOOKUP(3,Tablas!$A$73:$G$75,3,TRUE)), (IF(7-$F$22=3, (VLOOKUP(3,Tablas!$A$73:$G$75,3,TRUE)), (IF(7-$F$22=4, (VLOOKUP(3,Tablas!$A$73:$G$75,3,TRUE)), (VLOOKUP(3,Tablas!$A$73:$G$75,3,TRUE)))))))))))), (IF($F$20=3,(IF(3-$F$22=0,0, (IF(3-$F$22=1,(VLOOKUP(1,Tablas!$A$73:$G$75,3,TRUE)), (IF(3-$F$22=2, (VLOOKUP(2,Tablas!$A$73:$G$75,3,TRUE)), (VLOOKUP(3,Tablas!$A$73:$G$75,3,TRUE)))))))), (IF($F$20=2,(IF(2-$F$22=0, 0, (IF(2-$F$22=1,(VLOOKUP(1,Tablas!$A$73:$G$75,3,TRUE)), (IF(2-$F$22=2, (VLOOKUP(2,Tablas!$A$73:$G$75,3,TRUE)), 0)))))), (IF($F$20=1,(IF(1-$F$22=0, 0, (IF(1-$F$22=1,(VLOOKUP(1,Tablas!$A$73:$G$75,3,TRUE)),0)))),0)))))))))))))))))))) -> 3163 | I31: =(IF($F$18=1, (IF($F$20=0, 0, (IF($F$22>$F$20, (VLOOKUP($F$20,Tablas!$A$73:$G$75,3,TRUE)), (IF($F$20>4,(IF($F$22=0, (VLOOKUP(3,Tablas!$A$73:$G$75,3,TRUE)), (IF($F$22=1, (VLOOKUP(3,Tablas!$A$73:$G$75,3,TRUE)), (IF($F$22=2, (VLOOKUP(3,Tablas!$A$73:$G$75,3,TRUE)), (VLOOKUP(3,Tablas!$A$73:$G$75,3,TRUE)))))))), (IF($F$20=4,(IF(4-$F$22=0,(VLOOKUP(2,Tablas!$A$73:$G$75,3,TRUE)), (IF(4-$F$22=1,(VLOOKUP(2,Tablas!$A$73:$G$75,3,TRUE)), (IF(4-$F$22=2, (VLOOKUP(2,Tablas!$A$73:$G$75,3,TRUE)), (VLOOKUP(3,Tablas!$A$73:$G$75,3,TRUE)))))))), (IF($F$20=3,(IF(3-$F$22=0,(VLOOKUP(1,Tablas!$A$73:$G$75,3,TRUE)), (IF(3-$F$22=1,(VLOOKUP(1,Tablas!$A$73:$G$75,3,TRUE)), (IF(3-$F$22=2, (VLOOKUP(2,Tablas!$A$73:$G$75,3,TRUE)), (VLOOKUP(3,Tablas!$A$73:$G$75,3,TRUE)))))))), (IF($F$20=2,(IF(2-$F$22=0, 0, (IF(2-$F$22=1,(VLOOKUP(1,Tablas!$A$73:$G$75,3,TRUE)), (IF(2-$F$22=2, (VLOOKUP(2,Tablas!$A$73:$G$75,3,TRUE)), 0)))))), (IF($F$20=1,(IF(1-$F$22=0, 0, (IF(1-$F$22=1,(VLOOKUP(1,Tablas!$A$73:$G$75,3,TRUE)),0)))),0)))))))))))))), (IF($F$20=0, 0, (IF($F$22>$F$20, (VLOOKUP($F$20,Tablas!$A$73:$G$75,3,TRUE)), (IF($F$20=4,(IF(4-$F$22=0, 0, (IF(4-$F$22=1, (VLOOKUP(1,Tablas!$A$73:$G$75,3,TRUE)), (IF(4-$F$22=2, (VLOOKUP(2,Tablas!$A$73:$G$75,3,TRUE)), (IF(4-$F$22=3, (VLOOKUP(3,Tablas!$A$73:$G$75,3,TRUE)), (IF(4-$F$22=4, (VLOOKUP(3,Tablas!$A$73:$G$75,3,TRUE)), 0)))))))))), (IF($F$20=5,(IF(5-$F$22=0, (VLOOKUP(1,Tablas!$A$73:$G$75,3,TRUE)), (IF(5-$F$22=1, (VLOOKUP(1,Tablas!$A$73:$G$75,3,TRUE)), (IF(5-$F$22=2, (VLOOKUP(2,Tablas!$A$73:$G$75,3,TRUE)), (IF(5-$F$22=3, (VLOOKUP(3,Tablas!$A$73:$G$75,3,TRUE)), (IF(5-$F$22=4, (VLOOKUP(3,Tablas!$A$73:$G$75,3,TRUE)), (VLOOKUP(3,Tablas!$A$73:$G$75,3,TRUE)))))))))))), (IF($F$20=6,(IF(6-$F$22=0, (VLOOKUP(2,Tablas!$A$73:$G$75,3,TRUE)), (IF(6-$F$22=1, (VLOOKUP(2,Tablas!$A$73:$G$75,3,TRUE)), (IF(6-$F$22=2, (VLOOKUP(2,Tablas!$A$73:$G$75,3,TRUE)), (IF(6-$F$22=3, (VLOOKUP(3,Tablas!$A$73:$G$75,3,TRUE)), (IF(6-$F$22=4, (VLOOKUP(3,Tablas!$A$73:$G$75,3,TRUE)), (VLOOKUP(3,Tablas!$A$73:$G$75,3,TRUE)))))))))))), (IF($F$20>6,(IF(7-$F$22=0, (VLOOKUP(3,Tablas!$A$73:$G$75,3,TRUE)), (IF(7-$F$22=1, (VLOOKUP(3,Tablas!$A$73:$B$75,3,TRUE)), (IF(7-$F$22=2, (VLOOKUP(3,Tablas!$A$73:$G$75,3,TRUE)), (IF(7-$F$22=3, (VLOOKUP(3,Tablas!$A$73:$G$75,3,TRUE)), (IF(7-$F$22=4, (VLOOKUP(3,Tablas!$A$73:$G$75,3,TRUE)), (VLOOKUP(3,Tablas!$A$73:$G$75,3,TRUE)))))))))))), (IF($F$20=3,(IF(3-$F$22=0,0, (IF(3-$F$22=1,(VLOOKUP(1,Tablas!$A$73:$G$75,3,TRUE)), (IF(3-$F$22=2, (VLOOKUP(2,Tablas!$A$73:$G$75,3,TRUE)), (VLOOKUP(3,Tablas!$A$73:$G$75,3,TRUE)))))))), (IF($F$20=2,(IF(2-$F$22=0, 0, (IF(2-$F$22=1,(VLOOKUP(1,Tablas!$A$73:$G$75,3,TRUE)), (IF(2-$F$22=2, (VLOOKUP(2,Tablas!$A$73:$G$75,3,TRUE)), 0)))))), (IF($F$20=1,(IF(1-$F$22=0, 0, (IF(1-$F$22=1,(VLOOKUP(1,Tablas!$A$73:$G$75,3,TRUE)),0)))),0)))))))))))))))))))) -> 3163 | J31: =(IF($F$18=1, (IF($F$20=0, 0, (IF($F$22>$F$20, (VLOOKUP($F$20,Tablas!$A$73:$G$75,3,TRUE)), (IF($F$20>4,(IF($F$22=0, (VLOOKUP(3,Tablas!$A$73:$G$75,3,TRUE)), (IF($F$22=1, (VLOOKUP(3,Tablas!$A$73:$G$75,3,TRUE)), (IF($F$22=2, (VLOOKUP(3,Tablas!$A$73:$G$75,3,TRUE)), (VLOOKUP(3,Tablas!$A$73:$G$75,3,TRUE)))))))), (IF($F$20=4,(IF(4-$F$22=0,(VLOOKUP(2,Tablas!$A$73:$G$75,3,TRUE)), (IF(4-$F$22=1,(VLOOKUP(2,Tablas!$A$73:$G$75,3,TRUE)), (IF(4-$F$22=2, (VLOOKUP(2,Tablas!$A$73:$G$75,3,TRUE)), (VLOOKUP(3,Tablas!$A$73:$G$75,3,TRUE)))))))), (IF($F$20=3,(IF(3-$F$22=0,(VLOOKUP(1,Tablas!$A$73:$G$75,3,TRUE)), (IF(3-$F$22=1,(VLOOKUP(1,Tablas!$A$73:$G$75,3,TRUE)), (IF(3-$F$22=2, (VLOOKUP(2,Tablas!$A$73:$G$75,3,TRUE)), (VLOOKUP(3,Tablas!$A$73:$G$75,3,TRUE)))))))), (IF($F$20=2,(IF(2-$F$22=0, 0, (IF(2-$F$22=1,(VLOOKUP(1,Tablas!$A$73:$G$75,3,TRUE)), (IF(2-$F$22=2, (VLOOKUP(2,Tablas!$A$73:$G$75,3,TRUE)), 0)))))), (IF($F$20=1,(IF(1-$F$22=0, 0, (IF(1-$F$22=1,(VLOOKUP(1,Tablas!$A$73:$G$75,3,TRUE)),0)))),0)))))))))))))), (IF($F$20=0, 0, (IF($F$22>$F$20, (VLOOKUP($F$20,Tablas!$A$73:$G$75,3,TRUE)), (IF($F$20=4,(IF(4-$F$22=0, 0, (IF(4-$F$22=1, (VLOOKUP(1,Tablas!$A$73:$G$75,3,TRUE)), (IF(4-$F$22=2, (VLOOKUP(2,Tablas!$A$73:$G$75,3,TRUE)), (IF(4-$F$22=3, (VLOOKUP(3,Tablas!$A$73:$G$75,3,TRUE)), (IF(4-$F$22=4, (VLOOKUP(3,Tablas!$A$73:$G$75,3,TRUE)), 0)))))))))), (IF($F$20=5,(IF(5-$F$22=0, (VLOOKUP(1,Tablas!$A$73:$G$75,3,TRUE)), (IF(5-$F$22=1, (VLOOKUP(1,Tablas!$A$73:$G$75,3,TRUE)), (IF(5-$F$22=2, (VLOOKUP(2,Tablas!$A$73:$G$75,3,TRUE)), (IF(5-$F$22=3, (VLOOKUP(3,Tablas!$A$73:$G$75,3,TRUE)), (IF(5-$F$22=4, (VLOOKUP(3,Tablas!$A$73:$G$75,3,TRUE)), (VLOOKUP(3,Tablas!$A$73:$G$75,3,TRUE)))))))))))), (IF($F$20=6,(IF(6-$F$22=0, (VLOOKUP(2,Tablas!$A$73:$G$75,3,TRUE)), (IF(6-$F$22=1, (VLOOKUP(2,Tablas!$A$73:$G$75,3,TRUE)), (IF(6-$F$22=2, (VLOOKUP(2,Tablas!$A$73:$G$75,3,TRUE)), (IF(6-$F$22=3, (VLOOKUP(3,Tablas!$A$73:$G$75,3,TRUE)), (IF(6-$F$22=4, (VLOOKUP(3,Tablas!$A$73:$G$75,3,TRUE)), (VLOOKUP(3,Tablas!$A$73:$G$75,3,TRUE)))))))))))), (IF($F$20>6,(IF(7-$F$22=0, (VLOOKUP(3,Tablas!$A$73:$G$75,3,TRUE)), (IF(7-$F$22=1, (VLOOKUP(3,Tablas!$A$73:$B$75,3,TRUE)), (IF(7-$F$22=2, (VLOOKUP(3,Tablas!$A$73:$G$75,3,TRUE)), (IF(7-$F$22=3, (VLOOKUP(3,Tablas!$A$73:$G$75,3,TRUE)), (IF(7-$F$22=4, (VLOOKUP(3,Tablas!$A$73:$G$75,3,TRUE)), (VLOOKUP(3,Tablas!$A$73:$G$75,3,TRUE)))))))))))), (IF($F$20=3,(IF(3-$F$22=0,0, (IF(3-$F$22=1,(VLOOKUP(1,Tablas!$A$73:$G$75,3,TRUE)), (IF(3-$F$22=2, (VLOOKUP(2,Tablas!$A$73:$G$75,3,TRUE)), (VLOOKUP(3,Tablas!$A$73:$G$75,3,TRUE)))))))), (IF($F$20=2,(IF(2-$F$22=0, 0, (IF(2-$F$22=1,(VLOOKUP(1,Tablas!$A$73:$G$75,3,TRUE)), (IF(2-$F$22=2, (VLOOKUP(2,Tablas!$A$73:$G$75,3,TRUE)), 0)))))), (IF($F$20=1,(IF(1-$F$22=0, 0, (IF(1-$F$22=1,(VLOOKUP(1,Tablas!$A$73:$G$75,3,TRUE)),0)))),0)))))))))))))))))))) -> 3163 | K31: =(IF($F$18=1, (IF($F$20=0, 0, (IF($F$22>$F$20, (VLOOKUP($F$20,Tablas!$A$73:$G$75,3,TRUE)), (IF($F$20>4,(IF($F$22=0, (VLOOKUP(3,Tablas!$A$73:$G$75,3,TRUE)), (IF($F$22=1, (VLOOKUP(3,Tablas!$A$73:$G$75,3,TRUE)), (IF($F$22=2, (VLOOKUP(3,Tablas!$A$73:$G$75,3,TRUE)), (VLOOKUP(3,Tablas!$A$73:$G$75,3,TRUE)))))))), (IF($F$20=4,(IF(4-$F$22=0,(VLOOKUP(2,Tablas!$A$73:$G$75,3,TRUE)), (IF(4-$F$22=1,(VLOOKUP(2,Tablas!$A$73:$G$75,3,TRUE)), (IF(4-$F$22=2, (VLOOKUP(2,Tablas!$A$73:$G$75,3,TRUE)), (VLOOKUP(3,Tablas!$A$73:$G$75,3,TRUE)))))))), (IF($F$20=3,(IF(3-$F$22=0,(VLOOKUP(1,Tablas!$A$73:$G$75,3,TRUE)), (IF(3-$F$22=1,(VLOOKUP(1,Tablas!$A$73:$G$75,3,TRUE)), (IF(3-$F$22=2, (VLOOKUP(2,Tablas!$A$73:$G$75,3,TRUE)), (VLOOKUP(3,Tablas!$A$73:$G$75,3,TRUE)))))))), (IF($F$20=2,(IF(2-$F$22=0, 0, (IF(2-$F$22=1,(VLOOKUP(1,Tablas!$A$73:$G$75,3,TRUE)), (IF(2-$F$22=2, (VLOOKUP(2,Tablas!$A$73:$G$75,3,TRUE)), 0)))))), (IF($F$20=1,(IF(1-$F$22=0, 0, (IF(1-$F$22=1,(VLOOKUP(1,Tablas!$A$73:$G$75,3,TRUE)),0)))),0)))))))))))))), (IF($F$20=0, 0, (IF($F$22>$F$20, (VLOOKUP($F$20,Tablas!$A$73:$G$75,3,TRUE)), (IF($F$20=4,(IF(4-$F$22=0, 0, (IF(4-$F$22=1, (VLOOKUP(1,Tablas!$A$73:$G$75,3,TRUE)), (IF(4-$F$22=2, (VLOOKUP(2,Tablas!$A$73:$G$75,3,TRUE)), (IF(4-$F$22=3, (VLOOKUP(3,Tablas!$A$73:$G$75,3,TRUE)), (IF(4-$F$22=4, (VLOOKUP(3,Tablas!$A$73:$G$75,3,TRUE)), 0)))))))))), (IF($F$20=5,(IF(5-$F$22=0, (VLOOKUP(1,Tablas!$A$73:$G$75,3,TRUE)), (IF(5-$F$22=1, (VLOOKUP(1,Tablas!$A$73:$G$75,3,TRUE)), (IF(5-$F$22=2, (VLOOKUP(2,Tablas!$A$73:$G$75,3,TRUE)), (IF(5-$F$22=3, (VLOOKUP(3,Tablas!$A$73:$G$75,3,TRUE)), (IF(5-$F$22=4, (VLOOKUP(3,Tablas!$A$73:$G$75,3,TRUE)), (VLOOKUP(3,Tablas!$A$73:$G$75,3,TRUE)))))))))))), (IF($F$20=6,(IF(6-$F$22=0, (VLOOKUP(2,Tablas!$A$73:$G$75,3,TRUE)), (IF(6-$F$22=1, (VLOOKUP(2,Tablas!$A$73:$G$75,3,TRUE)), (IF(6-$F$22=2, (VLOOKUP(2,Tablas!$A$73:$G$75,3,TRUE)), (IF(6-$F$22=3, (VLOOKUP(3,Tablas!$A$73:$G$75,3,TRUE)), (IF(6-$F$22=4, (VLOOKUP(3,Tablas!$A$73:$G$75,3,TRUE)), (VLOOKUP(3,Tablas!$A$73:$G$75,3,TRUE)))))))))))), (IF($F$20>6,(IF(7-$F$22=0, (VLOOKUP(3,Tablas!$A$73:$G$75,3,TRUE)), (IF(7-$F$22=1, (VLOOKUP(3,Tablas!$A$73:$B$75,3,TRUE)), (IF(7-$F$22=2, (VLOOKUP(3,Tablas!$A$73:$G$75,3,TRUE)), (IF(7-$F$22=3, (VLOOKUP(3,Tablas!$A$73:$G$75,3,TRUE)), (IF(7-$F$22=4, (VLOOKUP(3,Tablas!$A$73:$G$75,3,TRUE)), (VLOOKUP(3,Tablas!$A$73:$G$75,3,TRUE)))))))))))), (IF($F$20=3,(IF(3-$F$22=0,0, (IF(3-$F$22=1,(VLOOKUP(1,Tablas!$A$73:$G$75,3,TRUE)), (IF(3-$F$22=2, (VLOOKUP(2,Tablas!$A$73:$G$75,3,TRUE)), (VLOOKUP(3,Tablas!$A$73:$G$75,3,TRUE)))))))), (IF($F$20=2,(IF(2-$F$22=0, 0, (IF(2-$F$22=1,(VLOOKUP(1,Tablas!$A$73:$G$75,3,TRUE)), (IF(2-$F$22=2, (VLOOKUP(2,Tablas!$A$73:$G$75,3,TRUE)), 0)))))), (IF($F$20=1,(IF(1-$F$22=0, 0, (IF(1-$F$22=1,(VLOOKUP(1,Tablas!$A$73:$G$75,3,TRUE)),0)))),0)))))))))))))))))))) -> 3163
E32: Total de Prima neta | G32: =SUM(G29:G31) -> 77266 | H32: =SUM(H29:H31) -> 73831 | I32: =SUM(I29:I31) -> 69313 | J32: =SUM(J29:J31) -> 66674 | K32: =SUM(K29:K31) -> 62810
E33: Ajuste por variante con coaseguro fuera del país de residencia | G33: =IF('INGRESO DE DATOS'!$H$20,G32*-25%,0) -> 0 | H33: =IF('INGRESO DE DATOS'!$H$20,H32*-25%,0) -> 0 | I33: =IF('INGRESO DE DATOS'!$H$20,I32*-25%,0) -> 0 | J33: =IF('INGRESO DE DATOS'!$H$20,J32*-25%,0) -> 0 | K33: =IF('INGRESO DE DATOS'!$H$20,K32*-25%,0) -> 0
E34: Tarifa administrativa anual | G34: 75 | H34: 75 | I34: 75 | J34: 75 | K34: 75
E35: IVA (12%) | G35: =(G32+G34)*0% -> 0 | H35: =(H32+H34)*0% -> 0 | I35: 0 | J35: 0 | K35: 0
E36: TOTAL ANUAL | G36: =SUM(G32:G35) -> 77341 | H36: =SUM(H32:H35) -> 73906 | I36: 69388 | J36: 66749 | K36: 62885
E37: Ahorros en tarifas de prima para niños | G37: =IF($F$18=1,IF($F$20=0,0,IF($F$22=0,0,IF($F$22=1,(VLOOKUP(1,Tablas!$A$73:$B$75,3,TRUE)),(VLOOKUP(2,Tablas!$A$73:$G$75,3,TRUE))))), IF($F$20=0,0,IF($F$22=0,0,IF($F$22=1,(VLOOKUP(1,Tablas!$A$73:$G$75,3,TRUE)),IF($F$22=2,(VLOOKUP(2,Tablas!$A$73:$G$75,3,TRUE)), (VLOOKUP(3,Tablas!$A$73:$G$75,3,TRUE))))))) -> 5379 | H37: =IF($F$18=1,IF($F$20=0,0,IF($F$22=0,0,IF($F$22=1,(VLOOKUP(1,Tablas!$A$73:$B$75,3,TRUE)),(VLOOKUP(2,Tablas!$A$73:$G$75,3,TRUE))))), IF($F$20=0,0,IF($F$22=0,0,IF($F$22=1,(VLOOKUP(1,Tablas!$A$73:$G$75,3,TRUE)),IF($F$22=2,(VLOOKUP(2,Tablas!$A$73:$G$75,3,TRUE)), (VLOOKUP(3,Tablas!$A$73:$G$75,3,TRUE))))))) -> 5379 | I37: =IF($F$18=1,IF($F$20=0,0,IF($F$22=0,0,IF($F$22=1,(VLOOKUP(1,Tablas!$A$73:$B$75,3,TRUE)),(VLOOKUP(2,Tablas!$A$73:$G$75,3,TRUE))))), IF($F$20=0,0,IF($F$22=0,0,IF($F$22=1,(VLOOKUP(1,Tablas!$A$73:$G$75,3,TRUE)),IF($F$22=2,(VLOOKUP(2,Tablas!$A$73:$G$75,3,TRUE)), (VLOOKUP(3,Tablas!$A$73:$G$75,3,TRUE))))))) -> 5379 | J37: =IF($F$18=1,IF($F$20=0,0,IF($F$22=0,0,IF($F$22=1,(VLOOKUP(1,Tablas!$A$73:$B$75,3,TRUE)),(VLOOKUP(2,Tablas!$A$73:$G$75,3,TRUE))))), IF($F$20=0,0,IF($F$22=0,0,IF($F$22=1,(VLOOKUP(1,Tablas!$A$73:$G$75,3,TRUE)),IF($F$22=2,(VLOOKUP(2,Tablas!$A$73:$G$75,3,TRUE)), (VLOOKUP(3,Tablas!$A$73:$G$75,3,TRUE))))))) -> 5379 | K37: =IF($F$18=1,IF($F$20=0,0,IF($F$22=0,0,IF($F$22=1,(VLOOKUP(1,Tablas!$A$73:$B$75,3,TRUE)),(VLOOKUP(2,Tablas!$A$73:$G$75,3,TRUE))))), IF($F$20=0,0,IF($F$22=0,0,IF($F$22=1,(VLOOKUP(1,Tablas!$A$73:$G$75,3,TRUE)),IF($F$22=2,(VLOOKUP(2,Tablas!$A$73:$G$75,3,TRUE)), (VLOOKUP(3,Tablas!$A$73:$G$75,3,TRUE))))))) -> 5379
E39: Tarifas semi anuales
E40: Prima para Asegurado Titular | G40: =VLOOKUP($J$18,Tablas!$A$455:$G$521,3,TRUE) -> 14739.83 | H40: =VLOOKUP($J$18,Tablas!$A$455:$G$521,4,TRUE) -> 12919.28 | I40: =VLOOKUP($J$18,Tablas!$A$455:$G$521,5,TRUE) -> 10524.74 | J40: =VLOOKUP($J$18,Tablas!$A$455:$G$521,6,TRUE) -> 9126.07 | K40: =VLOOKUP($J$18,Tablas!$A$455:$G$521,7,TRUE) -> 7078.15
E41: Prima para conyuge | G41: =IF($F$18=1,0,(VLOOKUP($J$20,Tablas!$A$455:$G$521,3,TRUE))) -> 24534.76 | H41: =IF($F$18=1,0,(VLOOKUP($J$20,Tablas!$A$455:$G$521,4,TRUE))) -> 21504.75 | I41: =IF($F$18=1,0,(VLOOKUP($J$20,Tablas!$A$455:$G$521,5,TRUE))) -> 17579.57 | J41: =IF($F$18=1,0,(VLOOKUP($J$20,Tablas!$A$455:$G$521,6,TRUE))) -> 15243.86 | K41: =IF($F$18=1,0,(VLOOKUP($J$20,Tablas!$A$455:$G$521,7,TRUE))) -> 11821.65
E42: Prima para hijo (s) | G42: =IF($F$18=1, (IF($F$20=0, 0, (IF($F$22>$F$20, (VLOOKUP($F$20,Tablas!$A$522:$G$524,3,TRUE)), (IF($F$20>4,(IF($F$22=0, (VLOOKUP(3,Tablas!$A$522:$G$524,3,TRUE)), (IF($F$22=1, (VLOOKUP(3,Tablas!$A$522:$G$524,3,TRUE)), (IF($F$22=2, (VLOOKUP(3,Tablas!$A$522:$G$524,3,TRUE)), (VLOOKUP(3,Tablas!$A$522:$G$524,3,TRUE)))))))), (IF($F$20=4,(IF(4-$F$22=0,(VLOOKUP(2,Tablas!$A$522:$G$524,3,TRUE)), (IF(4-$F$22=1,(VLOOKUP(2,Tablas!$A$522:$G$524,3,TRUE)), (IF(4-$F$22=2, (VLOOKUP(2,Tablas!$A$522:$G$524,3,TRUE)), (VLOOKUP(3,Tablas!$A$522:$G$524,3,TRUE)))))))), (IF($F$20=3,(IF(3-$F$22=0,(VLOOKUP(1,Tablas!$A$522:$G$524,3,TRUE)), (IF(3-$F$22=1,(VLOOKUP(1,Tablas!$A$522:$G$524,3,TRUE)), (IF(3-$F$22=2, (VLOOKUP(2,Tablas!$A$522:$G$524,3,TRUE)), (VLOOKUP(3,Tablas!$A$522:$G$524,3,TRUE)))))))), (IF($F$20=2,(IF(2-$F$22=0, 0, (IF(2-$F$22=1,(VLOOKUP(1,Tablas!$A$522:$G$524,3,TRUE)), (IF(2-$F$22=2, (VLOOKUP(2,Tablas!$A$522:$G$524,3,TRUE)), 0)))))), (IF($F$20=1,(IF(1-$F$22=0, 0, (IF(1-$F$22=1,(VLOOKUP(1,Tablas!$A$522:$G$524,3,TRUE)),0)))),0)))))))))))))), (IF($F$20=0, 0, (IF($F$22>$F$20, (VLOOKUP($F$20,Tablas!$A$522:$G$524,3,TRUE)), (IF($F$20=4,(IF(4-$F$22=0, 0, (IF(4-$F$22=1, (VLOOKUP(1,Tablas!$A$522:$G$524,3,TRUE)), (IF(4-$F$22=2, (VLOOKUP(2,Tablas!$A$522:$G$524,3,TRUE)), (IF(4-$F$22=3, (VLOOKUP(3,Tablas!$A$522:$G$524,3,TRUE)), (IF(4-$F$22=4, (VLOOKUP(3,Tablas!$A$522:$G$524,3,TRUE)), 0)))))))))), (IF($F$20=5,(IF(5-$F$22=0, (VLOOKUP(1,Tablas!$A$522:$G$524,3,TRUE)), (IF(5-$F$22=1, (VLOOKUP(1,Tablas!$A$522:$G$524,3,TRUE)), (IF(5-$F$22=2, (VLOOKUP(2,Tablas!$A$522:$G$524,3,TRUE)), (IF(5-$F$22=3, (VLOOKUP(3,Tablas!$A$522:$G$524,3,TRUE)), (IF(5-$F$22=4, (VLOOKUP(3,Tablas!$A$522:$G$524,3,TRUE)), (VLOOKUP(3,Tablas!$A$522:$G$524,3,TRUE)))))))))))), (IF($F$20=6,(IF(6-$F$22=0, (VLOOKUP(2,Tablas!$A$522:$G$524,3,TRUE)), (IF(6-$F$22=1, (VLOOKUP(2,Tablas!$A$522:$G$524,3,TRUE)), (IF(6-$F$22=2, (VLOOKUP(2,Tablas!$A$522:$G$524,3,TRUE)), (IF(6-$F$22=3, (VLOOKUP(3,Tablas!$A$522:$G$524,3,TRUE)), (IF(6-$F$22=4, (VLOOKUP(3,Tablas!$A$522:$G$524,3,TRUE)), (VLOOKUP(3,Tablas!$A$522:$G$524,3,TRUE)))))))))))), (IF($F$20>6,(IF(7-$F$22=0, (VLOOKUP(3,Tablas!$A$522:$G$524,3,TRUE)), (IF(7-$F$22=1, (VLOOKUP(3,Tablas!$A$522:$G$524,3,TRUE)), (IF(7-$F$22=2, (VLOOKUP(3,Tablas!$A$522:$G$524,3,TRUE)), (IF(7-$F$22=3, (VLOOKUP(3,Tablas!$A$522:$G$524,3,TRUE)), (IF(7-$F$22=4, (VLOOKUP(3,Tablas!$A$522:$G$524,3,TRUE)), (VLOOKUP(3,Tablas!$A$522:$G$524,3,TRUE)))))))))))), (IF($F$20=3,(IF(3-$F$22=0,0, (IF(3-$F$22=1,(VLOOKUP(1,Tablas!$A$522:$G$524,3,TRUE)), (IF(3-$F$22=2, (VLOOKUP(2,Tablas!$A$522:$G$524,3,TRUE)), (VLOOKUP(3,Tablas!$A$522:$G$524,3,TRUE)))))))), (IF($F$20=2,(IF(2-$F$22=0, 0, (IF(2-$F$22=1,(VLOOKUP(1,Tablas!$A$522:$G$524,3,TRUE)), (IF(2-$F$22=2, (VLOOKUP(2,Tablas!$A$522:$G$524,3,TRUE)), 0)))))), (IF($F$20=1,(IF(1-$F$22=0, 0, (IF(1-$F$22=1,(VLOOKUP(1,Tablas!$A$522:$G$524,3,TRUE)),0)))),0))))))))))))))))))) -> 1676.39 | H42: =IF($F$18=1, (IF($F$20=0, 0, (IF($F$22>$F$20, (VLOOKUP($F$20,Tablas!$A$522:$G$524,4,TRUE)), (IF($F$20>4,(IF($F$22=0, (VLOOKUP(3,Tablas!$A$522:$G$524,4,TRUE)), (IF($F$22=1, (VLOOKUP(3,Tablas!$A$522:$G$524,4,TRUE)), (IF($F$22=2, (VLOOKUP(3,Tablas!$A$522:$G$524,4,TRUE)), (VLOOKUP(3,Tablas!$A$522:$G$524,4,TRUE)))))))), (IF($F$20=4,(IF(4-$F$22=0,(VLOOKUP(2,Tablas!$A$522:$G$524,4,TRUE)), (IF(4-$F$22=1,(VLOOKUP(2,Tablas!$A$522:$G$524,4,TRUE)), (IF(4-$F$22=2, (VLOOKUP(2,Tablas!$A$522:$G$524,4,TRUE)), (VLOOKUP(3,Tablas!$A$522:$G$524,4,TRUE)))))))), (IF($F$20=3,(IF(3-$F$22=0,(VLOOKUP(1,Tablas!$A$522:$G$524,4,TRUE)), (IF(3-$F$22=1,(VLOOKUP(1,Tablas!$A$522:$G$524,4,TRUE)), (IF(3-$F$22=2, (VLOOKUP(2,Tablas!$A$522:$G$524,4,TRUE)), (VLOOKUP(3,Tablas!$A$522:$G$524,4,TRUE)))))))), (IF($F$20=2,(IF(2-$F$22=0, 0, (IF(2-$F$22=1,(VLOOKUP(1,Tablas!$A$522:$G$524,4,TRUE)), (IF(2-$F$22=2, (VLOOKUP(2,Tablas!$A$522:$G$524,4,TRUE)), 0)))))), (IF($F$20=1,(IF(1-$F$22=0, 0, (IF(1-$F$22=1,(VLOOKUP(1,Tablas!$A$522:$G$524,4,TRUE)),0)))),0)))))))))))))), (IF($F$20=0, 0, (IF($F$22>$F$20, (VLOOKUP($F$20,Tablas!$A$522:$G$524,4,TRUE)), (IF($F$20=4,(IF(4-$F$22=0, 0, (IF(4-$F$22=1, (VLOOKUP(1,Tablas!$A$522:$G$524,4,TRUE)), (IF(4-$F$22=2, (VLOOKUP(2,Tablas!$A$522:$G$524,4,TRUE)), (IF(4-$F$22=3, (VLOOKUP(3,Tablas!$A$522:$G$524,4,TRUE)), (IF(4-$F$22=4, (VLOOKUP(3,Tablas!$A$522:$G$524,4,TRUE)), 0)))))))))), (IF($F$20=5,(IF(5-$F$22=0, (VLOOKUP(1,Tablas!$A$522:$G$524,4,TRUE)), (IF(5-$F$22=1, (VLOOKUP(1,Tablas!$A$522:$G$524,4,TRUE)), (IF(5-$F$22=2, (VLOOKUP(2,Tablas!$A$522:$G$524,4,TRUE)), (IF(5-$F$22=3, (VLOOKUP(3,Tablas!$A$522:$G$524,4,TRUE)), (IF(5-$F$22=4, (VLOOKUP(3,Tablas!$A$522:$G$524,4,TRUE)), (VLOOKUP(3,Tablas!$A$522:$G$524,4,TRUE)))))))))))), (IF($F$20=6,(IF(6-$F$22=0, (VLOOKUP(2,Tablas!$A$522:$G$524,4,TRUE)), (IF(6-$F$22=1, (VLOOKUP(2,Tablas!$A$522:$G$524,4,TRUE)), (IF(6-$F$22=2, (VLOOKUP(2,Tablas!$A$522:$G$524,4,TRUE)), (IF(6-$F$22=3, (VLOOKUP(3,Tablas!$A$522:$G$524,4,TRUE)), (IF(6-$F$22=4, (VLOOKUP(3,Tablas!$A$522:$G$524,4,TRUE)), (VLOOKUP(3,Tablas!$A$522:$G$524,4,TRUE)))))))))))), (IF($F$20>6,(IF(7-$F$22=0, (VLOOKUP(3,Tablas!$A$522:$G$524,4,TRUE)), (IF(7-$F$22=1, (VLOOKUP(3,Tablas!$A$522:$G$524,4,TRUE)), (IF(7-$F$22=2, (VLOOKUP(3,Tablas!$A$522:$G$524,4,TRUE)), (IF(7-$F$22=3, (VLOOKUP(3,Tablas!$A$522:$G$524,4,TRUE)), (IF(7-$F$22=4, (VLOOKUP(3,Tablas!$A$522:$G$524,4,TRUE)), (VLOOKUP(3,Tablas!$A$522:$G$524,4,TRUE)))))))))))), (IF($F$20=3,(IF(3-$F$22=0,0, (IF(3-$F$22=1,(VLOOKUP(1,Tablas!$A$522:$G$524,4,TRUE)), (IF(3-$F$22=2, (VLOOKUP(2,Tablas!$A$522:$G$524,4,TRUE)), (VLOOKUP(3,Tablas!$A$522:$G$524,4,TRUE)))))))), (IF($F$20=2,(IF(2-$F$22=0, 0, (IF(2-$F$22=1,(VLOOKUP(1,Tablas!$A$522:$G$524,4,TRUE)), (IF(2-$F$22=2, (VLOOKUP(2,Tablas!$A$522:$G$524,4,TRUE)), 0)))))), (IF($F$20=1,(IF(1-$F$22=0, 0, (IF(1-$F$22=1,(VLOOKUP(1,Tablas!$A$522:$G$524,4,TRUE)),0)))),0))))))))))))))))))) -> 1469.69 | I42: =IF($F$18=1, (IF($F$20=0, 0, (IF($F$22>$F$20, (VLOOKUP($F$20,Tablas!$A$522:$G$524,5,TRUE)), (IF($F$20>4,(IF($F$22=0, (VLOOKUP(3,Tablas!$A$522:$G$524,5,TRUE)), (IF($F$22=1, (VLOOKUP(3,Tablas!$A$522:$G$524,5,TRUE)), (IF($F$22=2, (VLOOKUP(3,Tablas!$A$522:$G$524,5,TRUE)), (VLOOKUP(3,Tablas!$A$522:$G$524,5,TRUE)))))))), (IF($F$20=4,(IF(4-$F$22=0,(VLOOKUP(2,Tablas!$A$522:$G$524,5,TRUE)), (IF(4-$F$22=1,(VLOOKUP(2,Tablas!$A$522:$G$524,5,TRUE)), (IF(4-$F$22=2, (VLOOKUP(2,Tablas!$A$522:$G$524,5,TRUE)), (VLOOKUP(3,Tablas!$A$522:$G$524,5,TRUE)))))))), (IF($F$20=3,(IF(3-$F$22=0,(VLOOKUP(1,Tablas!$A$522:$G$524,5,TRUE)), (IF(3-$F$22=1,(VLOOKUP(1,Tablas!$A$522:$G$524,5,TRUE)), (IF(3-$F$22=2, (VLOOKUP(2,Tablas!$A$522:$G$524,5,TRUE)), (VLOOKUP(3,Tablas!$A$522:$G$524,5,TRUE)))))))), (IF($F$20=2,(IF(2-$F$22=0, 0, (IF(2-$F$22=1,(VLOOKUP(1,Tablas!$A$522:$G$524,5,TRUE)), (IF(2-$F$22=2, (VLOOKUP(2,Tablas!$A$522:$G$524,5,TRUE)), 0)))))), (IF($F$20=1,(IF(1-$F$22=0, 0, (IF(1-$F$22=1,(VLOOKUP(1,Tablas!$A$522:$G$524,5,TRUE)),0)))),0)))))))))))))), (IF($F$20=0, 0, (IF($F$22>$F$20, (VLOOKUP($F$20,Tablas!$A$522:$G$524,5,TRUE)), (IF($F$20=4,(IF(4-$F$22=0, 0, (IF(4-$F$22=1, (VLOOKUP(1,Tablas!$A$522:$G$524,5,TRUE)), (IF(4-$F$22=2, (VLOOKUP(2,Tablas!$A$522:$G$524,5,TRUE)), (IF(4-$F$22=3, (VLOOKUP(3,Tablas!$A$522:$G$524,5,TRUE)), (IF(4-$F$22=4, (VLOOKUP(3,Tablas!$A$522:$G$524,5,TRUE)), 0)))))))))), (IF($F$20=5,(IF(5-$F$22=0, (VLOOKUP(1,Tablas!$A$522:$G$524,5,TRUE)), (IF(5-$F$22=1, (VLOOKUP(1,Tablas!$A$522:$G$524,5,TRUE)), (IF(5-$F$22=2, (VLOOKUP(2,Tablas!$A$522:$G$524,5,TRUE)), (IF(5-$F$22=3, (VLOOKUP(3,Tablas!$A$522:$G$524,5,TRUE)), (IF(5-$F$22=4, (VLOOKUP(3,Tablas!$A$522:$G$524,5,TRUE)), (VLOOKUP(3,Tablas!$A$522:$G$524,5,TRUE)))))))))))), (IF($F$20=6,(IF(6-$F$22=0, (VLOOKUP(2,Tablas!$A$522:$G$524,5,TRUE)), (IF(6-$F$22=1, (VLOOKUP(2,Tablas!$A$522:$G$524,5,TRUE)), (IF(6-$F$22=2, (VLOOKUP(2,Tablas!$A$522:$G$524,5,TRUE)), (IF(6-$F$22=3, (VLOOKUP(3,Tablas!$A$522:$G$524,5,TRUE)), (IF(6-$F$22=4, (VLOOKUP(3,Tablas!$A$522:$G$524,5,TRUE)), (VLOOKUP(3,Tablas!$A$522:$G$524,5,TRUE)))))))))))), (IF($F$20>6,(IF(7-$F$22=0, (VLOOKUP(3,Tablas!$A$522:$G$524,5,TRUE)), (IF(7-$F$22=1, (VLOOKUP(3,Tablas!$A$522:$G$524,5,TRUE)), (IF(7-$F$22=2, (VLOOKUP(3,Tablas!$A$522:$G$524,5,TRUE)), (IF(7-$F$22=3, (VLOOKUP(3,Tablas!$A$522:$G$524,5,TRUE)), (IF(7-$F$22=4, (VLOOKUP(3,Tablas!$A$522:$G$524,5,TRUE)), (VLOOKUP(3,Tablas!$A$522:$G$524,5,TRUE)))))))))))), (IF($F$20=3,(IF(3-$F$22=0,0, (IF(3-$F$22=1,(VLOOKUP(1,Tablas!$A$522:$G$524,5,TRUE)), (IF(3-$F$22=2, (VLOOKUP(2,Tablas!$A$522:$G$524,5,TRUE)), (VLOOKUP(3,Tablas!$A$522:$G$524,5,TRUE)))))))), (IF($F$20=2,(IF(2-$F$22=0, 0, (IF(2-$F$22=1,(VLOOKUP(1,Tablas!$A$522:$G$524,5,TRUE)), (IF(2-$F$22=2, (VLOOKUP(2,Tablas!$A$522:$G$524,5,TRUE)), 0)))))), (IF($F$20=1,(IF(1-$F$22=0, 0, (IF(1-$F$22=1,(VLOOKUP(1,Tablas!$A$522:$G$524,5,TRUE)),0)))),0))))))))))))))))))) -> 1244.97 | J42: =IF($F$18=1, (IF($F$20=0, 0, (IF($F$22>$F$20, (VLOOKUP($F$20,Tablas!$A$522:$G$524,6,TRUE)), (IF($F$20>4,(IF($F$22=0, (VLOOKUP(3,Tablas!$A$522:$G$524,6,TRUE)), (IF($F$22=1, (VLOOKUP(3,Tablas!$A$522:$G$524,6,TRUE)), (IF($F$22=2, (VLOOKUP(3,Tablas!$A$522:$G$524,6,TRUE)), (VLOOKUP(3,Tablas!$A$522:$G$524,6,TRUE)))))))), (IF($F$20=4,(IF(4-$F$22=0,(VLOOKUP(2,Tablas!$A$522:$G$524,6,TRUE)), (IF(4-$F$22=1,(VLOOKUP(2,Tablas!$A$522:$G$524,6,TRUE)), (IF(4-$F$22=2, (VLOOKUP(2,Tablas!$A$522:$G$524,6,TRUE)), (VLOOKUP(3,Tablas!$A$522:$G$524,6,TRUE)))))))), (IF($F$20=3,(IF(3-$F$22=0,(VLOOKUP(1,Tablas!$A$522:$G$524,6,TRUE)), (IF(3-$F$22=1,(VLOOKUP(1,Tablas!$A$522:$G$524,6,TRUE)), (IF(3-$F$22=2, (VLOOKUP(2,Tablas!$A$522:$G$524,6,TRUE)), (VLOOKUP(3,Tablas!$A$522:$G$524,6,TRUE)))))))), (IF($F$20=2,(IF(2-$F$22=0, 0, (IF(2-$F$22=1,(VLOOKUP(1,Tablas!$A$522:$G$524,6,TRUE)), (IF(2-$F$22=2, (VLOOKUP(2,Tablas!$A$522:$G$524,6,TRUE)), 0)))))), (IF($F$20=1,(IF(1-$F$22=0, 0, (IF(1-$F$22=1,(VLOOKUP(1,Tablas!$A$522:$G$524,6,TRUE)),0)))),0)))))))))))))), (IF($F$20=0, 0, (IF($F$22>$F$20, (VLOOKUP($F$20,Tablas!$A$522:$G$524,6,TRUE)), (IF($F$20=4,(IF(4-$F$22=0, 0, (IF(4-$F$22=1, (VLOOKUP(1,Tablas!$A$522:$G$524,6,TRUE)), (IF(4-$F$22=2, (VLOOKUP(2,Tablas!$A$522:$G$524,6,TRUE)), (IF(4-$F$22=3, (VLOOKUP(3,Tablas!$A$522:$G$524,6,TRUE)), (IF(4-$F$22=4, (VLOOKUP(3,Tablas!$A$522:$G$524,6,TRUE)), 0)))))))))), (IF($F$20=5,(IF(5-$F$22=0, (VLOOKUP(1,Tablas!$A$522:$G$524,6,TRUE)), (IF(5-$F$22=1, (VLOOKUP(1,Tablas!$A$522:$G$524,6,TRUE)), (IF(5-$F$22=2, (VLOOKUP(2,Tablas!$A$522:$G$524,6,TRUE)), (IF(5-$F$22=3, (VLOOKUP(3,Tablas!$A$522:$G$524,6,TRUE)), (IF(5-$F$22=4, (VLOOKUP(3,Tablas!$A$522:$G$524,6,TRUE)), (VLOOKUP(3,Tablas!$A$522:$G$524,6,TRUE)))))))))))), (IF($F$20=6,(IF(6-$F$22=0, (VLOOKUP(2,Tablas!$A$522:$G$524,6,TRUE)), (IF(6-$F$22=1, (VLOOKUP(2,Tablas!$A$522:$G$524,6,TRUE)), (IF(6-$F$22=2, (VLOOKUP(2,Tablas!$A$522:$G$524,6,TRUE)), (IF(6-$F$22=3, (VLOOKUP(3,Tablas!$A$522:$G$524,6,TRUE)), (IF(6-$F$22=4, (VLOOKUP(3,Tablas!$A$522:$G$524,6,TRUE)), (VLOOKUP(3,Tablas!$A$522:$G$524,6,TRUE)))))))))))), (IF($F$20>6,(IF(7-$F$22=0, (VLOOKUP(3,Tablas!$A$522:$G$524,6,TRUE)), (IF(7-$F$22=1, (VLOOKUP(3,Tablas!$A$522:$G$524,6,TRUE)), (IF(7-$F$22=2, (VLOOKUP(3,Tablas!$A$522:$G$524,6,TRUE)), (IF(7-$F$22=3, (VLOOKUP(3,Tablas!$A$522:$G$524,6,TRUE)), (IF(7-$F$22=4, (VLOOKUP(3,Tablas!$A$522:$G$524,6,TRUE)), (VLOOKUP(3,Tablas!$A$522:$G$524,6,TRUE)))))))))))), (IF($F$20=3,(IF(3-$F$22=0,0, (IF(3-$F$22=1,(VLOOKUP(1,Tablas!$A$522:$G$524,6,TRUE)), (IF(3-$F$22=2, (VLOOKUP(2,Tablas!$A$522:$G$524,6,TRUE)), (VLOOKUP(3,Tablas!$A$522:$G$524,6,TRUE)))))))), (IF($F$20=2,(IF(2-$F$22=0, 0, (IF(2-$F$22=1,(VLOOKUP(1,Tablas!$A$522:$G$524,6,TRUE)), (IF(2-$F$22=2, (VLOOKUP(2,Tablas!$A$522:$G$524,6,TRUE)), 0)))))), (IF($F$20=1,(IF(1-$F$22=0, 0, (IF(1-$F$22=1,(VLOOKUP(1,Tablas!$A$522:$G$524,6,TRUE)),0)))),0))))))))))))))))))) -> 1080.14 | K42: =IF($F$18=1, (IF($F$20=0, 0, (IF($F$22>$F$20, (VLOOKUP($F$20,Tablas!$A$522:$G$524,7,TRUE)), (IF($F$20>4,(IF($F$22=0, (VLOOKUP(3,Tablas!$A$522:$G$524,7,TRUE)), (IF($F$22=1, (VLOOKUP(3,Tablas!$A$522:$G$524,7,TRUE)), (IF($F$22=2, (VLOOKUP(3,Tablas!$A$522:$G$524,7,TRUE)), (VLOOKUP(3,Tablas!$A$522:$G$524,7,TRUE)))))))), (IF($F$20=4,(IF(4-$F$22=0,(VLOOKUP(2,Tablas!$A$522:$G$524,7,TRUE)), (IF(4-$F$22=1,(VLOOKUP(2,Tablas!$A$522:$G$524,7,TRUE)), (IF(4-$F$22=2, (VLOOKUP(2,Tablas!$A$522:$G$524,7,TRUE)), (VLOOKUP(3,Tablas!$A$522:$G$524,7,TRUE)))))))), (IF($F$20=3,(IF(3-$F$22=0,(VLOOKUP(1,Tablas!$A$522:$G$524,7,TRUE)), (IF(3-$F$22=1,(VLOOKUP(1,Tablas!$A$522:$G$524,7,TRUE)), (IF(3-$F$22=2, (VLOOKUP(2,Tablas!$A$522:$G$524,7,TRUE)), (VLOOKUP(3,Tablas!$A$522:$G$524,7,TRUE)))))))), (IF($F$20=2,(IF(2-$F$22=0, 0, (IF(2-$F$22=1,(VLOOKUP(1,Tablas!$A$522:$G$524,7,TRUE)), (IF(2-$F$22=2, (VLOOKUP(2,Tablas!$A$522:$G$524,7,TRUE)), 0)))))), (IF($F$20=1,(IF(1-$F$22=0, 0, (IF(1-$F$22=1,(VLOOKUP(1,Tablas!$A$522:$G$524,7,TRUE)),0)))),0)))))))))))))), (IF($F$20=0, 0, (IF($F$22>$F$20, (VLOOKUP($F$20,Tablas!$A$522:$G$524,7,TRUE)), (IF($F$20=4,(IF(4-$F$22=0, 0, (IF(4-$F$22=1, (VLOOKUP(1,Tablas!$A$522:$G$524,7,TRUE)), (IF(4-$F$22=2, (VLOOKUP(2,Tablas!$A$522:$G$524,7,TRUE)), (IF(4-$F$22=3, (VLOOKUP(3,Tablas!$A$522:$G$524,7,TRUE)), (IF(4-$F$22=4, (VLOOKUP(3,Tablas!$A$522:$G$524,7,TRUE)), 0)))))))))), (IF($F$20=5,(IF(5-$F$22=0, (VLOOKUP(1,Tablas!$A$522:$G$524,7,TRUE)), (IF(5-$F$22=1, (VLOOKUP(1,Tablas!$A$522:$G$524,7,TRUE)), (IF(5-$F$22=2, (VLOOKUP(2,Tablas!$A$522:$G$524,7,TRUE)), (IF(5-$F$22=3, (VLOOKUP(3,Tablas!$A$522:$G$524,7,TRUE)), (IF(5-$F$22=4, (VLOOKUP(3,Tablas!$A$522:$G$524,7,TRUE)), (VLOOKUP(3,Tablas!$A$522:$G$524,7,TRUE)))))))))))), (IF($F$20=6,(IF(6-$F$22=0, (VLOOKUP(2,Tablas!$A$522:$G$524,7,TRUE)), (IF(6-$F$22=1, (VLOOKUP(2,Tablas!$A$522:$G$524,7,TRUE)), (IF(6-$F$22=2, (VLOOKUP(2,Tablas!$A$522:$G$524,7,TRUE)), (IF(6-$F$22=3, (VLOOKUP(3,Tablas!$A$522:$G$524,7,TRUE)), (IF(6-$F$22=4, (VLOOKUP(3,Tablas!$A$522:$G$524,7,TRUE)), (VLOOKUP(3,Tablas!$A$522:$G$524,7,TRUE)))))))))))), (IF($F$20>6,(IF(7-$F$22=0, (VLOOKUP(3,Tablas!$A$522:$G$524,7,TRUE)), (IF(7-$F$22=1, (VLOOKUP(3,Tablas!$A$522:$G$524,7,TRUE)), (IF(7-$F$22=2, (VLOOKUP(3,Tablas!$A$522:$G$524,7,TRUE)), (IF(7-$F$22=3, (VLOOKUP(3,Tablas!$A$522:$G$524,7,TRUE)), (IF(7-$F$22=4, (VLOOKUP(3,Tablas!$A$522:$G$524,7,TRUE)), (VLOOKUP(3,Tablas!$A$522:$G$524,7,TRUE)))))))))))), (IF($F$20=3,(IF(3-$F$22=0,0, (IF(3-$F$22=1,(VLOOKUP(1,Tablas!$A$522:$G$524,7,TRUE)), (IF(3-$F$22=2, (VLOOKUP(2,Tablas!$A$522:$G$524,7,TRUE)), (VLOOKUP(3,Tablas!$A$522:$G$524,7,TRUE)))))))), (IF($F$20=2,(IF(2-$F$22=0, 0, (IF(2-$F$22=1,(VLOOKUP(1,Tablas!$A$522:$G$524,7,TRUE)), (IF(2-$F$22=2, (VLOOKUP(2,Tablas!$A$522:$G$524,7,TRUE)), 0)))))), (IF($F$20=1,(IF(1-$F$22=0, 0, (IF(1-$F$22=1,(VLOOKUP(1,Tablas!$A$522:$G$524,7,TRUE)),0)))),0))))))))))))))))))) -> 837.93
E43: Total de Prima neta | G43: =SUM(G40:G42) -> 40950.98 | H43: =SUM(H40:H42) -> 35893.72 | I43: =SUM(I40:I42) -> 29349.28 | J43: =SUM(J40:J42) -> 25450.07 | K43: =SUM(K40:K42) -> 19737.73
E44: Ajuste por variante con coaseguro fuera del país de residencia | G44: =IF('INGRESO DE DATOS'!$H$20,G43*-25%,0) -> 0 | H44: =IF('INGRESO DE DATOS'!$H$20,H43*-25%,0) -> 0 | I44: =IF('INGRESO DE DATOS'!$H$20,I43*-25%,0) -> 0 | J44: =IF('INGRESO DE DATOS'!$H$20,J43*-25%,0) -> 0 | K44: =IF('INGRESO DE DATOS'!$H$20,K43*-25%,0) -> 0
E45: Tarifa administrativa anual | G45: 75 | H45: 75 | I45: 75 | J45: 75 | K45: 75
E46: IVA (12%) | G46: =(G43+G45)*0% -> 0 | H46: =(H43+H45)*0% -> 0 | I46: 0 | J46: 0 | K46: 0
E47: TOTAL de primera cuota | G47: =SUM(G43:G46) -> 41025.98 | H47: =SUM(H43:H46) -> 35968.72 | I47: =SUM(I43:I46) -> 29424.28 | J47: =SUM(J43:J46) -> 25525.07 | K47: =SUM(K43:K46) -> 19812.73
E48: Costo de segunda cuota | G48: =SUM(G43:G44) -> 40950.98 | H48: =SUM(H43:H44) -> 35893.72 | I48: 29349.28 | J48: 25450.07 | K48: 19737.73
E49: TOTAL ANUAL | G49: =G47+G48 -> 81976.96 | H49: =H47+H48 -> 71862.44 | I49: 58773.56 | J49: =J47+J48 -> 50975.14 | K49: 39550.46
E50: Ahorros en tarifas de prima para niños | G50: =IF($F$18=1,IF($F$20=0,0,IF($F$22=0,0,IF($F$22=1,(VLOOKUP(1,Tablas!$A$522:$G$524,3,TRUE)),(VLOOKUP(2,Tablas!$A$522:$G$524,3,TRUE))))), IF($F$20=0,0,IF($F$22=0,0,IF($F$22=1,(VLOOKUP(1,Tablas!$A$522:$G$524,3,TRUE)),IF($F$22=2,(VLOOKUP(2,Tablas!$A$522:$G$524,3,TRUE)), (VLOOKUP(3,Tablas!$A$522:$G$524,3,TRUE))))))) -> 2850.87 | H50: =IF($F$18=1,IF($F$20=0,0,IF($F$22=0,0,IF($F$22=1,(VLOOKUP(1,Tablas!$A$522:$G$524,4,TRUE)),(VLOOKUP(2,Tablas!$A$522:$G$524,4,TRUE))))), IF($F$20=0,0,IF($F$22=0,0,IF($F$22=1,(VLOOKUP(1,Tablas!$A$522:$G$524,4,TRUE)),IF($F$22=2,(VLOOKUP(2,Tablas!$A$522:$G$524,4,TRUE)), (VLOOKUP(3,Tablas!$A$522:$G$524,4,TRUE))))))) -> 2498.95 | I50: =IF($F$18=1,IF($F$20=0,0,IF($F$22=0,0,IF($F$22=1,(VLOOKUP(1,Tablas!$A$522:$G$524,5,TRUE)),(VLOOKUP(2,Tablas!$A$522:$G$524,5,TRUE))))), IF($F$20=0,0,IF($F$22=0,0,IF($F$22=1,(VLOOKUP(1,Tablas!$A$522:$G$524,5,TRUE)),IF($F$22=2,(VLOOKUP(2,Tablas!$A$522:$G$524,5,TRUE)), (VLOOKUP(3,Tablas!$A$522:$G$524,5,TRUE))))))) -> 2116.29 | J50: =IF($F$18=1,IF($F$20=0,0,IF($F$22=0,0,IF($F$22=1,(VLOOKUP(1,Tablas!$A$522:$G$524,6,TRUE)),(VLOOKUP(2,Tablas!$A$522:$G$524,6,TRUE))))), IF($F$20=0,0,IF($F$22=0,0,IF($F$22=1,(VLOOKUP(1,Tablas!$A$522:$G$524,6,TRUE)),IF($F$22=2,(VLOOKUP(2,Tablas!$A$522:$G$524,6,TRUE)), (VLOOKUP(3,Tablas!$A$522:$G$524,6,TRUE))))))) -> 1834.86 | K50: =IF($F$18=1,IF($F$20=0,0,IF($F$22=0,0,IF($F$22=1,(VLOOKUP(1,Tablas!$A$522:$G$524,7,TRUE)),(VLOOKUP(2,Tablas!$A$522:$G$524,7,TRUE))))), IF($F$20=0,0,IF($F$22=0,0,IF($F$22=1,(VLOOKUP(1,Tablas!$A$522:$G$524,7,TRUE)),IF($F$22=2,(VLOOKUP(2,Tablas!$A$522:$G$524,7,TRUE)), (VLOOKUP(3,Tablas!$A$522:$G$524,7,TRUE))))))) -> 1423.58
E52: Tarifas trimestrales
E53: Prima para Asegurado Titular | G53: =VLOOKUP($J$18,Tablas!$A$680:$G$746,3,TRUE) -> 7648.025 | H53: =VLOOKUP($J$18,Tablas!$A$680:$G$746,4,TRUE) -> 6703.4 | I53: =VLOOKUP($J$18,Tablas!$A$680:$G$746,5,TRUE) -> 5460.95 | J53: =VLOOKUP($J$18,Tablas!$A$680:$G$746,6,TRUE) -> 4735.225 | K53: =VLOOKUP($J$18,Tablas!$A$680:$G$746,7,TRUE) -> 3672.625
E54: Prima para conyuge | G54: =IF($F$18=1,0,(VLOOKUP($J$20,Tablas!$A$680:$G$746,3,TRUE))) -> 12730.3 | H54: =IF($F$18=1,0,(VLOOKUP($J$20,Tablas!$A$680:$G$746,4,TRUE))) -> 11158.125 | I54: =IF($F$18=1,0,(VLOOKUP($J$20,Tablas!$A$680:$G$746,5,TRUE))) -> 9121.475 | J54: =IF($F$18=1,0,(VLOOKUP($J$20,Tablas!$A$680:$G$746,6,TRUE))) -> 7909.55 | K54: =IF($F$18=1,0,(VLOOKUP($J$20,Tablas!$A$680:$G$746,7,TRUE))) -> 6133.875
E55: Prima para hijo (s) | G55: =IF($F$18=1, (IF($F$20=0, 0, (IF($F$22>$F$20, (VLOOKUP($F$20,Tablas!$A$747:$G$749,3,TRUE)), (IF($F$20>4,(IF($F$22=0, (VLOOKUP(3,Tablas!$A$747:$G$749,3,TRUE)), (IF($F$22=1, (VLOOKUP(3,Tablas!$A$747:$G$749,3,TRUE)), (IF($F$22=2, (VLOOKUP(3,Tablas!$A$747:$G$749,3,TRUE)), (VLOOKUP(3,Tablas!$A$747:$G$749,3,TRUE)))))))), (IF($F$20=4,(IF(4-$F$22=0,(VLOOKUP(2,Tablas!$A$747:$G$749,3,TRUE)), (IF(4-$F$22=1,(VLOOKUP(2,Tablas!$A$747:$G$749,3,TRUE)), (IF(4-$F$22=2, (VLOOKUP(2,Tablas!$A$747:$G$749,3,TRUE)), (VLOOKUP(3,Tablas!$A$747:$G$749,3,TRUE)))))))), (IF($F$20=3,(IF(3-$F$22=0,(VLOOKUP(1,Tablas!$A$747:$G$749,3,TRUE)), (IF(3-$F$22=1,(VLOOKUP(1,Tablas!$A$747:$G$749,3,TRUE)), (IF(3-$F$22=2, (VLOOKUP(2,Tablas!$A$747:$G$749,3,TRUE)), (VLOOKUP(3,Tablas!$A$747:$G$749,3,TRUE)))))))), (IF($F$20=2,(IF(2-$F$22=0, 0, (IF(2-$F$22=1,(VLOOKUP(1,Tablas!$A$747:$G$749,3,TRUE)), (IF(2-$F$22=2, (VLOOKUP(2,Tablas!$A$747:$G$749,3,TRUE)), 0)))))), (IF($F$20=1,(IF(1-$F$22=0, 0, (IF(1-$F$22=1,(VLOOKUP(1,Tablas!$A$747:$G$749,3,TRUE)),0)))),0)))))))))))))), (IF($F$20=0, 0, (IF($F$22>$F$20, (VLOOKUP($F$20,Tablas!$A$747:$G$749,3,TRUE)), (IF($F$20=4,(IF(4-$F$22=0, 0, (IF(4-$F$22=1, (VLOOKUP(1,Tablas!$A$747:$G$749,3,TRUE)), (IF(4-$F$22=2, (VLOOKUP(2,Tablas!$A$747:$G$749,3,TRUE)), (IF(4-$F$22=3, (VLOOKUP(3,Tablas!$A$747:$G$749,3,TRUE)), (IF(4-$F$22=4, (VLOOKUP(3,Tablas!$A$747:$G$749,3,TRUE)), 0)))))))))), (IF($F$20=5,(IF(5-$F$22=0, (VLOOKUP(1,Tablas!$A$747:$G$749,3,TRUE)), (IF(5-$F$22=1, (VLOOKUP(1,Tablas!$A$747:$G$749,3,TRUE)), (IF(5-$F$22=2, (VLOOKUP(2,Tablas!$A$747:$G$749,3,TRUE)), (IF(5-$F$22=3, (VLOOKUP(3,Tablas!$A$747:$G$749,3,TRUE)), (IF(5-$F$22=4, (VLOOKUP(3,Tablas!$A$747:$G$749,3,TRUE)), (VLOOKUP(3,Tablas!$A$747:$G$749,3,TRUE)))))))))))), (IF($F$20=6,(IF(6-$F$22=0, (VLOOKUP(2,Tablas!$A$747:$G$749,3,TRUE)), (IF(6-$F$22=1, (VLOOKUP(2,Tablas!$A$747:$G$749,3,TRUE)), (IF(6-$F$22=2, (VLOOKUP(2,Tablas!$A$747:$G$749,3,TRUE)), (IF(6-$F$22=3, (VLOOKUP(3,Tablas!$A$747:$G$749,3,TRUE)), (IF(6-$F$22=4, (VLOOKUP(3,Tablas!$A$747:$G$749,3,TRUE)), (VLOOKUP(3,Tablas!$A$747:$G$749,3,TRUE)))))))))))), (IF($F$20>6,(IF(7-$F$22=0, (VLOOKUP(3,Tablas!$A$747:$G$749,3,TRUE)), (IF(7-$F$22=1, (VLOOKUP(3,Tablas!$A$747:$G$749,3,TRUE)), (IF(7-$F$22=2, (VLOOKUP(3,Tablas!$A$747:$G$749,3,TRUE)), (IF(7-$F$22=3, (VLOOKUP(3,Tablas!$A$747:$G$749,3,TRUE)), (IF(7-$F$22=4, (VLOOKUP(3,Tablas!$A$747:$G$749,3,TRUE)), (VLOOKUP(3,Tablas!$A$747:$G$749,3,TRUE)))))))))))), (IF($F$20=3,(IF(3-$F$22=0,0, (IF(3-$F$22=1,(VLOOKUP(1,Tablas!$A$747:$G$749,3,TRUE)), (IF(3-$F$22=2, (VLOOKUP(2,Tablas!$A$747:$G$749,3,TRUE)), (VLOOKUP(3,Tablas!$A$747:$G$749,3,TRUE)))))))), (IF($F$20=2,(IF(2-$F$22=0, 0, (IF(2-$F$22=1,(VLOOKUP(1,Tablas!$A$747:$G$749,3,TRUE)), (IF(2-$F$22=2, (VLOOKUP(2,Tablas!$A$747:$G$749,3,TRUE)), 0)))))), (IF($F$20=1,(IF(1-$F$22=0, 0, (IF(1-$F$22=1,(VLOOKUP(1,Tablas!$A$747:$G$749,3,TRUE)),0)))),0))))))))))))))))))) -> 869.825 | H55: =IF($F$18=1, (IF($F$20=0, 0, (IF($F$22>$F$20, (VLOOKUP($F$20,Tablas!$A$747:$G$749,4,TRUE)), (IF($F$20>4,(IF($F$22=0, (VLOOKUP(3,Tablas!$A$747:$G$749,4,TRUE)), (IF($F$22=1, (VLOOKUP(3,Tablas!$A$747:$G$749,4,TRUE)), (IF($F$22=2, (VLOOKUP(3,Tablas!$A$747:$G$749,4,TRUE)), (VLOOKUP(3,Tablas!$A$747:$G$749,4,TRUE)))))))), (IF($F$20=4,(IF(4-$F$22=0,(VLOOKUP(2,Tablas!$A$747:$G$749,4,TRUE)), (IF(4-$F$22=1,(VLOOKUP(2,Tablas!$A$747:$G$749,4,TRUE)), (IF(4-$F$22=2, (VLOOKUP(2,Tablas!$A$747:$G$749,4,TRUE)), (VLOOKUP(3,Tablas!$A$747:$G$749,4,TRUE)))))))), (IF($F$20=3,(IF(3-$F$22=0,(VLOOKUP(1,Tablas!$A$747:$G$749,4,TRUE)), (IF(3-$F$22=1,(VLOOKUP(1,Tablas!$A$747:$G$749,4,TRUE)), (IF(3-$F$22=2, (VLOOKUP(2,Tablas!$A$747:$G$749,4,TRUE)), (VLOOKUP(3,Tablas!$A$747:$G$749,4,TRUE)))))))), (IF($F$20=2,(IF(2-$F$22=0, 0, (IF(2-$F$22=1,(VLOOKUP(1,Tablas!$A$747:$G$749,4,TRUE)), (IF(2-$F$22=2, (VLOOKUP(2,Tablas!$A$747:$G$749,4,TRUE)), 0)))))), (IF($F$20=1,(IF(1-$F$22=0, 0, (IF(1-$F$22=1,(VLOOKUP(1,Tablas!$A$747:$G$749,4,TRUE)),0)))),0)))))))))))))), (IF($F$20=0, 0, (IF($F$22>$F$20, (VLOOKUP($F$20,Tablas!$A$747:$G$749,4,TRUE)), (IF($F$20=4,(IF(4-$F$22=0, 0, (IF(4-$F$22=1, (VLOOKUP(1,Tablas!$A$747:$G$749,4,TRUE)), (IF(4-$F$22=2, (VLOOKUP(2,Tablas!$A$747:$G$749,4,TRUE)), (IF(4-$F$22=3, (VLOOKUP(3,Tablas!$A$747:$G$749,4,TRUE)), (IF(4-$F$22=4, (VLOOKUP(3,Tablas!$A$747:$G$749,4,TRUE)), 0)))))))))), (IF($F$20=5,(IF(5-$F$22=0, (VLOOKUP(1,Tablas!$A$747:$G$749,4,TRUE)), (IF(5-$F$22=1, (VLOOKUP(1,Tablas!$A$747:$G$749,4,TRUE)), (IF(5-$F$22=2, (VLOOKUP(2,Tablas!$A$747:$G$749,4,TRUE)), (IF(5-$F$22=3, (VLOOKUP(3,Tablas!$A$747:$G$749,4,TRUE)), (IF(5-$F$22=4, (VLOOKUP(3,Tablas!$A$747:$G$749,4,TRUE)), (VLOOKUP(3,Tablas!$A$747:$G$749,4,TRUE)))))))))))), (IF($F$20=6,(IF(6-$F$22=0, (VLOOKUP(2,Tablas!$A$747:$G$749,4,TRUE)), (IF(6-$F$22=1, (VLOOKUP(2,Tablas!$A$747:$G$749,4,TRUE)), (IF(6-$F$22=2, (VLOOKUP(2,Tablas!$A$747:$G$749,4,TRUE)), (IF(6-$F$22=3, (VLOOKUP(3,Tablas!$A$747:$G$749,4,TRUE)), (IF(6-$F$22=4, (VLOOKUP(3,Tablas!$A$747:$G$749,4,TRUE)), (VLOOKUP(3,Tablas!$A$747:$G$749,4,TRUE)))))))))))), (IF($F$20>6,(IF(7-$F$22=0, (VLOOKUP(3,Tablas!$A$747:$G$749,4,TRUE)), (IF(7-$F$22=1, (VLOOKUP(3,Tablas!$A$747:$G$749,4,TRUE)), (IF(7-$F$22=2, (VLOOKUP(3,Tablas!$A$747:$G$749,4,TRUE)), (IF(7-$F$22=3, (VLOOKUP(3,Tablas!$A$747:$G$749,4,TRUE)), (IF(7-$F$22=4, (VLOOKUP(3,Tablas!$A$747:$G$749,4,TRUE)), (VLOOKUP(3,Tablas!$A$747:$G$749,4,TRUE)))))))))))), (IF($F$20=3,(IF(3-$F$22=0,0, (IF(3-$F$22=1,(VLOOKUP(1,Tablas!$A$747:$G$749,4,TRUE)), (IF(3-$F$22=2, (VLOOKUP(2,Tablas!$A$747:$G$749,4,TRUE)), (VLOOKUP(3,Tablas!$A$747:$G$749,4,TRUE)))))))), (IF($F$20=2,(IF(2-$F$22=0, 0, (IF(2-$F$22=1,(VLOOKUP(1,Tablas!$A$747:$G$749,4,TRUE)), (IF(2-$F$22=2, (VLOOKUP(2,Tablas!$A$747:$G$749,4,TRUE)), 0)))))), (IF($F$20=1,(IF(1-$F$22=0, 0, (IF(1-$F$22=1,(VLOOKUP(1,Tablas!$A$747:$G$749,4,TRUE)),0)))),0))))))))))))))))))) -> 762.575 | I55: =IF($F$18=1, (IF($F$20=0, 0, (IF($F$22>$F$20, (VLOOKUP($F$20,Tablas!$A$747:$G$749,5,TRUE)), (IF($F$20>4,(IF($F$22=0, (VLOOKUP(3,Tablas!$A$747:$G$749,5,TRUE)), (IF($F$22=1, (VLOOKUP(3,Tablas!$A$747:$G$749,5,TRUE)), (IF($F$22=2, (VLOOKUP(3,Tablas!$A$747:$G$749,5,TRUE)), (VLOOKUP(3,Tablas!$A$747:$G$749,5,TRUE)))))))), (IF($F$20=4,(IF(4-$F$22=0,(VLOOKUP(2,Tablas!$A$747:$G$749,5,TRUE)), (IF(4-$F$22=1,(VLOOKUP(2,Tablas!$A$747:$G$749,5,TRUE)), (IF(4-$F$22=2, (VLOOKUP(2,Tablas!$A$747:$G$749,5,TRUE)), (VLOOKUP(3,Tablas!$A$747:$G$749,5,TRUE)))))))), (IF($F$20=3,(IF(3-$F$22=0,(VLOOKUP(1,Tablas!$A$747:$G$749,5,TRUE)), (IF(3-$F$22=1,(VLOOKUP(1,Tablas!$A$747:$G$749,5,TRUE)), (IF(3-$F$22=2, (VLOOKUP(2,Tablas!$A$747:$G$749,5,TRUE)), (VLOOKUP(3,Tablas!$A$747:$G$749,5,TRUE)))))))), (IF($F$20=2,(IF(2-$F$22=0, 0, (IF(2-$F$22=1,(VLOOKUP(1,Tablas!$A$747:$G$749,5,TRUE)), (IF(2-$F$22=2, (VLOOKUP(2,Tablas!$A$747:$G$749,5,TRUE)), 0)))))), (IF($F$20=1,(IF(1-$F$22=0, 0, (IF(1-$F$22=1,(VLOOKUP(1,Tablas!$A$747:$G$749,5,TRUE)),0)))),0)))))))))))))), (IF($F$20=0, 0, (IF($F$22>$F$20, (VLOOKUP($F$20,Tablas!$A$747:$G$749,5,TRUE)), (IF($F$20=4,(IF(4-$F$22=0, 0, (IF(4-$F$22=1, (VLOOKUP(1,Tablas!$A$747:$G$749,5,TRUE)), (IF(4-$F$22=2, (VLOOKUP(2,Tablas!$A$747:$G$749,5,TRUE)), (IF(4-$F$22=3, (VLOOKUP(3,Tablas!$A$747:$G$749,5,TRUE)), (IF(4-$F$22=4, (VLOOKUP(3,Tablas!$A$747:$G$749,5,TRUE)), 0)))))))))), (IF($F$20=5,(IF(5-$F$22=0, (VLOOKUP(1,Tablas!$A$747:$G$749,5,TRUE)), (IF(5-$F$22=1, (VLOOKUP(1,Tablas!$A$747:$G$749,5,TRUE)), (IF(5-$F$22=2, (VLOOKUP(2,Tablas!$A$747:$G$749,5,TRUE)), (IF(5-$F$22=3, (VLOOKUP(3,Tablas!$A$747:$G$749,5,TRUE)), (IF(5-$F$22=4, (VLOOKUP(3,Tablas!$A$747:$G$749,5,TRUE)), (VLOOKUP(3,Tablas!$A$747:$G$749,5,TRUE)))))))))))), (IF($F$20=6,(IF(6-$F$22=0, (VLOOKUP(2,Tablas!$A$747:$G$749,5,TRUE)), (IF(6-$F$22=1, (VLOOKUP(2,Tablas!$A$747:$G$749,5,TRUE)), (IF(6-$F$22=2, (VLOOKUP(2,Tablas!$A$747:$G$749,5,TRUE)), (IF(6-$F$22=3, (VLOOKUP(3,Tablas!$A$747:$G$749,5,TRUE)), (IF(6-$F$22=4, (VLOOKUP(3,Tablas!$A$747:$G$749,5,TRUE)), (VLOOKUP(3,Tablas!$A$747:$G$749,5,TRUE)))))))))))), (IF($F$20>6,(IF(7-$F$22=0, (VLOOKUP(3,Tablas!$A$747:$G$749,5,TRUE)), (IF(7-$F$22=1, (VLOOKUP(3,Tablas!$A$747:$G$749,5,TRUE)), (IF(7-$F$22=2, (VLOOKUP(3,Tablas!$A$747:$G$749,5,TRUE)), (IF(7-$F$22=3, (VLOOKUP(3,Tablas!$A$747:$G$749,5,TRUE)), (IF(7-$F$22=4, (VLOOKUP(3,Tablas!$A$747:$G$749,5,TRUE)), (VLOOKUP(3,Tablas!$A$747:$G$749,5,TRUE)))))))))))), (IF($F$20=3,(IF(3-$F$22=0,0, (IF(3-$F$22=1,(VLOOKUP(1,Tablas!$A$747:$G$749,5,TRUE)), (IF(3-$F$22=2, (VLOOKUP(2,Tablas!$A$747:$G$749,5,TRUE)), (VLOOKUP(3,Tablas!$A$747:$G$749,5,TRUE)))))))), (IF($F$20=2,(IF(2-$F$22=0, 0, (IF(2-$F$22=1,(VLOOKUP(1,Tablas!$A$747:$G$749,5,TRUE)), (IF(2-$F$22=2, (VLOOKUP(2,Tablas!$A$747:$G$749,5,TRUE)), 0)))))), (IF($F$20=1,(IF(1-$F$22=0, 0, (IF(1-$F$22=1,(VLOOKUP(1,Tablas!$A$747:$G$749,5,TRUE)),0)))),0))))))))))))))))))) -> 645.975 | J55: =IF($F$18=1, (IF($F$20=0, 0, (IF($F$22>$F$20, (VLOOKUP($F$20,Tablas!$A$747:$G$749,6,TRUE)), (IF($F$20>4,(IF($F$22=0, (VLOOKUP(3,Tablas!$A$747:$G$749,6,TRUE)), (IF($F$22=1, (VLOOKUP(3,Tablas!$A$747:$G$749,6,TRUE)), (IF($F$22=2, (VLOOKUP(3,Tablas!$A$747:$G$749,6,TRUE)), (VLOOKUP(3,Tablas!$A$747:$G$749,6,TRUE)))))))), (IF($F$20=4,(IF(4-$F$22=0,(VLOOKUP(2,Tablas!$A$747:$G$749,6,TRUE)), (IF(4-$F$22=1,(VLOOKUP(2,Tablas!$A$747:$G$749,6,TRUE)), (IF(4-$F$22=2, (VLOOKUP(2,Tablas!$A$747:$G$749,6,TRUE)), (VLOOKUP(3,Tablas!$A$747:$G$749,6,TRUE)))))))), (IF($F$20=3,(IF(3-$F$22=0,(VLOOKUP(1,Tablas!$A$747:$G$749,6,TRUE)), (IF(3-$F$22=1,(VLOOKUP(1,Tablas!$A$747:$G$749,6,TRUE)), (IF(3-$F$22=2, (VLOOKUP(2,Tablas!$A$747:$G$749,6,TRUE)), (VLOOKUP(3,Tablas!$A$747:$G$749,6,TRUE)))))))), (IF($F$20=2,(IF(2-$F$22=0, 0, (IF(2-$F$22=1,(VLOOKUP(1,Tablas!$A$747:$G$749,6,TRUE)), (IF(2-$F$22=2, (VLOOKUP(2,Tablas!$A$747:$G$749,6,TRUE)), 0)))))), (IF($F$20=1,(IF(1-$F$22=0, 0, (IF(1-$F$22=1,(VLOOKUP(1,Tablas!$A$747:$G$749,6,TRUE)),0)))),0)))))))))))))), (IF($F$20=0, 0, (IF($F$22>$F$20, (VLOOKUP($F$20,Tablas!$A$747:$G$749,6,TRUE)), (IF($F$20=4,(IF(4-$F$22=0, 0, (IF(4-$F$22=1, (VLOOKUP(1,Tablas!$A$747:$G$749,6,TRUE)), (IF(4-$F$22=2, (VLOOKUP(2,Tablas!$A$747:$G$749,6,TRUE)), (IF(4-$F$22=3, (VLOOKUP(3,Tablas!$A$747:$G$749,6,TRUE)), (IF(4-$F$22=4, (VLOOKUP(3,Tablas!$A$747:$G$749,6,TRUE)), 0)))))))))), (IF($F$20=5,(IF(5-$F$22=0, (VLOOKUP(1,Tablas!$A$747:$G$749,6,TRUE)), (IF(5-$F$22=1, (VLOOKUP(1,Tablas!$A$747:$G$749,6,TRUE)), (IF(5-$F$22=2, (VLOOKUP(2,Tablas!$A$747:$G$749,6,TRUE)), (IF(5-$F$22=3, (VLOOKUP(3,Tablas!$A$747:$G$749,6,TRUE)), (IF(5-$F$22=4, (VLOOKUP(3,Tablas!$A$747:$G$749,6,TRUE)), (VLOOKUP(3,Tablas!$A$747:$G$749,6,TRUE)))))))))))), (IF($F$20=6,(IF(6-$F$22=0, (VLOOKUP(2,Tablas!$A$747:$G$749,6,TRUE)), (IF(6-$F$22=1, (VLOOKUP(2,Tablas!$A$747:$G$749,6,TRUE)), (IF(6-$F$22=2, (VLOOKUP(2,Tablas!$A$747:$G$749,6,TRUE)), (IF(6-$F$22=3, (VLOOKUP(3,Tablas!$A$747:$G$749,6,TRUE)), (IF(6-$F$22=4, (VLOOKUP(3,Tablas!$A$747:$G$749,6,TRUE)), (VLOOKUP(3,Tablas!$A$747:$G$749,6,TRUE)))))))))))), (IF($F$20>6,(IF(7-$F$22=0, (VLOOKUP(3,Tablas!$A$747:$G$749,6,TRUE)), (IF(7-$F$22=1, (VLOOKUP(3,Tablas!$A$747:$G$749,6,TRUE)), (IF(7-$F$22=2, (VLOOKUP(3,Tablas!$A$747:$G$749,6,TRUE)), (IF(7-$F$22=3, (VLOOKUP(3,Tablas!$A$747:$G$749,6,TRUE)), (IF(7-$F$22=4, (VLOOKUP(3,Tablas!$A$747:$G$749,6,TRUE)), (VLOOKUP(3,Tablas!$A$747:$G$749,6,TRUE)))))))))))), (IF($F$20=3,(IF(3-$F$22=0,0, (IF(3-$F$22=1,(VLOOKUP(1,Tablas!$A$747:$G$749,6,TRUE)), (IF(3-$F$22=2, (VLOOKUP(2,Tablas!$A$747:$G$749,6,TRUE)), (VLOOKUP(3,Tablas!$A$747:$G$749,6,TRUE)))))))), (IF($F$20=2,(IF(2-$F$22=0, 0, (IF(2-$F$22=1,(VLOOKUP(1,Tablas!$A$747:$G$749,6,TRUE)), (IF(2-$F$22=2, (VLOOKUP(2,Tablas!$A$747:$G$749,6,TRUE)), 0)))))), (IF($F$20=1,(IF(1-$F$22=0, 0, (IF(1-$F$22=1,(VLOOKUP(1,Tablas!$A$747:$G$749,6,TRUE)),0)))),0))))))))))))))))))) -> 560.45 | K55: =IF($F$18=1, (IF($F$20=0, 0, (IF($F$22>$F$20, (VLOOKUP($F$20,Tablas!$A$747:$G$749,7,TRUE)), (IF($F$20>4,(IF($F$22=0, (VLOOKUP(3,Tablas!$A$747:$G$749,7,TRUE)), (IF($F$22=1, (VLOOKUP(3,Tablas!$A$747:$G$749,7,TRUE)), (IF($F$22=2, (VLOOKUP(3,Tablas!$A$747:$G$749,7,TRUE)), (VLOOKUP(3,Tablas!$A$747:$G$749,7,TRUE)))))))), (IF($F$20=4,(IF(4-$F$22=0,(VLOOKUP(2,Tablas!$A$747:$G$749,7,TRUE)), (IF(4-$F$22=1,(VLOOKUP(2,Tablas!$A$747:$G$749,7,TRUE)), (IF(4-$F$22=2, (VLOOKUP(2,Tablas!$A$747:$G$749,7,TRUE)), (VLOOKUP(3,Tablas!$A$747:$G$749,7,TRUE)))))))), (IF($F$20=3,(IF(3-$F$22=0,(VLOOKUP(1,Tablas!$A$747:$G$749,7,TRUE)), (IF(3-$F$22=1,(VLOOKUP(1,Tablas!$A$747:$G$749,7,TRUE)), (IF(3-$F$22=2, (VLOOKUP(2,Tablas!$A$747:$G$749,7,TRUE)), (VLOOKUP(3,Tablas!$A$747:$G$749,7,TRUE)))))))), (IF($F$20=2,(IF(2-$F$22=0, 0, (IF(2-$F$22=1,(VLOOKUP(1,Tablas!$A$747:$G$749,7,TRUE)), (IF(2-$F$22=2, (VLOOKUP(2,Tablas!$A$747:$G$749,7,TRUE)), 0)))))), (IF($F$20=1,(IF(1-$F$22=0, 0, (IF(1-$F$22=1,(VLOOKUP(1,Tablas!$A$747:$G$749,7,TRUE)),0)))),0)))))))))))))), (IF($F$20=0, 0, (IF($F$22>$F$20, (VLOOKUP($F$20,Tablas!$A$747:$G$749,7,TRUE)), (IF($F$20=4,(IF(4-$F$22=0, 0, (IF(4-$F$22=1, (VLOOKUP(1,Tablas!$A$747:$G$749,7,TRUE)), (IF(4-$F$22=2, (VLOOKUP(2,Tablas!$A$747:$G$749,7,TRUE)), (IF(4-$F$22=3, (VLOOKUP(3,Tablas!$A$747:$G$749,7,TRUE)), (IF(4-$F$22=4, (VLOOKUP(3,Tablas!$A$747:$G$749,7,TRUE)), 0)))))))))), (IF($F$20=5,(IF(5-$F$22=0, (VLOOKUP(1,Tablas!$A$747:$G$749,7,TRUE)), (IF(5-$F$22=1, (VLOOKUP(1,Tablas!$A$747:$G$749,7,TRUE)), (IF(5-$F$22=2, (VLOOKUP(2,Tablas!$A$747:$G$749,7,TRUE)), (IF(5-$F$22=3, (VLOOKUP(3,Tablas!$A$747:$G$749,7,TRUE)), (IF(5-$F$22=4, (VLOOKUP(3,Tablas!$A$747:$G$749,7,TRUE)), (VLOOKUP(3,Tablas!$A$747:$G$749,7,TRUE)))))))))))), (IF($F$20=6,(IF(6-$F$22=0, (VLOOKUP(2,Tablas!$A$747:$G$749,7,TRUE)), (IF(6-$F$22=1, (VLOOKUP(2,Tablas!$A$747:$G$749,7,TRUE)), (IF(6-$F$22=2, (VLOOKUP(2,Tablas!$A$747:$G$749,7,TRUE)), (IF(6-$F$22=3, (VLOOKUP(3,Tablas!$A$747:$G$749,7,TRUE)), (IF(6-$F$22=4, (VLOOKUP(3,Tablas!$A$747:$G$749,7,TRUE)), (VLOOKUP(3,Tablas!$A$747:$G$749,7,TRUE)))))))))))), (IF($F$20>6,(IF(7-$F$22=0, (VLOOKUP(3,Tablas!$A$747:$G$749,7,TRUE)), (IF(7-$F$22=1, (VLOOKUP(3,Tablas!$A$747:$G$749,7,TRUE)), (IF(7-$F$22=2, (VLOOKUP(3,Tablas!$A$747:$G$749,7,TRUE)), (IF(7-$F$22=3, (VLOOKUP(3,Tablas!$A$747:$G$749,7,TRUE)), (IF(7-$F$22=4, (VLOOKUP(3,Tablas!$A$747:$G$749,7,TRUE)), (VLOOKUP(3,Tablas!$A$747:$G$749,7,TRUE)))))))))))), (IF($F$20=3,(IF(3-$F$22=0,0, (IF(3-$F$22=1,(VLOOKUP(1,Tablas!$A$747:$G$749,7,TRUE)), (IF(3-$F$22=2, (VLOOKUP(2,Tablas!$A$747:$G$749,7,TRUE)), (VLOOKUP(3,Tablas!$A$747:$G$749,7,TRUE)))))))), (IF($F$20=2,(IF(2-$F$22=0, 0, (IF(2-$F$22=1,(VLOOKUP(1,Tablas!$A$747:$G$749,7,TRUE)), (IF(2-$F$22=2, (VLOOKUP(2,Tablas!$A$747:$G$749,7,TRUE)), 0)))))), (IF($F$20=1,(IF(1-$F$22=0, 0, (IF(1-$F$22=1,(VLOOKUP(1,Tablas!$A$747:$G$749,7,TRUE)),0)))),0))))))))))))))))))) -> 434.775
E56: Total de Prima neta | G56: =SUM(G53:G55) -> 21248.15 | H56: =SUM(H53:H55) -> 18624.1 | I56: =SUM(I53:I55) -> 15228.4 | J56: =SUM(J53:J55) -> 13205.225 | K56: =SUM(K53:K55) -> 10241.275
E57: Ajuste por variante con coaseguro fuera del país de residencia | G57: =IF('INGRESO DE DATOS'!$H$20,G56*-25%,0) -> 0 | H57: =IF('INGRESO DE DATOS'!$H$20,H56*-25%,0) -> 0 | I57: =IF('INGRESO DE DATOS'!$H$20,I56*-25%,0) -> 0 | J57: =IF('INGRESO DE DATOS'!$H$20,J56*-25%,0) -> 0 | K57: =IF('INGRESO DE DATOS'!$H$20,K56*-25%,0) -> 0
E58: Tarifa administrativa anual | G58: 75 | H58: 75 | I58: 75 | J58: 75 | K58: 75
E59: IVA (12%) | G59: =(G56+G58)*0% -> 0 | H59: =(H56+H58)*0% -> 0 | I59: 0 | J59: 0 | K59: 0
E60: TOTAL de primera cuota | G60: =SUM(G56:G59) -> 21323.15 | H60: =SUM(H56:H59) -> 18699.1 | I60: =SUM(I56:I59) -> 15303.4 | J60: =SUM(J56:J59) -> 13280.225 | K60: =SUM(K56:K59) -> 10316.275
E61: Costo de tarifa trimestral 2 a 4 | G61: =SUM(G56:G57) -> 21248.15 | H61: =SUM(H56:H57) -> 18624.1 | I61: 15228.4 | J61: 13205.225 | K61: 10241.275
E62: TOTAL ANUAL | G62: =G60+(G61*3) -> 85067.6 | H62: =H60+(H61*3) -> 74571.4 | I62: 60988.6 | J62: =J60+(J61*3) -> 52895.9 | K62: 41040.1
E63: Ahorros en tarifas de prima para niños | G63: =IF($F$18=1,IF($F$20=0,0,IF($F$22=0,0,IF($F$22=1,(VLOOKUP(1,Tablas!$A$747:$G$749,3,TRUE)),(VLOOKUP(2,Tablas!$A$747:$G$749,3,TRUE))))), IF($F$20=0,0,IF($F$22=0,0,IF($F$22=1,(VLOOKUP(1,Tablas!$A$747:$G$749,3,TRUE)),IF($F$22=2,(VLOOKUP(2,Tablas!$A$747:$G$749,3,TRUE)), (VLOOKUP(3,Tablas!$A$747:$G$749,3,TRUE))))))) -> 1479.225 | H63: =IF($F$18=1,IF($F$20=0,0,IF($F$22=0,0,IF($F$22=1,(VLOOKUP(1,Tablas!$A$747:$G$749,4,TRUE)),(VLOOKUP(2,Tablas!$A$747:$G$749,4,TRUE))))), IF($F$20=0,0,IF($F$22=0,0,IF($F$22=1,(VLOOKUP(1,Tablas!$A$747:$G$749,4,TRUE)),IF($F$22=2,(VLOOKUP(2,Tablas!$A$747:$G$749,4,TRUE)), (VLOOKUP(3,Tablas!$A$747:$G$749,4,TRUE))))))) -> 1296.625 | I63: =IF($F$18=1,IF($F$20=0,0,IF($F$22=0,0,IF($F$22=1,(VLOOKUP(1,Tablas!$A$747:$G$749,5,TRUE)),(VLOOKUP(2,Tablas!$A$747:$G$749,5,TRUE))))), IF($F$20=0,0,IF($F$22=0,0,IF($F$22=1,(VLOOKUP(1,Tablas!$A$747:$G$749,5,TRUE)),IF($F$22=2,(VLOOKUP(2,Tablas!$A$747:$G$749,5,TRUE)), (VLOOKUP(3,Tablas!$A$747:$G$749,5,TRUE))))))) -> 1098.075 | J63: =IF($F$18=1,IF($F$20=0,0,IF($F$22=0,0,IF($F$22=1,(VLOOKUP(1,Tablas!$A$747:$G$749,6,TRUE)),(VLOOKUP(2,Tablas!$A$747:$G$749,6,TRUE))))), IF($F$20=0,0,IF($F$22=0,0,IF($F$22=1,(VLOOKUP(1,Tablas!$A$747:$G$749,6,TRUE)),IF($F$22=2,(VLOOKUP(2,Tablas!$A$747:$G$749,6,TRUE)), (VLOOKUP(3,Tablas!$A$747:$G$749,6,TRUE))))))) -> 952.05 | K63: =IF($F$18=1,IF($F$20=0,0,IF($F$22=0,0,IF($F$22=1,(VLOOKUP(1,Tablas!$A$747:$G$749,7,TRUE)),(VLOOKUP(2,Tablas!$A$747:$G$749,7,TRUE))))), IF($F$20=0,0,IF($F$22=0,0,IF($F$22=1,(VLOOKUP(1,Tablas!$A$747:$G$749,7,TRUE)),IF($F$22=2,(VLOOKUP(2,Tablas!$A$747:$G$749,7,TRUE)), (VLOOKUP(3,Tablas!$A$747:$G$749,7,TRUE))))))) -> 738.65
E65: Tarifas mensuales
E66: Prima para Asegurado Titular | G66: =VLOOKUP($J$18,Tablas!$A$80:$G$146,3,TRUE) -> 2595.693333 | H66: =VLOOKUP($J$18,Tablas!$A$80:$G$146,4,TRUE) -> 2275.093333 | I66: =VLOOKUP($J$18,Tablas!$A$80:$G$146,5,TRUE) -> 1853.413333 | J66: =VLOOKUP($J$18,Tablas!$A$80:$G$146,6,TRUE) -> 1607.106667 | K66: =VLOOKUP($J$18,Tablas!$A$80:$G$146,7,TRUE) -> 1246.466667
E67: Prima para conyuge | G67: =IF($F$18=1,0,(VLOOKUP($J$20,Tablas!$A$80:$G$146,3,TRUE))) -> 4320.586667 | H67: =IF($F$18=1,0,(VLOOKUP($J$20,Tablas!$A$80:$G$146,4,TRUE))) -> 3787 | I67: =IF($F$18=1,0,(VLOOKUP($J$20,Tablas!$A$80:$G$146,5,TRUE))) -> 3095.773333 | J67: =IF($F$18=1,0,(VLOOKUP($J$20,Tablas!$A$80:$G$146,6,TRUE))) -> 2684.453333 | K67: =IF($F$18=1,0,(VLOOKUP($J$20,Tablas!$A$80:$G$146,7,TRUE))) -> 2081.8
E68: Prima para hijo (s) | G68: =IF($F$18=1, (IF($F$20=0, 0, (IF($F$22>$F$20, (VLOOKUP($F$20,Tablas!$A$147:$G$149,3,TRUE)), (IF($F$20>4,(IF($F$22=0, (VLOOKUP(3,Tablas!$A$147:$G$149,3,TRUE)), (IF($F$22=1, (VLOOKUP(3,Tablas!$A$147:$G$149,3,TRUE)), (IF($F$22=2, (VLOOKUP(3,Tablas!$A$147:$G$149,3,TRUE)), (VLOOKUP(3,Tablas!$A$147:$G$149,3,TRUE)))))))), (IF($F$20=4,(IF(4-$F$22=0,(VLOOKUP(2,Tablas!$A$147:$G$149,3,TRUE)), (IF(4-$F$22=1,(VLOOKUP(2,Tablas!$A$147:$G$149,3,TRUE)), (IF(4-$F$22=2, (VLOOKUP(2,Tablas!$A$147:$G$149,3,TRUE)), (VLOOKUP(3,Tablas!$A$147:$G$149,3,TRUE)))))))), (IF($F$20=3,(IF(3-$F$22=0,(VLOOKUP(1,Tablas!$A$147:$G$149,3,TRUE)), (IF(3-$F$22=1,(VLOOKUP(1,Tablas!$A$147:$G$149,3,TRUE)), (IF(3-$F$22=2, (VLOOKUP(2,Tablas!$A$147:$G$149,3,TRUE)), (VLOOKUP(3,Tablas!$A$147:$G$149,3,TRUE)))))))), (IF($F$20=2,(IF(2-$F$22=0, 0, (IF(2-$F$22=1,(VLOOKUP(1,Tablas!$A$147:$G$149,3,TRUE)), (IF(2-$F$22=2, (VLOOKUP(2,Tablas!$A$147:$G$149,3,TRUE)), 0)))))), (IF($F$20=1,(IF(1-$F$22=0, 0, (IF(1-$F$22=1,(VLOOKUP(1,Tablas!$A$147:$G$149,3,TRUE)),0)))),0)))))))))))))), (IF($F$20=0, 0, (IF($F$22>$F$20, (VLOOKUP($F$20,Tablas!$A$147:$G$149,3,TRUE)), (IF($F$20=4,(IF(4-$F$22=0, 0, (IF(4-$F$22=1, (VLOOKUP(1,Tablas!$A$147:$G$149,3,TRUE)), (IF(4-$F$22=2, (VLOOKUP(2,Tablas!$A$147:$G$149,3,TRUE)), (IF(4-$F$22=3, (VLOOKUP(3,Tablas!$A$147:$G$149,3,TRUE)), (IF(4-$F$22=4, (VLOOKUP(3,Tablas!$A$147:$G$149,3,TRUE)), 0)))))))))), (IF($F$20=5,(IF(5-$F$22=0, (VLOOKUP(1,Tablas!$A$147:$G$149,3,TRUE)), (IF(5-$F$22=1, (VLOOKUP(1,Tablas!$A$147:$G$149,3,TRUE)), (IF(5-$F$22=2, (VLOOKUP(2,Tablas!$A$147:$G$149,3,TRUE)), (IF(5-$F$22=3, (VLOOKUP(3,Tablas!$A$147:$G$149,3,TRUE)), (IF(5-$F$22=4, (VLOOKUP(3,Tablas!$A$147:$G$149,3,TRUE)), (VLOOKUP(3,Tablas!$A$147:$G$149,3,TRUE)))))))))))), (IF($F$20=6,(IF(6-$F$22=0, (VLOOKUP(2,Tablas!$A$147:$G$149,3,TRUE)), (IF(6-$F$22=1, (VLOOKUP(2,Tablas!$A$147:$G$149,3,TRUE)), (IF(6-$F$22=2, (VLOOKUP(2,Tablas!$A$147:$G$149,3,TRUE)), (IF(6-$F$22=3, (VLOOKUP(3,Tablas!$A$147:$G$149,3,TRUE)), (IF(6-$F$22=4, (VLOOKUP(3,Tablas!$A$147:$G$149,3,TRUE)), (VLOOKUP(3,Tablas!$A$147:$G$149,3,TRUE)))))))))))), (IF($F$20>6,(IF(7-$F$22=0, (VLOOKUP(3,Tablas!$A$147:$G$149,3,TRUE)), (IF(7-$F$22=1, (VLOOKUP(3,Tablas!$A$147:$G$149,3,TRUE)), (IF(7-$F$22=2, (VLOOKUP(3,Tablas!$A$147:$G$149,3,TRUE)), (IF(7-$F$22=3, (VLOOKUP(3,Tablas!$A$147:$G$149,3,TRUE)), (IF(7-$F$22=4, (VLOOKUP(3,Tablas!$A$147:$G$149,3,TRUE)), (VLOOKUP(3,Tablas!$A$147:$G$149,3,TRUE)))))))))))), (IF($F$20=3,(IF(3-$F$22=0,0, (IF(3-$F$22=1,(VLOOKUP(1,Tablas!$A$147:$G$149,3,TRUE)), (IF(3-$F$22=2, (VLOOKUP(2,Tablas!$A$147:$G$149,3,TRUE)), (VLOOKUP(3,Tablas!$A$147:$G$149,3,TRUE)))))))), (IF($F$20=2,(IF(2-$F$22=0, 0, (IF(2-$F$22=1,(VLOOKUP(1,Tablas!$A$147:$G$149,3,TRUE)), (IF(2-$F$22=2, (VLOOKUP(2,Tablas!$A$147:$G$149,3,TRUE)), 0)))))), (IF($F$20=1,(IF(1-$F$22=0, 0, (IF(1-$F$22=1,(VLOOKUP(1,Tablas!$A$147:$G$149,3,TRUE)),0)))),0))))))))))))))))))) -> 295.2133333 | H68: =IF($F$18=1, (IF($F$20=0, 0, (IF($F$22>$F$20, (VLOOKUP($F$20,Tablas!$A$147:$G$149,4,TRUE)), (IF($F$20>4,(IF($F$22=0, (VLOOKUP(3,Tablas!$A$147:$G$149,4,TRUE)), (IF($F$22=1, (VLOOKUP(3,Tablas!$A$147:$G$149,4,TRUE)), (IF($F$22=2, (VLOOKUP(3,Tablas!$A$147:$G$149,4,TRUE)), (VLOOKUP(3,Tablas!$A$147:$G$149,4,TRUE)))))))), (IF($F$20=4,(IF(4-$F$22=0,(VLOOKUP(2,Tablas!$A$147:$G$149,4,TRUE)), (IF(4-$F$22=1,(VLOOKUP(2,Tablas!$A$147:$G$149,4,TRUE)), (IF(4-$F$22=2, (VLOOKUP(2,Tablas!$A$147:$G$149,4,TRUE)), (VLOOKUP(3,Tablas!$A$147:$G$149,4,TRUE)))))))), (IF($F$20=3,(IF(3-$F$22=0,(VLOOKUP(1,Tablas!$A$147:$G$149,4,TRUE)), (IF(3-$F$22=1,(VLOOKUP(1,Tablas!$A$147:$G$149,4,TRUE)), (IF(3-$F$22=2, (VLOOKUP(2,Tablas!$A$147:$G$149,4,TRUE)), (VLOOKUP(3,Tablas!$A$147:$G$149,4,TRUE)))))))), (IF($F$20=2,(IF(2-$F$22=0, 0, (IF(2-$F$22=1,(VLOOKUP(1,Tablas!$A$147:$G$149,4,TRUE)), (IF(2-$F$22=2, (VLOOKUP(2,Tablas!$A$147:$G$149,4,TRUE)), 0)))))), (IF($F$20=1,(IF(1-$F$22=0, 0, (IF(1-$F$22=1,(VLOOKUP(1,Tablas!$A$147:$G$149,4,TRUE)),0)))),0)))))))))))))), (IF($F$20=0, 0, (IF($F$22>$F$20, (VLOOKUP($F$20,Tablas!$A$147:$G$149,4,TRUE)), (IF($F$20=4,(IF(4-$F$22=0, 0, (IF(4-$F$22=1, (VLOOKUP(1,Tablas!$A$147:$G$149,4,TRUE)), (IF(4-$F$22=2, (VLOOKUP(2,Tablas!$A$147:$G$149,4,TRUE)), (IF(4-$F$22=3, (VLOOKUP(3,Tablas!$A$147:$G$149,4,TRUE)), (IF(4-$F$22=4, (VLOOKUP(3,Tablas!$A$147:$G$149,4,TRUE)), 0)))))))))), (IF($F$20=5,(IF(5-$F$22=0, (VLOOKUP(1,Tablas!$A$147:$G$149,4,TRUE)), (IF(5-$F$22=1, (VLOOKUP(1,Tablas!$A$147:$G$149,4,TRUE)), (IF(5-$F$22=2, (VLOOKUP(2,Tablas!$A$147:$G$149,4,TRUE)), (IF(5-$F$22=3, (VLOOKUP(3,Tablas!$A$147:$G$149,4,TRUE)), (IF(5-$F$22=4, (VLOOKUP(3,Tablas!$A$147:$G$149,4,TRUE)), (VLOOKUP(3,Tablas!$A$147:$G$149,4,TRUE)))))))))))), (IF($F$20=6,(IF(6-$F$22=0, (VLOOKUP(2,Tablas!$A$147:$G$149,4,TRUE)), (IF(6-$F$22=1, (VLOOKUP(2,Tablas!$A$147:$G$149,4,TRUE)), (IF(6-$F$22=2, (VLOOKUP(2,Tablas!$A$147:$G$149,4,TRUE)), (IF(6-$F$22=3, (VLOOKUP(3,Tablas!$A$147:$G$149,4,TRUE)), (IF(6-$F$22=4, (VLOOKUP(3,Tablas!$A$147:$G$149,4,TRUE)), (VLOOKUP(3,Tablas!$A$147:$G$149,4,TRUE)))))))))))), (IF($F$20>6,(IF(7-$F$22=0, (VLOOKUP(3,Tablas!$A$147:$G$149,4,TRUE)), (IF(7-$F$22=1, (VLOOKUP(3,Tablas!$A$147:$G$149,4,TRUE)), (IF(7-$F$22=2, (VLOOKUP(3,Tablas!$A$147:$G$149,4,TRUE)), (IF(7-$F$22=3, (VLOOKUP(3,Tablas!$A$147:$G$149,4,TRUE)), (IF(7-$F$22=4, (VLOOKUP(3,Tablas!$A$147:$G$149,4,TRUE)), (VLOOKUP(3,Tablas!$A$147:$G$149,4,TRUE)))))))))))), (IF($F$20=3,(IF(3-$F$22=0,0, (IF(3-$F$22=1,(VLOOKUP(1,Tablas!$A$147:$G$149,4,TRUE)), (IF(3-$F$22=2, (VLOOKUP(2,Tablas!$A$147:$G$149,4,TRUE)), (VLOOKUP(3,Tablas!$A$147:$G$149,4,TRUE)))))))), (IF($F$20=2,(IF(2-$F$22=0, 0, (IF(2-$F$22=1,(VLOOKUP(1,Tablas!$A$147:$G$149,4,TRUE)), (IF(2-$F$22=2, (VLOOKUP(2,Tablas!$A$147:$G$149,4,TRUE)), 0)))))), (IF($F$20=1,(IF(1-$F$22=0, 0, (IF(1-$F$22=1,(VLOOKUP(1,Tablas!$A$147:$G$149,4,TRUE)),0)))),0))))))))))))))))))) -> 258.8133333 | I68: =IF($F$18=1, (IF($F$20=0, 0, (IF($F$22>$F$20, (VLOOKUP($F$20,Tablas!$A$147:$G$149,5,TRUE)), (IF($F$20>4,(IF($F$22=0, (VLOOKUP(3,Tablas!$A$147:$G$149,5,TRUE)), (IF($F$22=1, (VLOOKUP(3,Tablas!$A$147:$G$149,5,TRUE)), (IF($F$22=2, (VLOOKUP(3,Tablas!$A$147:$G$149,5,TRUE)), (VLOOKUP(3,Tablas!$A$147:$G$149,5,TRUE)))))))), (IF($F$20=4,(IF(4-$F$22=0,(VLOOKUP(2,Tablas!$A$147:$G$149,5,TRUE)), (IF(4-$F$22=1,(VLOOKUP(2,Tablas!$A$147:$G$149,5,TRUE)), (IF(4-$F$22=2, (VLOOKUP(2,Tablas!$A$147:$G$149,5,TRUE)), (VLOOKUP(3,Tablas!$A$147:$G$149,5,TRUE)))))))), (IF($F$20=3,(IF(3-$F$22=0,(VLOOKUP(1,Tablas!$A$147:$G$149,5,TRUE)), (IF(3-$F$22=1,(VLOOKUP(1,Tablas!$A$147:$G$149,5,TRUE)), (IF(3-$F$22=2, (VLOOKUP(2,Tablas!$A$147:$G$149,5,TRUE)), (VLOOKUP(3,Tablas!$A$147:$G$149,5,TRUE)))))))), (IF($F$20=2,(IF(2-$F$22=0, 0, (IF(2-$F$22=1,(VLOOKUP(1,Tablas!$A$147:$G$149,5,TRUE)), (IF(2-$F$22=2, (VLOOKUP(2,Tablas!$A$147:$G$149,5,TRUE)), 0)))))), (IF($F$20=1,(IF(1-$F$22=0, 0, (IF(1-$F$22=1,(VLOOKUP(1,Tablas!$A$147:$G$149,5,TRUE)),0)))),0)))))))))))))), (IF($F$20=0, 0, (IF($F$22>$F$20, (VLOOKUP($F$20,Tablas!$A$147:$G$149,5,TRUE)), (IF($F$20=4,(IF(4-$F$22=0, 0, (IF(4-$F$22=1, (VLOOKUP(1,Tablas!$A$147:$G$149,5,TRUE)), (IF(4-$F$22=2, (VLOOKUP(2,Tablas!$A$147:$G$149,5,TRUE)), (IF(4-$F$22=3, (VLOOKUP(3,Tablas!$A$147:$G$149,5,TRUE)), (IF(4-$F$22=4, (VLOOKUP(3,Tablas!$A$147:$G$149,5,TRUE)), 0)))))))))), (IF($F$20=5,(IF(5-$F$22=0, (VLOOKUP(1,Tablas!$A$147:$G$149,5,TRUE)), (IF(5-$F$22=1, (VLOOKUP(1,Tablas!$A$147:$G$149,5,TRUE)), (IF(5-$F$22=2, (VLOOKUP(2,Tablas!$A$147:$G$149,5,TRUE)), (IF(5-$F$22=3, (VLOOKUP(3,Tablas!$A$147:$G$149,5,TRUE)), (IF(5-$F$22=4, (VLOOKUP(3,Tablas!$A$147:$G$149,5,TRUE)), (VLOOKUP(3,Tablas!$A$147:$G$149,5,TRUE)))))))))))), (IF($F$20=6,(IF(6-$F$22=0, (VLOOKUP(2,Tablas!$A$147:$G$149,5,TRUE)), (IF(6-$F$22=1, (VLOOKUP(2,Tablas!$A$147:$G$149,5,TRUE)), (IF(6-$F$22=2, (VLOOKUP(2,Tablas!$A$147:$G$149,5,TRUE)), (IF(6-$F$22=3, (VLOOKUP(3,Tablas!$A$147:$G$149,5,TRUE)), (IF(6-$F$22=4, (VLOOKUP(3,Tablas!$A$147:$G$149,5,TRUE)), (VLOOKUP(3,Tablas!$A$147:$G$149,5,TRUE)))))))))))), (IF($F$20>6,(IF(7-$F$22=0, (VLOOKUP(3,Tablas!$A$147:$G$149,5,TRUE)), (IF(7-$F$22=1, (VLOOKUP(3,Tablas!$A$147:$G$149,5,TRUE)), (IF(7-$F$22=2, (VLOOKUP(3,Tablas!$A$147:$G$149,5,TRUE)), (IF(7-$F$22=3, (VLOOKUP(3,Tablas!$A$147:$G$149,5,TRUE)), (IF(7-$F$22=4, (VLOOKUP(3,Tablas!$A$147:$G$149,5,TRUE)), (VLOOKUP(3,Tablas!$A$147:$G$149,5,TRUE)))))))))))), (IF($F$20=3,(IF(3-$F$22=0,0, (IF(3-$F$22=1,(VLOOKUP(1,Tablas!$A$147:$G$149,5,TRUE)), (IF(3-$F$22=2, (VLOOKUP(2,Tablas!$A$147:$G$149,5,TRUE)), (VLOOKUP(3,Tablas!$A$147:$G$149,5,TRUE)))))))), (IF($F$20=2,(IF(2-$F$22=0, 0, (IF(2-$F$22=1,(VLOOKUP(1,Tablas!$A$147:$G$149,5,TRUE)), (IF(2-$F$22=2, (VLOOKUP(2,Tablas!$A$147:$G$149,5,TRUE)), 0)))))), (IF($F$20=1,(IF(1-$F$22=0, 0, (IF(1-$F$22=1,(VLOOKUP(1,Tablas!$A$147:$G$149,5,TRUE)),0)))),0))))))))))))))))))) -> 219.24 | J68: =IF($F$18=1, (IF($F$20=0, 0, (IF($F$22>$F$20, (VLOOKUP($F$20,Tablas!$A$147:$G$149,6,TRUE)), (IF($F$20>4,(IF($F$22=0, (VLOOKUP(3,Tablas!$A$147:$G$149,6,TRUE)), (IF($F$22=1, (VLOOKUP(3,Tablas!$A$147:$G$149,6,TRUE)), (IF($F$22=2, (VLOOKUP(3,Tablas!$A$147:$G$149,6,TRUE)), (VLOOKUP(3,Tablas!$A$147:$G$149,6,TRUE)))))))), (IF($F$20=4,(IF(4-$F$22=0,(VLOOKUP(2,Tablas!$A$147:$G$149,6,TRUE)), (IF(4-$F$22=1,(VLOOKUP(2,Tablas!$A$147:$G$149,6,TRUE)), (IF(4-$F$22=2, (VLOOKUP(2,Tablas!$A$147:$G$149,6,TRUE)), (VLOOKUP(3,Tablas!$A$147:$G$149,6,TRUE)))))))), (IF($F$20=3,(IF(3-$F$22=0,(VLOOKUP(1,Tablas!$A$147:$G$149,6,TRUE)), (IF(3-$F$22=1,(VLOOKUP(1,Tablas!$A$147:$G$149,6,TRUE)), (IF(3-$F$22=2, (VLOOKUP(2,Tablas!$A$147:$G$149,6,TRUE)), (VLOOKUP(3,Tablas!$A$147:$G$149,6,TRUE)))))))), (IF($F$20=2,(IF(2-$F$22=0, 0, (IF(2-$F$22=1,(VLOOKUP(1,Tablas!$A$147:$G$149,6,TRUE)), (IF(2-$F$22=2, (VLOOKUP(2,Tablas!$A$147:$G$149,6,TRUE)), 0)))))), (IF($F$20=1,(IF(1-$F$22=0, 0, (IF(1-$F$22=1,(VLOOKUP(1,Tablas!$A$147:$G$149,6,TRUE)),0)))),0)))))))))))))), (IF($F$20=0, 0, (IF($F$22>$F$20, (VLOOKUP($F$20,Tablas!$A$147:$G$149,6,TRUE)), (IF($F$20=4,(IF(4-$F$22=0, 0, (IF(4-$F$22=1, (VLOOKUP(1,Tablas!$A$147:$G$149,6,TRUE)), (IF(4-$F$22=2, (VLOOKUP(2,Tablas!$A$147:$G$149,6,TRUE)), (IF(4-$F$22=3, (VLOOKUP(3,Tablas!$A$147:$G$149,6,TRUE)), (IF(4-$F$22=4, (VLOOKUP(3,Tablas!$A$147:$G$149,6,TRUE)), 0)))))))))), (IF($F$20=5,(IF(5-$F$22=0, (VLOOKUP(1,Tablas!$A$147:$G$149,6,TRUE)), (IF(5-$F$22=1, (VLOOKUP(1,Tablas!$A$147:$G$149,6,TRUE)), (IF(5-$F$22=2, (VLOOKUP(2,Tablas!$A$147:$G$149,6,TRUE)), (IF(5-$F$22=3, (VLOOKUP(3,Tablas!$A$147:$G$149,6,TRUE)), (IF(5-$F$22=4, (VLOOKUP(3,Tablas!$A$147:$G$149,6,TRUE)), (VLOOKUP(3,Tablas!$A$147:$G$149,6,TRUE)))))))))))), (IF($F$20=6,(IF(6-$F$22=0, (VLOOKUP(2,Tablas!$A$147:$G$149,6,TRUE)), (IF(6-$F$22=1, (VLOOKUP(2,Tablas!$A$147:$G$149,6,TRUE)), (IF(6-$F$22=2, (VLOOKUP(2,Tablas!$A$147:$G$149,6,TRUE)), (IF(6-$F$22=3, (VLOOKUP(3,Tablas!$A$147:$G$149,6,TRUE)), (IF(6-$F$22=4, (VLOOKUP(3,Tablas!$A$147:$G$149,6,TRUE)), (VLOOKUP(3,Tablas!$A$147:$G$149,6,TRUE)))))))))))), (IF($F$20>6,(IF(7-$F$22=0, (VLOOKUP(3,Tablas!$A$147:$G$149,6,TRUE)), (IF(7-$F$22=1, (VLOOKUP(3,Tablas!$A$147:$G$149,6,TRUE)), (IF(7-$F$22=2, (VLOOKUP(3,Tablas!$A$147:$G$149,6,TRUE)), (IF(7-$F$22=3, (VLOOKUP(3,Tablas!$A$147:$G$149,6,TRUE)), (IF(7-$F$22=4, (VLOOKUP(3,Tablas!$A$147:$G$149,6,TRUE)), (VLOOKUP(3,Tablas!$A$147:$G$149,6,TRUE)))))))))))), (IF($F$20=3,(IF(3-$F$22=0,0, (IF(3-$F$22=1,(VLOOKUP(1,Tablas!$A$147:$G$149,6,TRUE)), (IF(3-$F$22=2, (VLOOKUP(2,Tablas!$A$147:$G$149,6,TRUE)), (VLOOKUP(3,Tablas!$A$147:$G$149,6,TRUE)))))))), (IF($F$20=2,(IF(2-$F$22=0, 0, (IF(2-$F$22=1,(VLOOKUP(1,Tablas!$A$147:$G$149,6,TRUE)), (IF(2-$F$22=2, (VLOOKUP(2,Tablas!$A$147:$G$149,6,TRUE)), 0)))))), (IF($F$20=1,(IF(1-$F$22=0, 0, (IF(1-$F$22=1,(VLOOKUP(1,Tablas!$A$147:$G$149,6,TRUE)),0)))),0))))))))))))))))))) -> 190.2133333 | K68: =IF($F$18=1, (IF($F$20=0, 0, (IF($F$22>$F$20, (VLOOKUP($F$20,Tablas!$A$147:$G$149,6,TRUE)), (IF($F$20>4,(IF($F$22=0, (VLOOKUP(3,Tablas!$A$147:$G$149,6,TRUE)), (IF($F$22=1, (VLOOKUP(3,Tablas!$A$147:$G$149,6,TRUE)), (IF($F$22=2, (VLOOKUP(3,Tablas!$A$147:$G$149,6,TRUE)), (VLOOKUP(3,Tablas!$A$147:$G$149,6,TRUE)))))))), (IF($F$20=4,(IF(4-$F$22=0,(VLOOKUP(2,Tablas!$A$147:$G$149,6,TRUE)), (IF(4-$F$22=1,(VLOOKUP(2,Tablas!$A$147:$G$149,6,TRUE)), (IF(4-$F$22=2, (VLOOKUP(2,Tablas!$A$147:$G$149,6,TRUE)), (VLOOKUP(3,Tablas!$A$147:$G$149,6,TRUE)))))))), (IF($F$20=3,(IF(3-$F$22=0,(VLOOKUP(1,Tablas!$A$147:$G$149,6,TRUE)), (IF(3-$F$22=1,(VLOOKUP(1,Tablas!$A$147:$G$149,6,TRUE)), (IF(3-$F$22=2, (VLOOKUP(2,Tablas!$A$147:$G$149,6,TRUE)), (VLOOKUP(3,Tablas!$A$147:$G$149,6,TRUE)))))))), (IF($F$20=2,(IF(2-$F$22=0, 0, (IF(2-$F$22=1,(VLOOKUP(1,Tablas!$A$147:$G$149,6,TRUE)), (IF(2-$F$22=2, (VLOOKUP(2,Tablas!$A$147:$G$149,6,TRUE)), 0)))))), (IF($F$20=1,(IF(1-$F$22=0, 0, (IF(1-$F$22=1,(VLOOKUP(1,Tablas!$A$147:$G$149,6,TRUE)),0)))),0)))))))))))))), (IF($F$20=0, 0, (IF($F$22>$F$20, (VLOOKUP($F$20,Tablas!$A$147:$G$149,6,TRUE)), (IF($F$20=4,(IF(4-$F$22=0, 0, (IF(4-$F$22=1, (VLOOKUP(1,Tablas!$A$147:$G$149,6,TRUE)), (IF(4-$F$22=2, (VLOOKUP(2,Tablas!$A$147:$G$149,6,TRUE)), (IF(4-$F$22=3, (VLOOKUP(3,Tablas!$A$147:$G$149,6,TRUE)), (IF(4-$F$22=4, (VLOOKUP(3,Tablas!$A$147:$G$149,6,TRUE)), 0)))))))))), (IF($F$20=5,(IF(5-$F$22=0, (VLOOKUP(1,Tablas!$A$147:$G$149,6,TRUE)), (IF(5-$F$22=1, (VLOOKUP(1,Tablas!$A$147:$G$149,6,TRUE)), (IF(5-$F$22=2, (VLOOKUP(2,Tablas!$A$147:$G$149,6,TRUE)), (IF(5-$F$22=3, (VLOOKUP(3,Tablas!$A$147:$G$149,6,TRUE)), (IF(5-$F$22=4, (VLOOKUP(3,Tablas!$A$147:$G$149,6,TRUE)), (VLOOKUP(3,Tablas!$A$147:$G$149,6,TRUE)))))))))))), (IF($F$20=6,(IF(6-$F$22=0, (VLOOKUP(2,Tablas!$A$147:$G$149,6,TRUE)), (IF(6-$F$22=1, (VLOOKUP(2,Tablas!$A$147:$G$149,6,TRUE)), (IF(6-$F$22=2, (VLOOKUP(2,Tablas!$A$147:$G$149,6,TRUE)), (IF(6-$F$22=3, (VLOOKUP(3,Tablas!$A$147:$G$149,6,TRUE)), (IF(6-$F$22=4, (VLOOKUP(3,Tablas!$A$147:$G$149,6,TRUE)), (VLOOKUP(3,Tablas!$A$147:$G$149,6,TRUE)))))))))))), (IF($F$20>6,(IF(7-$F$22=0, (VLOOKUP(3,Tablas!$A$147:$G$149,6,TRUE)), (IF(7-$F$22=1, (VLOOKUP(3,Tablas!$A$147:$G$149,6,TRUE)), (IF(7-$F$22=2, (VLOOKUP(3,Tablas!$A$147:$G$149,6,TRUE)), (IF(7-$F$22=3, (VLOOKUP(3,Tablas!$A$147:$G$149,6,TRUE)), (IF(7-$F$22=4, (VLOOKUP(3,Tablas!$A$147:$G$149,6,TRUE)), (VLOOKUP(3,Tablas!$A$147:$G$149,6,TRUE)))))))))))), (IF($F$20=3,(IF(3-$F$22=0,0, (IF(3-$F$22=1,(VLOOKUP(1,Tablas!$A$147:$G$149,6,TRUE)), (IF(3-$F$22=2, (VLOOKUP(2,Tablas!$A$147:$G$149,6,TRUE)), (VLOOKUP(3,Tablas!$A$147:$G$149,6,TRUE)))))))), (IF($F$20=2,(IF(2-$F$22=0, 0, (IF(2-$F$22=1,(VLOOKUP(1,Tablas!$A$147:$G$149,6,TRUE)), (IF(2-$F$22=2, (VLOOKUP(2,Tablas!$A$147:$G$149,6,TRUE)), 0)))))), (IF($F$20=1,(IF(1-$F$22=0, 0, (IF(1-$F$22=1,(VLOOKUP(1,Tablas!$A$147:$G$149,6,TRUE)),0)))),0))))))))))))))))))) -> 190.2133333
E69: Total de Prima neta | G69: =SUM(G66:G68) -> 7211.493333 | H69: =SUM(H66:H68) -> 6320.906667 | I69: =SUM(I66:I68) -> 5168.426667 | J69: =SUM(J66:J68) -> 4481.773333 | K69: =SUM(K66:K68) -> 3518.48
E70: Ajuste por variante con coaseguro fuera del país de residencia | G70: =IF('INGRESO DE DATOS'!$H$20,G69*-25%,0) -> 0 | H70: =IF('INGRESO DE DATOS'!$H$20,H69*-25%,0) -> 0 | I70: =IF('INGRESO DE DATOS'!$H$20,I69*-25%,0) -> 0 | J70: =IF('INGRESO DE DATOS'!$H$20,J69*-25%,0) -> 0 | K70: =IF('INGRESO DE DATOS'!$H$20,K69*-25%,0) -> 0
E71: Tarifa administrativa anual | G71: 75 | H71: 75 | I71: 75 | J71: 75 | K71: 75
E72: IVA (12%) | G72: =(G69+G71)*0% -> 0 | H72: =(H69+H71)*0% -> 0 | I72: 0 | J72: 0 | K72: 0
E73: TOTAL de primera cuota | G73: =SUM(G69:G72) -> 7286.493333 | H73: =SUM(H69:H72) -> 6395.906667 | I73: =SUM(I69:I72) -> 5243.426667 | J73: =SUM(J69:J72) -> 4556.773333 | K73: =SUM(K69:K72) -> 3593.48
E74: Costo de tarifa mensual 2 a 12 | G74: =SUM(G69:G70) -> 7211.493333 | H74: =SUM(H69:H70) -> 6320.906667 | I74: 5168.426667 | J74: 4481.773333 | K74: 3518.48
E75: TOTAL ANUAL | G75: =G73+(G74*11) -> 86612.92 | H75: =H73+(H74*11) -> 75925.88 | I75: =I73+(I74*11) -> 62096.12 | J75: =J73+(J74*11) -> 53856.28 | K75: =K73+(K74*11) -> 42296.76
E76: Ahorros en tarifas de prima para niños | G76: =IF($F$18=1,IF($F$20=0,0,IF($F$22=0,0,IF($F$22=1,(VLOOKUP(1,Tablas!$A$147:$G$149,3,TRUE)),(VLOOKUP(2,Tablas!$A$147:$G$149,3,TRUE))))), IF($F$20=0,0,IF($F$22=0,0,IF($F$22=1,(VLOOKUP(1,Tablas!$A$147:$G$149,3,TRUE)),IF($F$22=2,(VLOOKUP(2,Tablas!$A$147:$G$149,3,TRUE)), (VLOOKUP(3,Tablas!$A$147:$G$149,3,TRUE))))))) -> 502.04 | H76: =IF($F$18=1,IF($F$20=0,0,IF($F$22=0,0,IF($F$22=1,(VLOOKUP(1,Tablas!$A$147:$G$149,4,TRUE)),(VLOOKUP(2,Tablas!$A$147:$G$149,4,TRUE))))), IF($F$20=0,0,IF($F$22=0,0,IF($F$22=1,(VLOOKUP(1,Tablas!$A$147:$G$149,4,TRUE)),IF($F$22=2,(VLOOKUP(2,Tablas!$A$147:$G$149,4,TRUE)), (VLOOKUP(3,Tablas!$A$147:$G$149,4,TRUE))))))) -> 440.0666667 | I76: =IF($F$18=1,IF($F$20=0,0,IF($F$22=0,0,IF($F$22=1,(VLOOKUP(1,Tablas!$A$147:$G$149,5,TRUE)),(VLOOKUP(2,Tablas!$A$147:$G$149,5,TRUE))))), IF($F$20=0,0,IF($F$22=0,0,IF($F$22=1,(VLOOKUP(1,Tablas!$A$147:$G$149,5,TRUE)),IF($F$22=2,(VLOOKUP(2,Tablas!$A$147:$G$149,5,TRUE)), (VLOOKUP(3,Tablas!$A$147:$G$149,5,TRUE))))))) -> 372.68 | J76: =IF($F$18=1,IF($F$20=0,0,IF($F$22=0,0,IF($F$22=1,(VLOOKUP(1,Tablas!$A$147:$G$149,6,TRUE)),(VLOOKUP(2,Tablas!$A$147:$G$149,6,TRUE))))), IF($F$20=0,0,IF($F$22=0,0,IF($F$22=1,(VLOOKUP(1,Tablas!$A$147:$G$149,6,TRUE)),IF($F$22=2,(VLOOKUP(2,Tablas!$A$147:$G$149,6,TRUE)), (VLOOKUP(3,Tablas!$A$147:$G$149,6,TRUE))))))) -> 323.12 | K76: =IF($F$18=1,IF($F$20=0,0,IF($F$22=0,0,IF($F$22=1,(VLOOKUP(1,Tablas!$A$147:$G$149,7,TRUE)),(VLOOKUP(2,Tablas!$A$147:$G$149,7,TRUE))))), IF($F$20=0,0,IF($F$22=0,0,IF($F$22=1,(VLOOKUP(1,Tablas!$A$147:$G$149,7,TRUE)),IF($F$22=2,(VLOOKUP(2,Tablas!$A$147:$G$149,7,TRUE)), (VLOOKUP(3,Tablas!$A$147:$G$149,7,TRUE))))))) -> 250.6933333
E78: Tarifas en US $ - Efectivas a partir del 1ro de enero de 2022
E79: Este presupuesto solamente tiene carácter informativo y en ningún momento expresa compromiso legal para suministrarle cobertura de seguro. La emisión de una póliza de seguro Bupa está sujeta a todas las evaluaciones de riesgo por parte de Bupa y a la recepción de todos los pagos de prima requeridos.

Sheet Global Premier
A15: GLOBAL PREMIER HEALTH PLAN | D15: Nombre del Asegurado Titular | F15: =+'INGRESO DE DATOS'!$D$13 -> NOMBRE COMPLETO
D17: Número de adultos en la póliza | F17: =+'INGRESO DE DATOS'!$D$15 -> 2 | H17: Edad del Asegurado Titular | I17: =+'INGRESO DE DATOS'!$D$17 -> 65
D19: Número de niños en la póliza | F19: =+'INGRESO DE DATOS'!$J$15 -> 3 | H19: Edad del/la conyuge | I19: =+'INGRESO DE DATOS'!$J$17 -> 71
H21: Fecha de la cotización: | I21: =NOW() -> 2021-11-08T17:34:27.120
H22: FALSE
E23: Deducibles | G23: PLAN 1 | H23: PLAN 2 | I23: PLAN 3 | J23: PLAN 4
E24: En el país de residencia | G24: 250 | H24: 2000 | I24: 5000 | J24: 10000
E25: Fuera del país de residencia | G25: 5000 | H25: 2000 | I25: 5000 | J25: 10000
E27: Tarifas anuales
E28: Prima para Asegurado Titular | G28: =(VLOOKUP($I$17,Tablas!$A$155:$G$221,3,TRUE)) -> 14541.6 | H28: =(VLOOKUP($I$17,Tablas!$A$155:$G$221,4,TRUE)) -> 13195.2 | I28: =(VLOOKUP($I$17,Tablas!$A$155:$G$221,5,TRUE)) -> 9474.4 | J28: =(VLOOKUP($I$17,Tablas!$A$155:$G$221,6,TRUE)) -> 7048
E29: Prima para conyuge | G29: =(IF($F$17=1,0,(VLOOKUP($I$19,Tablas!$A$155:$G$221,3,TRUE)))) -> 24204.8 | H29: =(IF($F$17=1,0,(VLOOKUP($I$19,Tablas!$A$155:$G$221,4,TRUE)))) -> 21968 | I29: =(IF($F$17=1,0,(VLOOKUP($I$19,Tablas!$A$155:$G$221,5,TRUE)))) -> 15864 | J29: =(IF($F$17=1,0,(VLOOKUP($I$19,Tablas!$A$155:$G$221,6,TRUE)))) -> 11800.8
E30: Prima para hijo (s) | G30: =(IF($F$19=0,0,(VLOOKUP($F$19,Tablas!$A$222:$G$224,3,TRUE)))) -> 3969.6 | H30: =(IF($F$19=0,0,(VLOOKUP($F$19,Tablas!$A$222:$G$224,4,TRUE)))) -> 3603.2 | I30: =(IF($F$19=0,0,(VLOOKUP($F$19,Tablas!$A$222:$G$224,5,TRUE)))) -> 2766.4 | J30: =(IF($F$19=0,0,(VLOOKUP($F$19,Tablas!$A$222:$G$224,6,TRUE)))) -> 2058.4
E31: Total de Prima neta | G31: =SUM(G28:G30) -> 42716 | H31: =SUM(H28:H30) -> 38766.4 | I31: 28104.8 | J31: =SUM(J28:J30) -> 20907.2
E32: Ajuste por variante con coaseguro fuera del país de residencia | G32: =IF('INGRESO DE DATOS'!$H$20,G31*-25%,0) -> 0 | H32: =IF('INGRESO DE DATOS'!$H$20,H31*-25%,0) -> 0 | I32: =IF('INGRESO DE DATOS'!$H$20,I31*-25%,0) -> 0 | J32: =IF('INGRESO DE DATOS'!$H$20,J31*-25%,0) -> 0
E33: Tarifa administrativa anual | G33: 75 | H33: 75 | I33: 75 | J33: 75
E34: IVA (12%) | G34: =(G31+G33)*0% -> 0 | H34: =(H31+H33)*0% -> 0 | I34: 0 | J34: 0
E35: TOTAL ANUAL | G35: =SUM(G31:G34) -> 42791 | H35: =SUM(H31:H34) -> 38841.4 | I35: 28179.8 | J35: 20982.2
E37: Tarifas semi anuales
E38: Prima para Asegurado Titular | G38: =VLOOKUP($I$17,Tablas!$A$530:$G$596,3,TRUE) -> 7707.048 | H38: =VLOOKUP($I$17,Tablas!$A$530:$G$596,4,TRUE) -> 6993.456 | I38: =VLOOKUP($I$17,Tablas!$A$530:$G$596,5,TRUE) -> 5021.432 | J38: =VLOOKUP($I$17,Tablas!$A$530:$G$596,6,TRUE) -> 3735.44
E39: Prima para conyuge | G39: =IF($F$17=1,0,(VLOOKUP($I$19,Tablas!$A$530:$G$596,3,TRUE))) -> 12828.544 | H39: =IF($F$17=1,0,(VLOOKUP($I$19,Tablas!$A$530:$G$596,4,TRUE))) -> 11643.04 | I39: =IF($F$17=1,0,(VLOOKUP($I$19,Tablas!$A$530:$G$596,5,TRUE))) -> 8407.92 | J39: =IF($F$17=1,0,(VLOOKUP($I$19,Tablas!$A$530:$G$596,6,TRUE))) -> 6254.424
E40: Prima para hijo (s) | G40: =IF($F$19=0,0,(VLOOKUP($F$19,Tablas!$A$597:$G$599,3,TRUE))) -> 2103.888 | H40: =IF($F$19=0,0,(VLOOKUP($F$19,Tablas!$A$597:$G$599,4,TRUE))) -> 1909.696 | I40: =IF($F$19=0,0,(VLOOKUP($F$19,Tablas!$A$597:$G$599,5,TRUE))) -> 1466.192 | J40: =IF($F$19=0,0,(VLOOKUP($F$19,Tablas!$A$597:$G$599,6,TRUE))) -> 1090.952
E41: Total de Prima neta | G41: =SUM(G38:G40) -> 22639.48 | H41: =SUM(H38:H40) -> 20546.192 | I41: =SUM(I38:I40) -> 14895.544 | J41: =SUM(J38:J40) -> 11080.816
E42: Ajuste por variante con coaseguro fuera del país de residencia | G42: =IF('INGRESO DE DATOS'!$H$20,G41*-25%,0) -> 0 | H42: =IF('INGRESO DE DATOS'!$H$20,H41*-25%,0) -> 0 | I42: =IF('INGRESO DE DATOS'!$H$20,I41*-25%,0) -> 0 | J42: =IF('INGRESO DE DATOS'!$H$20,J41*-25%,0) -> 0
E43: Tarifa administrativa anual | G43: 75 | H43: 75 | I43: 75 | J43: 75
E44: IVA (12%) | G44: =(G41+G43)*0% -> 0 | H44: =(H41+H43)*0% -> 0 | I44: 0 | J44: 0
E45: TOTAL de primera cuota | G45: =SUM(G41:G43) -> 22714.48 | H45: =SUM(H41:H43) -> 20621.192 | I45: 14970.544 | J45: 11155.816
E46: Costo de segunda cuota | G46: =SUM(G41:G42) -> 22639.48 | H46: =SUM(H41:H42) -> 20546.192 | I46: 14895.544 | J46: 11080.816
E47: TOTAL ANUAL | G47: =G45+G46 -> 45353.96 | H47: =H45+H46 -> 41167.384 | I47: 29866.088 | J47: =J45+J46 -> 22236.632
E49: Tarifas trimestrales
E50: Prima para Asegurado Titular | G50: =VLOOKUP($I$17,Tablas!$A$755:$G$821,3,TRUE) -> 3998.94 | H50: =VLOOKUP($I$17,Tablas!$A$755:$G$821,4,TRUE) -> 3628.68 | I50: =VLOOKUP($I$17,Tablas!$A$755:$G$821,5,TRUE) -> 2605.46 | J50: =VLOOKUP($I$17,Tablas!$A$755:$G$821,6,TRUE) -> 1938.2
E51: Prima para conyuge | G51: =IF($F$17=1,0,(VLOOKUP($I$19,Tablas!$A$755:$G$821,3,TRUE))) -> 6656.32 | H51: =IF($F$17=1,0,(VLOOKUP($I$19,Tablas!$A$755:$G$821,4,TRUE))) -> 6041.2 | I51: =IF($F$17=1,0,(VLOOKUP($I$19,Tablas!$A$755:$G$821,5,TRUE))) -> 4362.6 | J51: =IF($F$17=1,0,(VLOOKUP($I$19,Tablas!$A$755:$G$821,6,TRUE))) -> 3245.22
E52: Prima para hijo (s) | G52: =IF($F$19=0,0,(VLOOKUP($F$19,Tablas!$A$822:$G$824,3,TRUE))) -> 1091.64 | H52: =IF($F$19=0,0,(VLOOKUP($F$19,Tablas!$A$822:$G$824,4,TRUE))) -> 990.88 | I52: =IF($F$19=0,0,(VLOOKUP($F$19,Tablas!$A$822:$G$824,5,TRUE))) -> 760.76 | J52: =IF($F$19=0,0,(VLOOKUP($F$19,Tablas!$A$822:$G$824,6,TRUE))) -> 566.06
E53: Total de Prima neta | G53: =SUM(G50:G52) -> 11746.9 | H53: =SUM(H50:H52) -> 10660.76 | I53: =SUM(I50:I52) -> 7728.82 | J53: =SUM(J50:J52) -> 5749.48
E54: Ajuste por variante con coaseguro fuera del país de residencia | G54: =IF('INGRESO DE DATOS'!$H$20,G53*-25%,0) -> 0 | H54: =IF('INGRESO DE DATOS'!$H$20,H53*-25%,0) -> 0 | I54: =IF('INGRESO DE DATOS'!$H$20,I53*-25%,0) -> 0 | J54: =IF('INGRESO DE DATOS'!$H$20,J53*-25%,0) -> 0
E55: Tarifa administrativa anual | G55: 75 | H55: 75 | I55: 75 | J55: 75
E56: IVA (12%) | G56: =(G53+G55)*0% -> 0 | H56: =(H53+H55)*0% -> 0 | I56: 0 | J56: 0
E57: TOTAL de primera cuota | G57: =SUM(G53:G56) -> 11821.9 | H57: =SUM(H53:H56) -> 10735.76 | I57: =SUM(I53:I56) -> 7803.82 | J57: =SUM(J53:J56) -> 5824.48
E58: Costo de tarifa trimestral 2 a 4 | G58: =SUM(G53:G54) -> 11746.9 | H58: =SUM(H53:H54) -> 10660.76 | I58: 7728.82 | J58: 5749.48
E59: TOTAL ANUAL | G59: =G57+(G58*3) -> 47062.6 | H59: =H57+(H58*3) -> 42718.04 | I59: 30990.28 | J59: =J57+(J58*3) -> 23072.92
E61: Tarifas mensuales
E62: Prima para Asegurado Titular | G62: =VLOOKUP($I$17,Tablas!$A$229:$G$295,3,TRUE) -> 1357.216 | H62: =VLOOKUP($I$17,Tablas!$A$229:$G$295,4,TRUE) -> 1231.552 | I62: =VLOOKUP($I$17,Tablas!$A$229:$G$295,5,TRUE) -> 884.2773333 | J62: =VLOOKUP($I$17,Tablas!$A$229:$G$295,6,TRUE) -> 657.8133333
E63: Prima para conyuge | G63: =IF($F$17=1,0,(VLOOKUP($I$19,Tablas!$A$229:$G$295,3,TRUE))) -> 2259.114667 | H63: =IF($F$17=1,0,(VLOOKUP($I$19,Tablas!$A$229:$G$295,4,TRUE))) -> 2050.346667 | I63: =IF($F$17=1,0,(VLOOKUP($I$19,Tablas!$A$229:$G$295,5,TRUE))) -> 1480.64 | J63: =IF($F$17=1,0,(VLOOKUP($I$19,Tablas!$A$229:$G$295,6,TRUE))) -> 1101.408
E64: Prima para hijo (s) | G64: =IF($F$19=0,0,(VLOOKUP($F$19,Tablas!$A$296:$G$298,3,TRUE))) -> 370.496 | H64: =IF($F$19=0,0,(VLOOKUP($F$19,Tablas!$A$296:$G$298,4,TRUE))) -> 336.2986667 | I64: =IF($F$19=0,0,(VLOOKUP($F$19,Tablas!$A$296:$G$298,5,TRUE))) -> 258.1973333 | J64: =IF($F$19=0,0,(VLOOKUP($F$19,Tablas!$A$296:$G$298,6,TRUE))) -> 192.1173333
E65: Total de Prima neta | G65: =SUM(G62:G64) -> 3986.826667 | H65: =SUM(H62:H64) -> 3618.197333 | I65: =SUM(I62:I64) -> 2623.114667 | J65: =SUM(J62:J64) -> 1951.338667
E66: Ajuste por variante con coaseguro fuera del país de residencia | G66: =IF('INGRESO DE DATOS'!$H$20,G65*-25%,0) -> 0 | H66: =IF('INGRESO DE DATOS'!$H$20,H65*-25%,0) -> 0 | I66: =IF('INGRESO DE DATOS'!$H$20,I65*-25%,0) -> 0 | J66: =IF('INGRESO DE DATOS'!$H$20,J65*-25%,0) -> 0
E67: Tarifa administrativa anual | G67: 75 | H67: 75 | I67: 75 | J67: 75
E68: IVA (12%) | G68: =(G65+G67)*0% -> 0 | H68: =(H65+H67)*0% -> 0 | I68: 0 | J68: 0
E69: TOTAL de primera cuota | G69: =SUM(G65:G68) -> 4061.826667 | H69: =SUM(H65:H68) -> 3693.197333 | I69: =SUM(I65:I68) -> 2698.114667 | J69: =SUM(J65:J68) -> 2026.338667
E70: Costo de tarifa mensual 2 a 12 | G70: =SUM(G65:G66) -> 3986.826667 | H70: =SUM(H65:H66) -> 3618.197333 | I70: 2623.114667 | J70: 1951.338667
E71: TOTAL ANUAL | G71: =G69+(G70*11) -> 47916.92 | H71: =H69+(H70*11) -> 43493.368 | I71: =I69+(I70*11) -> 31552.376 | J71: =J69+(J70*11) -> 23491.064
E73: Tarifas en US $ - Efectivas a partir del 1ro de enero de 2022
E74: Este presupuesto solamente tiene carácter informativo y en ningún momento expresa compromiso legal para suministrarle cobertura de seguro. La emisión de una póliza de seguro Bupa está sujeta a todas las evaluaciones de riesgo por parte de Bupa y a la recepción de todos los pagos de prima requeridos.

Sheet Global Select
A14: GLOBAL SELECT HEALTH PLAN | D14: Nombre del Asegurado Titular | F14: =+'INGRESO DE DATOS'!$D$13 -> NOMBRE COMPLETO
D16: Número de adultos en la póliza | F16: =+'INGRESO DE DATOS'!$D$15 -> 2 | H16: Edad del Asegurado Titular | I16: =+'INGRESO DE DATOS'!$D$17 -> 65
H18: Edad del/la conyuge | I18: =+'INGRESO DE DATOS'!$J$17 -> 71
D19: Número de niños en la póliza | F19: =+'INGRESO DE DATOS'!$J$15 -> 3
H20: Fecha de la cotización: | I20: =NOW() -> 2021-11-08T17:34:27.120
H21: FALSE
E22: Deducibles | G22: PLAN 1 | H22: PLAN 2 | I22: PLAN 3 | J22: PLAN 4
E23: En el país de residencia | G23: 250 | H23: 2000 | I23: 5000 | J23: 10000
E24: Fuera del país de residencia | G24: 5000 | H24: 2000 | I24: 5000 | J24: 10000
E26: Tarifas anuales
E27: Prima para Asegurado Titular | G27: =(VLOOKUP($I$16,Tablas!$A$305:$G$371,3,TRUE)) -> 11099.2 | H27: =(VLOOKUP($I$16,Tablas!$A$305:$G$371,4,TRUE)) -> 10648 | I27: =(VLOOKUP($I$16,Tablas!$A$305:$G$371,5,TRUE)) -> 7663.2 | J27: =(VLOOKUP($I$16,Tablas!$A$305:$G$371,6,TRUE)) -> 5701.6
E28: Prima para conyuge | G28: =(IF($F$16=1,0,(VLOOKUP($I$18,Tablas!$A$305:$G$371,3,TRUE)))) -> 18803.2 | H28: =(IF($F$16=1,0,(VLOOKUP($I$18,Tablas!$A$305:$G$371,4,TRUE)))) -> 18042.4 | I28: =(IF($F$16=1,0,(VLOOKUP($I$18,Tablas!$A$305:$G$371,5,TRUE)))) -> 13063.2 | J28: =(IF($F$16=1,0,(VLOOKUP($I$18,Tablas!$A$305:$G$371,6,TRUE)))) -> 9716
E29: Prima para hijo (s) | G29: =(IF($F$19=0,0,(VLOOKUP($F$19,Tablas!$A$372:$G$374,3,TRUE)))) -> 2988.8 | H29: =(IF($F$19=0,0,(VLOOKUP($F$19,Tablas!$A$372:$G$374,4,TRUE)))) -> 2869.6 | I29: =(IF($F$19=0,0,(VLOOKUP($F$19,Tablas!$A$372:$G$374,5,TRUE)))) -> 2216.8 | J29: =(IF($F$19=0,0,(VLOOKUP($F$19,Tablas!$A$372:$G$374,6,TRUE)))) -> 1648.8
E30: Total de Prima neta | G30: =SUM(G27:G29) -> 32891.2 | H30: =SUM(H27:H29) -> 31560 | I30: =SUM(I27:I29) -> 22943.2 | J30: =SUM(J27:J29) -> 17066.4
E31: Ajuste por variante con coaseguro fuera del país de residencia | G31: =IF('INGRESO DE DATOS'!$H$20,G30*-25%,0) -> 0 | H31: =IF('INGRESO DE DATOS'!$H$20,H30*-25%,0) -> 0 | I31: =IF('INGRESO DE DATOS'!$H$20,I30*-25%,0) -> 0 | J31: =IF('INGRESO DE DATOS'!$H$20,J30*-25%,0) -> 0
E32: Tarifa administrativa anual | G32: 75 | H32: 75 | I32: 75 | J32: 75
E33: IVA (12%) | G33: =(G30+G32)*0% -> 0 | H33: =(H30+H32)*0% -> 0 | I33: =(I30+I32)*0% -> 0 | J33: =(J30+J32)*0% -> 0
E34: TOTAL ANUAL | G34: =SUM(G30:G33) -> 32966.2 | H34: =SUM(H30:H33) -> 31635 | I34: 23018.2 | J34: 17141.4
E36: Tarifas semi anuales
E37: Prima para Asegurado Titular | G37: =VLOOKUP($I$16,Tablas!$A$605:$G$671,3,TRUE) -> 5882.576 | H37: =VLOOKUP($I$16,Tablas!$A$605:$G$671,4,TRUE) -> 5643.44 | I37: =VLOOKUP($I$16,Tablas!$A$605:$G$671,5,TRUE) -> 4061.496 | J37: =VLOOKUP($I$16,Tablas!$A$605:$G$671,6,TRUE) -> 3021.848
E38: Prima para conyuge | G38: =IF($F$16=1,0,(VLOOKUP($I$18,Tablas!$A$605:$G$671,3,TRUE))) -> 9965.696 | H38: =IF($F$16=1,0,(VLOOKUP($I$18,Tablas!$A$605:$G$671,4,TRUE))) -> 9562.472 | I38: =IF($F$16=1,0,(VLOOKUP($I$18,Tablas!$A$605:$G$671,5,TRUE))) -> 6923.496 | J38: =IF($F$16=1,0,(VLOOKUP($I$18,Tablas!$A$605:$G$671,6,TRUE))) -> 5149.48
E39: Prima para hijo (s) | G39: =IF($F$19=0,0,(VLOOKUP($F$19,Tablas!$A$672:$G$674,3,TRUE))) -> 1584.064 | H39: =IF($F$19=0,0,(VLOOKUP($F$19,Tablas!$A$672:$G$674,4,TRUE))) -> 1520.888 | I39: =IF($F$19=0,0,(VLOOKUP($F$19,Tablas!$A$672:$G$674,5,TRUE))) -> 1174.904 | J39: =IF($F$19=0,0,(VLOOKUP($F$19,Tablas!$A$672:$G$674,6,TRUE))) -> 873.864
E40: Total de Prima neta | G40: =SUM(G37:G39) -> 17432.336 | H40: =SUM(H37:H39) -> 16726.8 | I40: =SUM(I37:I39) -> 12159.896 | J40: =SUM(J37:J39) -> 9045.192
E41: Ajuste por variante con coaseguro fuera del país de residencia | G41: =IF('INGRESO DE DATOS'!$H$20,G40*-25%,0) -> 0 | H41: =IF('INGRESO DE DATOS'!$H$20,H40*-25%,0) -> 0 | I41: =IF('INGRESO DE DATOS'!$H$20,I40*-25%,0) -> 0 | J41: =IF('INGRESO DE DATOS'!$H$20,J40*-25%,0) -> 0
E42: Tarifa administrativa anual | G42: 75 | H42: 75 | I42: 75 | J42: 75
E43: IVA (12%) | G43: =(G40+G42)*0% -> 0 | H43: =(H40+H42)*0% -> 0 | I43: 0 | J43: 0
E44: TOTAL de primera cuota | G44: =SUM(G40:G43) -> 17507.336 | H44: =SUM(H40:H43) -> 16801.8 | I44: =SUM(I40:I43) -> 12234.896 | J44: =SUM(J40:J43) -> 9120.192
E45: Costo de segunda cuota | G45: =SUM(G40:G41) -> 17432.336 | H45: =SUM(H40:H41) -> 16726.8 | I45: 12159.896 | J45: 9045.192
E46: TOTAL ANUAL | G46: =G44+G45 -> 34939.672 | H46: =H44+H45 -> 33528.6 | I46: 24394.792 | J46: =J44+J45 -> 18165.384
E48: Tarifas trimestrales
E49: Prima para Asegurado Titular | G49: =VLOOKUP($I$16,Tablas!$A$830:$G$896,3,TRUE) -> 3052.28 | H49: =VLOOKUP($I$16,Tablas!$A$830:$G$896,4,TRUE) -> 2928.2 | I49: =VLOOKUP($I$16,Tablas!$A$830:$G$896,5,TRUE) -> 2107.38 | J49: =VLOOKUP($I$16,Tablas!$A$830:$G$896,6,TRUE) -> 1567.94
E50: Prima para conyuge | G50: =IF($F$16=1,0,(VLOOKUP($I$18,Tablas!$A$830:$G$896,3,TRUE))) -> 5170.88 | H50: =IF($F$16=1,0,(VLOOKUP($I$18,Tablas!$A$830:$G$896,4,TRUE))) -> 4961.66 | I50: =IF($F$16=1,0,(VLOOKUP($I$18,Tablas!$A$830:$G$896,5,TRUE))) -> 3592.38 | J50: =IF($F$16=1,0,(VLOOKUP($I$18,Tablas!$A$830:$G$896,6,TRUE))) -> 2671.9
E51: Prima para hijo (s) | G51: =IF($F$19=0,0,(VLOOKUP($F$19,Tablas!$A$897:$G$899,3,TRUE))) -> 821.92 | H51: =IF($F$19=0,0,(VLOOKUP($F$19,Tablas!$A$897:$G$899,4,TRUE))) -> 789.14 | I51: =IF($F$19=0,0,(VLOOKUP($F$19,Tablas!$A$897:$G$899,5,TRUE))) -> 609.62 | J51: =IF($F$19=0,0,(VLOOKUP($F$19,Tablas!$A$897:$G$899,6,TRUE))) -> 453.42
E52: Total de Prima neta | G52: =SUM(G49:G51) -> 9045.08 | H52: =SUM(H49:H51) -> 8679 | I52: =SUM(I49:I51) -> 6309.38 | J52: =SUM(J49:J51) -> 4693.26
E53: Ajuste por variante con coaseguro fuera del país de residencia | G53: =IF('INGRESO DE DATOS'!$H$20,G52*-25%,0) -> 0 | H53: =IF('INGRESO DE DATOS'!$H$20,H52*-25%,0) -> 0 | I53: =IF('INGRESO DE DATOS'!$H$20,I52*-25%,0) -> 0 | J53: =IF('INGRESO DE DATOS'!$H$20,J52*-25%,0) -> 0
E54: Tarifa administrativa anual | G54: 75 | H54: 75 | I54: 75 | J54: 75
E55: IVA (12%) | G55: =(G52+G54)*0% -> 0 | H55: =(H52+H54)*0% -> 0 | I55: 0 | J55: 0
E56: TOTAL de primera cuota | G56: =SUM(G52:G55) -> 9120.08 | H56: =SUM(H52:H55) -> 8754 | I56: =SUM(I52:I55) -> 6384.38 | J56: =SUM(J52:J55) -> 4768.26
E57: Costo de tarifa trimestral 2 a 4 | G57: =SUM(G52:G53) -> 9045.08 | H57: =SUM(H52:H53) -> 8679 | I57: 6309.38 | J57: 4693.26
E58: TOTAL ANUAL | G58: =G56+(G57*3) -> 36255.32 | H58: =H56+(H57*3) -> 34791 | I58: 25312.52 | J58: =J56+(J57*3) -> 18848.04
E60: Tarifas mensuales
E61: Prima para Asegurado Titular | G61: =VLOOKUP($I$16,Tablas!$A$379:$G$445,3,TRUE) -> 1035.925333 | H61: =VLOOKUP($I$16,Tablas!$A$379:$G$445,4,TRUE) -> 993.8133333 | I61: =VLOOKUP($I$16,Tablas!$A$379:$G$445,5,TRUE) -> 715.232 | J61: =VLOOKUP($I$16,Tablas!$A$379:$G$445,6,TRUE) -> 532.1493333
E62: Prima para conyuge | G62: =IF($F$16=1,0,(VLOOKUP($I$18,Tablas!$A$379:$G$445,3,TRUE))) -> 1754.965333 | H62: =IF($F$16=1,0,(VLOOKUP($I$18,Tablas!$A$379:$G$445,4,TRUE))) -> 1683.957333 | I62: =IF($F$16=1,0,(VLOOKUP($I$18,Tablas!$A$379:$G$445,5,TRUE))) -> 1219.232 | J62: =IF($F$16=1,0,(VLOOKUP($I$18,Tablas!$A$379:$G$445,6,TRUE))) -> 906.8266667
E63: Prima para hijo (s) | G63: =IF($F$19=0,0,(VLOOKUP($F$19,Tablas!$A$446:$G$448,3,TRUE))) -> 278.9546667 | H63: =IF($F$19=0,0,(VLOOKUP($F$19,Tablas!$A$446:$G$448,4,TRUE))) -> 267.8293333 | I63: =IF($F$19=0,0,(VLOOKUP($F$19,Tablas!$A$446:$G$448,5,TRUE))) -> 206.9013333 | J63: =IF($F$19=0,0,(VLOOKUP($F$19,Tablas!$A$446:$G$448,6,TRUE))) -> 153.888
E64: Total de Prima neta | G64: =SUM(G61:G63) -> 3069.845333 | H64: =SUM(H61:H63) -> 2945.6 | I64: =SUM(I61:I63) -> 2141.365333 | J64: =SUM(J61:J63) -> 1592.864
E65: Ajuste por variante con coaseguro fuera del país de residencia | G65: =IF('INGRESO DE DATOS'!$H$20,G64*-25%,0) -> 0 | H65: =IF('INGRESO DE DATOS'!$H$20,H64*-25%,0) -> 0 | I65: =IF('INGRESO DE DATOS'!$H$20,I64*-25%,0) -> 0 | J65: =IF('INGRESO DE DATOS'!$H$20,J64*-25%,0) -> 0
E66: Tarifa administrativa anual | G66: 75 | H66: 75 | I66: 75 | J66: 75
E67: IVA (12%) | G67: =(G64+G66)*0% -> 0 | H67: =(H64+H66)*0% -> 0 | I67: 0 | J67: 0
E68: TOTAL de primera cuota | G68: =SUM(G64:G67) -> 3144.845333 | H68: =SUM(H64:H67) -> 3020.6 | I68: =SUM(I64:I67) -> 2216.365333 | J68: =SUM(J64:J67) -> 1667.864
E69: Costo de tarifa mensual 2 a 12 | G69: =SUM(G64:G65) -> 3069.845333 | H69: =SUM(H64:H65) -> 2945.6 | I69: 2141.365333 | J69: 1592.864
E70: TOTAL ANUAL | G70: =G68+(G69*11) -> 36913.144 | H70: =H68+(H69*11) -> 35422.2 | I70: =I68+(I69*11) -> 25771.384 | J70: =J68+(J69*11) -> 19189.368
E72: Tarifas en US $ - Efectivas a partir del 1ro de enero de 2022
E73: Este presupuesto solamente tiene carácter informativo y en ningún momento expresa compromiso legal para suministrarle cobertura de seguro. La emisión de una póliza de seguro Bupa está sujeta a todas las evaluaciones de riesgo por parte de Bupa y a la recepción de todos los pagos de prima requeridos.

Sheet Global Major Medical
A15: GLOBAL MAJOR MEDICAL HEALTH PLAN | D15: Nombre del Asegurado Titular | F15: =+'INGRESO DE DATOS'!$D$13 -> NOMBRE COMPLETO
D17: Número de adultos en la póliza | F17: =+'INGRESO DE DATOS'!$D$15 -> 2 | H17: Edad del Asegurado Titular | I17: =+'INGRESO DE DATOS'!$D$17 -> 65
D19: Número de niños en la póliza | F19: =+'INGRESO DE DATOS'!$J$15 -> 3 | H19: Edad del/la conyuge | I19: =+'INGRESO DE DATOS'!$J$17 -> 71
H21: Fecha de la cotización: | I21: =NOW() -> 2021-11-08T17:34:27.120
H22: FALSE
E23: Deducibles | G23: PLAN 1 | H23: PLAN 2 | I23: PLAN 3
E24: En el país de residencia | G24: 7500 | H24: 10000 | I24: 20000
E25: Fuera del país de residencia | G25: 10000 | H25: 20000 | I25: 20000
E27: Tarifas anuales
E28: Prima para Asegurado Titular | G28: =(VLOOKUP($I$17,Tablas!$A$1129:$G$1195,3,TRUE)) -> 8611 | H28: =(VLOOKUP($I$17,Tablas!$A$1129:$G$1195,4,TRUE)) -> 7582 | I28: =(VLOOKUP($I$17,Tablas!$A$1129:$G$1195,5,TRUE)) -> 5962
E29: Prima para conyuge | G29: =(IF($F$17=1,0,(VLOOKUP($I$19,Tablas!$A$1129:$G$1195,3,TRUE)))) -> 14367 | H29: =(IF($F$17=1,0,(VLOOKUP($I$19,Tablas!$A$1129:$G$1195,4,TRUE)))) -> 12585 | I29: =(IF($F$17=1,0,(VLOOKUP($I$19,Tablas!$A$1129:$G$1195,5,TRUE)))) -> 10151
E30: Prima para hijo (s) | G30: =(IF($F$19=0,0,(VLOOKUP($F$19,Tablas!$A$1196:$G$1198,3,TRUE)))) -> 2444 | H30: =(IF($F$19=0,0,(VLOOKUP($F$19,Tablas!$A$1196:$G$1198,4,TRUE)))) -> 2057 | I30: =(IF($F$19=0,0,(VLOOKUP($F$19,Tablas!$A$1196:$G$1198,5,TRUE)))) -> 1614
E31: Total de Prima neta | G31: =SUM(G28:G30) -> 25422 | H31: =SUM(H28:H30) -> 22224 | I31: 17727
E32: Tarifa administrativa anual | G32: 75 | H32: 75 | I32: 75
E33: IVA (12%) | G33: =(G31+G32)*0% -> 0 | H33: =(H31+H32)*0% -> 0 | I33: =(I31+I32)*0% -> 0
E34: TOTAL ANUAL | G34: =SUM(G31:G33) -> 25497 | H34: =SUM(H31:H33) -> 22299 | I34: =SUM(I31:I33) -> 17802
E36: Tarifas semi anuales
E37: Prima para Asegurado Titular | G37: =VLOOKUP($I$17,Tablas!$A$1353:$G$1419,3,TRUE) -> 4563.83 | H37: =VLOOKUP($I$17,Tablas!$A$1353:$G$1419,4,TRUE) -> 4018.46 | I37: =VLOOKUP($I$17,Tablas!$A$1353:$G$1419,5,TRUE) -> 3159.86
E38: Prima para conyuge | G38: =IF($F$17=1,0,(VLOOKUP($I$19,Tablas!$A$1353:$G$1419,3,TRUE))) -> 7614.51 | H38: =IF($F$17=1,0,(VLOOKUP($I$19,Tablas!$A$1353:$G$1419,4,TRUE))) -> 6670.05 | I38: =IF($F$17=1,0,(VLOOKUP($I$19,Tablas!$A$1353:$G$1419,5,TRUE))) -> 5380.03
E39: Prima para hijo (s) | G39: =IF($F$19=0,0,(VLOOKUP($F$19,Tablas!$A$1420:$G$1422,3,TRUE))) -> 1295.32 | H39: =IF($F$19=0,0,(VLOOKUP($F$19,Tablas!$A$1420:$G$1422,4,TRUE))) -> 1090.21 | I39: =IF($F$19=0,0,(VLOOKUP($F$19,Tablas!$A$1420:$G$1422,5,TRUE))) -> 855.42
E40: Total de Prima neta | G40: =SUM(G37:G39) -> 13473.66 | H40: =SUM(H37:H39) -> 11778.72 | I40: =SUM(I37:I39) -> 9395.31
E41: Tarifa administrativa anual | G41: 75 | H41: 75 | I41: 76
E42: IVA (12%) | G42: =(G40+G41)*0% -> 0 | H42: =(H40+H41)*0% -> 0 | I42: =(I40+I41)*0% -> 0
E43: TOTAL de primera cuota | G43: =SUM(G40:G42) -> 13548.66 | H43: =SUM(H40:H42) -> 11853.72 | I43: =SUM(I40:I42) -> 9471.31
E44: Costo de segunda cuota | G44: =G40+G42 -> 13473.66 | H44: =H40+H42 -> 11778.72 | I44: =I40+I42 -> 9395.31
E45: TOTAL ANUAL | G45: =G43+G44 -> 27022.32 | H45: =H43+H44 -> 23632.44 | I45: 18866.62
E47: Tarifas trimestrales
E48: Prima para Asegurado Titular | G48: =VLOOKUP($I$17,Tablas!$A$1278:$G$1344,3,TRUE) -> 2368.025 | H48: =VLOOKUP($I$17,Tablas!$A$1278:$G$1344,4,TRUE) -> 2085.05 | I48: =VLOOKUP($I$17,Tablas!$A$1278:$G$1344,5,TRUE) -> 1639.55
E49: Prima para conyuge | G49: =IF($F$17=1,0,(VLOOKUP($I$19,Tablas!$A$1278:$G$1344,3,TRUE))) -> 3950.925 | H49: =IF($F$17=1,0,(VLOOKUP($I$19,Tablas!$A$1278:$G$1344,4,TRUE))) -> 3460.875 | I49: =IF($F$17=1,0,(VLOOKUP($I$19,Tablas!$A$1278:$G$1344,5,TRUE))) -> 2791.525
E50: Prima para hijo (s) | G50: =IF($F$19=0,0,(VLOOKUP($F$19,Tablas!$A$1345:$G$1347,3,TRUE))) -> 672.1 | H50: =IF($F$19=0,0,(VLOOKUP($F$19,Tablas!$A$1345:$G$1347,4,TRUE))) -> 565.675 | I50: =IF($F$19=0,0,(VLOOKUP($F$19,Tablas!$A$1345:$G$1347,5,TRUE))) -> 443.85
E51: Total de Prima neta | G51: =SUM(G48:G50) -> 6991.05 | H51: =SUM(H48:H50) -> 6111.6 | I51: =SUM(I48:I50) -> 4874.925
E52: Tarifa administrativa anual | G52: 75 | H52: 75 | I52: 76
E53: IVA (12%) | G53: =(G51+G52)*0% -> 0 | H53: =(H51+H52)*0% -> 0 | I53: =(I51+I52)*0% -> 0
E54: TOTAL de primera cuota | G54: =SUM(G51:G53) -> 7066.05 | H54: =SUM(H51:H53) -> 6186.6 | I54: =SUM(I51:I53) -> 4950.925
E55: Costo de tarifa trimestral 2 a 4 | G55: =G51+G53 -> 6991.05 | H55: =H51+H53 -> 6111.6 | I55: =I51+I53 -> 4874.925
E56: TOTAL ANUAL | G56: =G54+(G55*3) -> 28039.2 | H56: =H54+(H55*3) -> 24521.4 | I56: 19575.7
E58: Tarifas mensual
E59: Prima para Asegurado Titular | G59: =VLOOKUP($I$17,Tablas!$A$1203:$G$1269,3,TRUE) -> 803.6933333 | H59: =VLOOKUP($I$17,Tablas!$A$1203:$G$1269,4,TRUE) -> 707.6533333 | I59: =VLOOKUP($I$17,Tablas!$A$1203:$G$1269,5,TRUE) -> 556.4533333
E60: Prima para conyuge | G60: =IF($F$17=1,0,(VLOOKUP($I$19,Tablas!$A$1203:$G$1269,3,TRUE))) -> 1340.92 | H60: =IF($F$17=1,0,(VLOOKUP($I$19,Tablas!$A$1203:$G$1269,4,TRUE))) -> 1174.6 | I60: =IF($F$17=1,0,(VLOOKUP($I$19,Tablas!$A$1203:$G$1269,5,TRUE))) -> 947.4266667
E61: Prima para hijo (s) | G61: =IF($F$19=0,0,(VLOOKUP($F$19,Tablas!$A$1270:$G$1272,3,TRUE))) -> 228.1066667 | H61: =IF($F$19=0,0,(VLOOKUP($F$19,Tablas!$A$1270:$G$1272,4,TRUE))) -> 191.9866667 | I61: =IF($F$19=0,0,(VLOOKUP($F$19,Tablas!$A$1270:$G$1272,5,TRUE))) -> 150.64
E62: Total de Prima neta | G62: =SUM(G59:G61) -> 2372.72 | H62: =SUM(H59:H61) -> 2074.24 | I62: =SUM(I59:I61) -> 1654.52
E63: Tarifa administrativa anual | G63: 75 | H63: 75 | I63: 76
E64: IVA (12%) | G64: =(G62+G63)*0% -> 0 | H64: =(H62+H63)*0% -> 0 | I64: =(I62+I63)*0% -> 0
E65: TOTAL de primera cuota | G65: =SUM(G62:G64) -> 2447.72 | H65: =SUM(H62:H64) -> 2149.24 | I65: =SUM(I62:I64) -> 1730.52
E66: Costo de tarifa mensual 2 a 12 | G66: =G62+G64 -> 2372.72 | H66: =H62+H64 -> 2074.24 | I66: =I62+I64 -> 1654.52
E67: TOTAL ANUAL | G67: =G65+(G66*11) -> 28547.64 | H67: =H65+(H66*11) -> 24965.88 | I67: =I65+(I66*11) -> 19930.24
E69: Tarifas en US $ - Efectivas a partir del 1ro de enero de 2022
E70: Este presupuesto solamente tiene carácter informativo y en ningún momento expresa compromiso legal para suministrarle cobertura de seguro. La emisión de una póliza de seguro Bupa está sujeta a todas las evaluaciones de riesgo por parte de Bupa y a la recepción de todos los pagos de prima requeridos.

Sheet Resumen tarifas
A27: Cotizador de Seguro Médico - Bupa Global Health Plans
A29: Nombre del Asegurado Titular | C29: =+'INGRESO DE DATOS'!$D$13 -> NOMBRE COMPLETO
A32: Número de adultos en la póliza | C32: =+'INGRESO DE DATOS'!$D$15 -> 2 | E32: Edad del Asegurado Titular | G32: =+'INGRESO DE DATOS'!$D$17 -> 65
A35: Número de niños en la póliza | C35: =+'INGRESO DE DATOS'!$J$15 -> 3 | E35: Edad del/la cónyuge | G35: =+'INGRESO DE DATOS'!$J$17 -> 71
D38: FECHA DE LA COTIZACIÓN: | E38: =NOW() -> 2021-11-08T17:34:27.120
A40: Global Ultimate Health Plan
A41: Deducibles | C41: PLAN 1 | D41: PLAN 2
A42: En el país de residencia | C42: 0 | D42: 1000
A43: Fuera del país de residencia | C43: 0 | D43: 1000
C44: Tarifas anuales
C45: ='Global Ultimate'!G33 -> 179397 | D45: ='Global Ultimate'!H33 -> 115767
C46: Tarifas semi anuales
C47: ='Global Ultimate'!G43 -> 95115.66 | D47: ='Global Ultimate'!H43 -> 61391.76
C48: ='Global Ultimate'!G44 -> 95040.66 | D48: ='Global Ultimate'!H44 -> 61316.76
C49: Tarifas trimestrales
C50: ='Global Ultimate'!G55 -> 49388.55 | D50: ='Global Ultimate'!H55 -> 31890.3
C51: ='Global Ultimate'!G56 -> 49313.55 | D51: ='Global Ultimate'!H56 -> 31815.3
A52: Ahorros en tarifas de prima para niños (pago annual)* | C52: ='Global Ultimate'!G34 -> 12496 | D52: ='Global Ultimate'!H34 -> 8063
C53: Tarifas mensuales
C54: ='Global Ultimate'!G67 -> 16811.72 | D54: ='Global Ultimate'!H67 -> 10872.92
C55: ='Global Ultimate'!G68 -> 16736.72 | D55: ='Global Ultimate'!H68 -> 10797.92
A58: Global Elite Health Plan
A59: Deducibles | D59: PLAN 1 | E59: PLAN 2 | F59: PLAN 3 | G59: PLAN 4 | H59: PLAN 5
A60: En el país de residencia | D60: 250 | E60: 2000 | F60: 3500 | G60: 5000 | H60: 10000
A61: Fuera del país de residencia | D61: 5000 | E61: 2000 | F61: 3500 | G61: 5000 | H61: 10000
D62: Tarifas anuales
D63: =+'Global Elite'!G36 -> 77341 | E63: =+'Global Elite'!H36 -> 73906 | F63: =+'Global Elite'!I36 -> 69388 | G63: =+'Global Elite'!J36 -> 66749 | H63: =+'Global Elite'!K36 -> 62885
D64: Tarifas semi anuales
D65: =+'Global Elite'!G47 -> 41025.98 | E65: =+'Global Elite'!H47 -> 35968.72 | F65: =+'Global Elite'!I47 -> 29424.28 | G65: =+'Global Elite'!J47 -> 25525.07 | H65: =+'Global Elite'!K47 -> 19812.73
D66: =+'Global Elite'!G48 -> 40950.98 | E66: =+'Global Elite'!H48 -> 35893.72 | F66: =+'Global Elite'!I48 -> 29349.28 | G66: =+'Global Elite'!J48 -> 25450.07 | H66: =+'Global Elite'!K48 -> 19737.73
D67: Tarifas trimestrales
D68: =+'Global Elite'!G60 -> 21323.15 | E68: =+'Global Elite'!H60 -> 18699.1 | F68: =+'Global Elite'!I60 -> 15303.4 | G68: =+'Global Elite'!J60 -> 13280.225 | H68: =+'Global Elite'!K60 -> 10316.275
D69: =+'Global Elite'!G61 -> 21248.15 | E69: =+'Global Elite'!H61 -> 18624.1 | F69: =+'Global Elite'!I61 -> 15228.4 | G69: =+'Global Elite'!J61 -> 13205.225 | H69: =+'Global Elite'!K61 -> 10241.275
A70: Ahorros en tarifas de prima para niños (pago annual)* | D70: =+'Global Elite'!G37 -> 5379 | E70: =+'Global Elite'!H37 -> 5379 | F70: =+'Global Elite'!I37 -> 5379 | G70: =+'Global Elite'!J37 -> 5379 | H70: =+'Global Elite'!K37 -> 5379
D71: Tarifas mensuales
D72: ='Global Elite'!G73 -> 7286.493333 | E72: ='Global Elite'!H73 -> 6395.906667 | F72: ='Global Elite'!I73 -> 5243.426667 | G72: ='Global Elite'!J73 -> 4556.773333 | H72: ='Global Elite'!K73 -> 3593.48
D73: ='Global Elite'!G74 -> 7211.493333 | E73: ='Global Elite'!H74 -> 6320.906667 | F73: ='Global Elite'!I74 -> 5168.426667 | G73: ='Global Elite'!J74 -> 4481.773333 | H73: ='Global Elite'!K74 -> 3518.48
A76: Global Premier Health Plan
A77: Deducibles | E77: PLAN 1 | F77: PLAN 2 | G77: PLAN 3 | H77: PLAN 3
A78: En el país de residencia | E78: 250 | F78: 2000 | G78: 5000 | H78: 10000
A79: Fuera del país de residencia | E79: 5000 | F79: 2000 | G79: 5000 | H79: 10000
E80: Tarifas anuales
E81: =+'Global Premier'!G35 -> 42791 | F81: =+'Global Premier'!H35 -> 38841.4 | G81: =+'Global Premier'!I35 -> 28179.8 | H81: =+'Global Premier'!J35 -> 20982.2
E82: Tarifas semi anuales
E83: =+'Global Premier'!G45 -> 22714.48 | F83: =+'Global Premier'!H45 -> 20621.192 | G83: =+'Global Premier'!I45 -> 14970.544 | H83: =+'Global Premier'!J45 -> 11155.816
E84: =+'Global Premier'!G46 -> 22639.48 | F84: =+'Global Premier'!H46 -> 20546.192 | G84: =+'Global Premier'!I46 -> 14895.544 | H84: =+'Global Premier'!J46 -> 11080.816
E85: Tarifas trimestrales
E86: =+'Global Premier'!G57 -> 11821.9 | F86: =+'Global Premier'!H57 -> 10735.76 | G86: =+'Global Premier'!I57 -> 7803.82 | H86: =+'Global Premier'!J57 -> 5824.48
E87: =+'Global Premier'!G58 -> 11746.9 | F87: =+'Global Premier'!H58 -> 10660.76 | G87: =+'Global Premier'!I58 -> 7728.82 | H87: =+'Global Premier'!J58 -> 5749.48
E88: Tarifas mensuales
E89: ='Global Premier'!G69 -> 4061.826667 | F89: ='Global Premier'!H69 -> 3693.197333 | G89: ='Global Premier'!I69 -> 2698.114667 | H89: ='Global Premier'!J69 -> 2026.338667
E90: ='Global Premier'!G70 -> 3986.826667 | F90: ='Global Premier'!H70 -> 3618.197333 | G90: ='Global Premier'!I70 -> 2623.114667 | H90: ='Global Premier'!J70 -> 1951.338667
A92: Global Select Health Plan
A93: Deducibles | E93: PLAN 1 | F93: PLAN 2 | G93: PLAN 3 | H93: PLAN 4
A94: En el país de residencia | E94: 250 | F94: 2000 | G94: 5000 | H94: 10000
A95: Fuera del país de residencia | E95: 5000 | F95: 2000 | G95: 5000 | H95: 10000
E96: Tarifas anuales
E97: =+'Global Select'!G34 -> 32966.2 | F97: =+'Global Select'!H34 -> 31635 | G97: =+'Global Select'!I34 -> 23018.2 | H97: =+'Global Select'!J34 -> 17141.4
E98: Tarifas semi anuales
E99: =+'Global Select'!G44 -> 17507.336 | F99: =+'Global Select'!H44 -> 16801.8 | G99: =+'Global Select'!I44 -> 12234.896 | H99: =+'Global Select'!J44 -> 9120.192
E100: =+'Global Select'!G45 -> 17432.336 | F100: =+'Global Select'!H45 -> 16726.8 | G100: =+'Global Select'!I45 -> 12159.896 | H100: =+'Global Select'!J45 -> 9045.192
E101: Tarifas trimestrales
E102: =+'Global Select'!G56 -> 9120.08 | F102: =+'Global Select'!H56 -> 8754 | G102: =+'Global Select'!I56 -> 6384.38 | H102: =+'Global Select'!J56 -> 4768.26
E103: =+'Global Select'!G57 -> 9045.08 | F103: =+'Global Select'!H57 -> 8679 | G103: =+'Global Select'!I57 -> 6309.38 | H103: =+'Global Select'!J57 -> 4693.26
E104: Tarifas mensuales
E105: ='Global Select'!G68 -> 3144.845333 | F105: ='Global Select'!H68 -> 3020.6 | G105: ='Global Select'!I68 -> 2216.365333 | H105: ='Global Select'!J68 -> 1667.864
E106: ='Global Select'!G69 -> 3069.845333 | F106: ='Global Select'!H69 -> 2945.6 | G106: ='Global Select'!I69 -> 2141.365333 | H106: ='Global Select'!J69 -> 1592.864
A109: Global Major Medical Health Plan
A110: Deducibles | C110: PLAN 1 | D110: PLAN 2
A111: En el país de residencia | C111: 10000 | D111: 20000
A112: Fuera del país de residencia | C112: 10000 | D112: 20000
C113: Tarifas anuales
C114: ='Global Major Medical'!G34 -> 25497 | D114: ='Global Major Medical'!H34 -> 22299
C115: Tarifas semi anuales
C116: ='Global Major Medical'!G43 -> 13548.66 | D116: ='Global Major Medical'!H43 -> 11853.72
C117: ='Global Major Medical'!G44 -> 13473.66 | D117: ='Global Major Medical'!H44 -> 11778.72
C118: Tarifas trimestrales
C119: ='Global Major Medical'!G54 -> 7066.05 | D119: ='Global Major Medical'!H54 -> 6186.6
C120: ='Global Major Medical'!G55 -> 6991.05 | D120: ='Global Major Medical'!H55 -> 6111.6
C121: Tarifas mensuales
C122: ='Global Major Medical'!G65 -> 2447.72 | D122: ='Global Major Medical'!H65 -> 2149.24
C123: ='Global Major Medical'!G66 -> 2372.72 | D123: ='Global Major Medical'!H66 -> 2074.24
A126: Una tarifa administrativa de US$75 se carga automáticamente al primer pago
A127: *Basado en un modo de pago anual
A130: Tarifas en US $ - Efectivas a partir del 1ro de enero de 2022
A131: Este presupuesto solamente tiene carácter informativo y en ningún momento expresa compromiso legal para suministrarle cobertura de seguro. La emisión de una póliza de seguro Bupa está sujeta a todas las evaluaciones de riesgo por parte de Bupa y a la recepción de todos los pagos de prima requeridos.

Sheet Tablas (hidden)
R1: $
A2: BUPA GLOBAL ELITE | I2: FACTOR MENSUAL: | K2: =1.12/12 -> 0.09333333333 | M2: =1.12/12 -> 0.09333333333
A3: TARIFAS ANUALES | I3: FACTOR TRIMESTRAL: | K3: 0.275 | M3: =1.1/4 -> 0.275
A4: EDAD | I4: FACTOR SEMIANUAL: | K4: 0.53 | M4: =1.06/2 -> 0.53
C5: 250 | D5: 2000 | E5: 3500 | F5: 5000 | G5: 10000 | I5: Descuento (20%): | K5: =100%-20% -> 0.8 | M5: =100%-20% -> 0.8 | O5: 250 | P5: 2000 | Q5: 3500 | R5: 5000 | S5: 10000
A6: 18 | C6: 7488 | D6: 6561 | E6: 5519 | F6: 4786 | G6: 3712 | I6: 7488 | J6: 6561 | K6: 5519 | L6: 4786 | M6: 3712 | O6: TRUE | P6: TRUE | Q6: TRUE | R6: TRUE | S6: TRUE
A7: 19 | C7: 7488 | D7: 6561 | E7: 5519 | F7: 4786 | G7: 3712 | I7: 7488 | J7: 6561 | K7: 5519 | L7: 4786 | M7: 3712 | O7: TRUE | P7: TRUE | Q7: TRUE | R7: TRUE | S7: TRUE
A8: 20 | C8: 7488 | D8: 6561 | E8: 5519 | F8: 4786 | G8: 3712 | I8: 7488 | J8: 6561 | K8: 5519 | L8: 4786 | M8: 3712 | O8: TRUE | P8: TRUE | Q8: TRUE | R8: TRUE | S8: TRUE
A9: 21 | C9: 7488 | D9: 6561 | E9: 5519 | F9: 4786 | G9: 3712 | I9: 7488 | J9: 6561 | K9: 5519 | L9: 4786 | M9: 3712 | O9: TRUE | P9: TRUE | Q9: TRUE | R9: TRUE | S9: TRUE
A10: 22 | C10: 7488 | D10: 6561 | E10: 5519 | F10: 4786 | G10: 3712 | I10: 7488 | J10: 6561 | K10: 5519 | L10: 4786 | M10: 3712 | O10: TRUE | P10: TRUE | Q10: TRUE | R10: TRUE | S10: TRUE
A11: 23 | C11: 7488 | D11: 6561 | E11: 5519 | F11: 4786 | G11: 3712 | I11: 7488 | J11: 6561 | K11: 5519 | L11: 4786 | M11: 3712 | O11: TRUE | P11: TRUE | Q11: TRUE | R11: TRUE | S11: TRUE
A12: 24 | C12: 7488 | D12: 6561 | E12: 5519 | F12: 4786 | G12: 3712 | I12: 7488 | J12: 6561 | K12: 5519 | L12: 4786 | M12: 3712 | O12: TRUE | P12: TRUE | Q12: TRUE | R12: TRUE | S12: TRUE
A13: 25 | C13: 8002 | D13: 7014 | E13: 5864 | F13: 5085 | G13: 3944 | I13: 8002 | J13: 7014 | K13: 5864 | L13: 5085 | M13: 3944 | O13: TRUE | P13: TRUE | Q13: TRUE | R13: TRUE | S13: TRUE
A14: 26 | C14: 8002 | D14: 7014 | E14: 5864 | F14: 5085 | G14: 3944 | I14: 8002 | J14: 7014 | K14: 5864 | L14: 5085 | M14: 3944 | O14: TRUE | P14: TRUE | Q14: TRUE | R14: TRUE | S14: TRUE
A15: 27 | C15: 8002 | D15: 7014 | E15: 5864 | F15: 5085 | G15: 3944 | I15: 8002 | J15: 7014 | K15: 5864 | L15: 5085 | M15: 3944 | O15: TRUE | P15: TRUE | Q15: TRUE | R15: TRUE | S15: TRUE
A16: 28 | C16: 8002 | D16: 7014 | E16: 5864 | F16: 5085 | G16: 3944 | I16: 8002 | J16: 7014 | K16: 5864 | L16: 5085 | M16: 3944 | O16: TRUE | P16: TRUE | Q16: TRUE | R16: TRUE | S16: TRUE
A17: 29 | C17: 8002 | D17: 7014 | E17: 5864 | F17: 5085 | G17: 3944 | I17: 8002 | J17: 7014 | K17: 5864 | L17: 5085 | M17: 3944 | O17: TRUE | P17: TRUE | Q17: TRUE | R17: TRUE | S17: TRUE
A18: 30 | C18: 8901 | D18: 7802 | E18: 6472 | F18: 5611 | G18: 4353 | I18: 8901 | J18: 7802 | K18: 6472 | L18: 5611 | M18: 4353 | O18: TRUE | P18: TRUE | Q18: TRUE | R18: TRUE | S18: TRUE
A19: 31 | C19: 8901 | D19: 7802 | E19: 6472 | F19: 5611 | G19: 4353 | I19: 8901 | J19: 7802 | K19: 6472 | L19: 5611 | M19: 4353 | O19: TRUE | P19: TRUE | Q19: TRUE | R19: TRUE | S19: TRUE
A20: 32 | C20: 8901 | D20: 7802 | E20: 6472 | F20: 5611 | G20: 4353 | I20: 8901 | J20: 7802 | K20: 6472 | L20: 5611 | M20: 4353 | O20: TRUE | P20: TRUE | Q20: TRUE | R20: TRUE | S20: TRUE
A21: 33 | C21: 8901 | D21: 7802 | E21: 6472 | F21: 5611 | G21: 4353 | I21: 8901 | J21: 7802 | K21: 6472 | L21: 5611 | M21: 4353 | O21: TRUE | P21: TRUE | Q21: TRUE | R21: TRUE | S21: TRUE
A22: 34 | C22: 8901 | D22: 7802 | E22: 6472 | F22: 5611 | G22: 4353 | I22: 8901 | J22: 7802 | K22: 6472 | L22: 5611 | M22: 4353 | O22: TRUE | P22: TRUE | Q22: TRUE | R22: TRUE | S22: TRUE
A23: 35 | C23: 9937 | D23: 8710 | E23: 7185 | F23: 6229 | G23: 4831 | I23: 9937 | J23: 8710 | K23: 7185 | L23: 6229 | M23: 4831 | O23: TRUE | P23: TRUE | Q23: TRUE | R23: TRUE | S23: TRUE
A24: 36 | C24: 9937 | D24: 8710 | E24: 7185 | F24: 6229 | G24: 4831 | I24: 9937 | J24: 8710 | K24: 7185 | L24: 6229 | M24: 4831 | O24: TRUE | P24: TRUE | Q24: TRUE | R24: TRUE | S24: TRUE
A25: 37 | C25: 9937 | D25: 8710 | E25: 7185 | F25: 6229 | G25: 4831 | I25: 9937 | J25: 8710 | K25: 7185 | L25: 6229 | M25: 4831 | O25: TRUE | P25: TRUE | Q25: TRUE | R25: TRUE | S25: TRUE
A26: 38 | C26: 9937 | D26: 8710 | E26: 7185 | F26: 6229 | G26: 4831 | I26: 9937 | J26: 8710 | K26: 7185 | L26: 6229 | M26: 4831 | O26: TRUE | P26: TRUE | Q26: TRUE | R26: TRUE | S26: TRUE
A27: 39 | C27: 9937 | D27: 8710 | E27: 7185 | F27: 6229 | G27: 4831 | I27: 9937 | J27: 8710 | K27: 7185 | L27: 6229 | M27: 4831 | O27: TRUE | P27: TRUE | Q27: TRUE | R27: TRUE | S27: TRUE
A28: 40 | C28: 11134 | D28: 9757 | E28: 8013 | F28: 6948 | G28: 5389 | I28: 11134 | J28: 9757 | K28: 8013 | L28: 6948 | M28: 5389 | O28: TRUE | P28: TRUE | Q28: TRUE | R28: TRUE | S28: TRUE
A29: 41 | C29: 11134 | D29: 9757 | E29: 8013 | F29: 6948 | G29: 5389 | I29: 11134 | J29: 9757 | K29: 8013 | L29: 6948 | M29: 5389 | O29: TRUE | P29: TRUE | Q29: TRUE | R29: TRUE | S29: TRUE
A30: 42 | C30: 11134 | D30: 9757 | E30: 8013 | F30: 6948 | G30: 5389 | I30: 11134 | J30: 9757 | K30: 8013 | L30: 6948 | M30: 5389 | O30: TRUE | P30: TRUE | Q30: TRUE | R30: TRUE | S30: TRUE
A31: 43 | C31: 11134 | D31: 9757 | E31: 8013 | F31: 6948 | G31: 5389 | I31: 11134 | J31: 9757 | K31: 8013 | L31: 6948 | M31: 5389 | O31: TRUE | P31: TRUE | Q31: TRUE | R31: TRUE | S31: TRUE
A32: 44 | C32: 11134 | D32: 9757 | E32: 8013 | F32: 6948 | G32: 5389 | I32: 11134 | J32: 9757 | K32: 8013 | L32: 6948 | M32: 5389 | O32: TRUE | P32: TRUE | Q32: TRUE | R32: TRUE | S32: TRUE
A33: 45 | C33: 12458 | D33: 10921 | E33: 8942 | F33: 7754 | G33: 6014 | I33: 12458 | J33: 10921 | K33: 8942 | L33: 7754 | M33: 6014 | O33: TRUE | P33: TRUE | Q33: TRUE | R33: TRUE | S33: TRUE
A34: 46 | C34: 12458 | D34: 10921 | E34: 8942 | F34: 7754 | G34: 6014 | I34: 12458 | J34: 10921 | K34: 8942 | L34: 7754 | M34: 6014 | O34: TRUE | P34: TRUE | Q34: TRUE | R34: TRUE | S34: TRUE
A35: 47 | C35: 12458 | D35: 10921 | E35: 8942 | F35: 7754 | G35: 6014 | I35: 12458 | J35: 10921 | K35: 8942 | L35: 7754 | M35: 6014 | O35: TRUE | P35: TRUE | Q35: TRUE | R35: TRUE | S35: TRUE
A36: 48 | C36: 12458 | D36: 10921 | E36: 8942 | F36: 7754 | G36: 6014 | I36: 12458 | J36: 10921 | K36: 8942 | L36: 7754 | M36: 6014 | O36: TRUE | P36: TRUE | Q36: TRUE | R36: TRUE | S36: TRUE
A37: 49 | C37: 12458 | D37: 10921 | E37: 8942 | F37: 7754 | G37: 6014 | I37: 12458 | J37: 10921 | K37: 8942 | L37: 7754 | M37: 6014 | O37: TRUE | P37: TRUE | Q37: TRUE | R37: TRUE | S37: TRUE
A38: 50 | C38: 13955 | D38: 12232 | E38: 9990 | F38: 8662 | G38: 6719 | I38: 13955 | J38: 12232 | K38: 9990 | L38: 8662 | M38: 6719 | O38: TRUE | P38: TRUE | Q38: TRUE | R38: TRUE | S38: TRUE
A39: 51 | C39: 13955 | D39: 12232 | E39: 9990 | F39: 8662 | G39: 6719 | I39: 13955 | J39: 12232 | K39: 9990 | L39: 8662 | M39: 6719 | O39: TRUE | P39: TRUE | Q39: TRUE | R39: TRUE | S39: TRUE
A40: 52 | C40: 13955 | D40: 12232 | E40: 9990 | F40: 8662 | G40: 6719 | I40: 13955 | J40: 12232 | K40: 9990 | L40: 8662 | M40: 6719 | O40: TRUE | P40: TRUE | Q40: TRUE | R40: TRUE | S40: TRUE
A41: 53 | C41: 13955 | D41: 12232 | E41: 9990 | F41: 8662 | G41: 6719 | I41: 13955 | J41: 12232 | K41: 9990 | L41: 8662 | M41: 6719 | O41: TRUE | P41: TRUE | Q41: TRUE | R41: TRUE | S41: TRUE
A42: 54 | C42: 13955 | D42: 12232 | E42: 9990 | F42: 8662 | G42: 6719 | I42: 13955 | J42: 12232 | K42: 9990 | L42: 8662 | M42: 6719 | O42: TRUE | P42: TRUE | Q42: TRUE | R42: TRUE | S42: TRUE
A43: 55 | C43: 15602 | D43: 13676 | E43: 11154 | F43: 9672 | G43: 7502 | I43: 15602 | J43: 13676 | K43: 11154 | L43: 9672 | M43: 7502 | O43: TRUE | P43: TRUE | Q43: TRUE | R43: TRUE | S43: TRUE
A44: 56 | C44: 15602 | D44: 13676 | E44: 11154 | F44: 9672 | G44: 7502 | I44: 15602 | J44: 13676 | K44: 11154 | L44: 9672 | M44: 7502 | O44: TRUE | P44: TRUE | Q44: TRUE | R44: TRUE | S44: TRUE
A45: 57 | C45: 15602 | D45: 13676 | E45: 11154 | F45: 9672 | G45: 7502 | I45: 15602 | J45: 13676 | K45: 11154 | L45: 9672 | M45: 7502 | O45: TRUE | P45: TRUE | Q45: TRUE | R45: TRUE | S45: TRUE
A46: 58 | C46: 15602 | D46: 13676 | E46: 11154 | F46: 9672 | G46: 7502 | I46: 15602 | J46: 13676 | K46: 11154 | L46: 9672 | M46: 7502 | O46: TRUE | P46: TRUE | Q46: TRUE | R46: TRUE | S46: TRUE
A47: 59 | C47: 15602 | D47: 13676 | E47: 11154 | F47: 9672 | G47: 7502 | I47: 15602 | J47: 13676 | K47: 11154 | L47: 9672 | M47: 7502 | O47: TRUE | P47: TRUE | Q47: TRUE | R47: TRUE | S47: TRUE
A48: 60 | C48: 16699 | D48: 14636 | E48: 11928 | F48: 10345 | G48: 8023 | I48: 16699 | J48: 14636 | K48: 11928 | L48: 10345 | M48: 8023 | O48: TRUE | P48: TRUE | Q48: TRUE | R48: TRUE | S48: TRUE
A49: 61 | C49: 18609 | D49: 16311 | E49: 13285 | F49: 11520 | G49: 8935 | I49: 18609 | J49: 16311 | K49: 13285 | L49: 11520 | M49: 8935 | O49: TRUE | P49: TRUE | Q49: TRUE | R49: TRUE | S49: TRUE
A50: 62 | C50: 20675 | D50: 18123 | E50: 14756 | F50: 12795 | G50: 9923 | I50: 20675 | J50: 18123 | K50: 14756 | L50: 12795 | M50: 9923 | O50: TRUE | P50: TRUE | Q50: TRUE | R50: TRUE | S50: TRUE
A51: 63 | C51: 22898 | D51: 20071 | E51: 16342 | F51: 14170 | G51: 10991 | I51: 22898 | J51: 20071 | K51: 16342 | L51: 14170 | M51: 10991 | O51: TRUE | P51: TRUE | Q51: TRUE | R51: TRUE | S51: TRUE
A52: 64 | C52: 25278 | D52: 22155 | E52: 18042 | F52: 15645 | G52: 12134 | I52: 25278 | J52: 22155 | K52: 18042 | L52: 15645 | M52: 12134 | O52: TRUE | P52: TRUE | Q52: TRUE | R52: TRUE | S52: TRUE
A53: 65 | C53: 27811 | D53: 24376 | E53: 19858 | F53: 17219 | G53: 13355 | I53: 27811 | J53: 24376 | K53: 19858 | L53: 17219 | M53: 13355 | O53: TRUE | P53: TRUE | Q53: TRUE | R53: TRUE | S53: TRUE
A54: 66 | C54: 30501 | D54: 26734 | E54: 21791 | F54: 18895 | G54: 14653 | I54: 30501 | J54: 26734 | K54: 21791 | L54: 18895 | M54: 14653 | O54: TRUE | P54: TRUE | Q54: TRUE | R54: TRUE | S54: TRUE
A55: 67 | C55: 33348 | D55: 29229 | E55: 23837 | F55: 20669 | G55: 16030 | I55: 33348 | J55: 29229 | K55: 23837 | L55: 20669 | M55: 16030 | O55: TRUE | P55: TRUE | Q55: TRUE | R55: TRUE | S55: TRUE
A56: 68 | C56: 36349 | D56: 31860 | E56: 25997 | F56: 22542 | G56: 17482 | I56: 36349 | J56: 31860 | K56: 25997 | L56: 22542 | M56: 17482 | O56: TRUE | P56: TRUE | Q56: TRUE | R56: TRUE | S56: TRUE
A57: 69 | C57: 39508 | D57: 34629 | E57: 28273 | F57: 24517 | G57: 19013 | I57: 39508 | J57: 34629 | K57: 28273 | L57: 24517 | M57: 19013 | O57: TRUE | P57: TRUE | Q57: TRUE | R57: TRUE | S57: TRUE
A58: 70 | C58: 42820 | D58: 37532 | E58: 30663 | F58: 26588 | G58: 20621 | I58: 42820 | J58: 37532 | K58: 30663 | L58: 26588 | M58: 20621 | O58: TRUE | P58: TRUE | Q58: TRUE | R58: TRUE | S58: TRUE
A59: 71 | C59: 46292 | D59: 40575 | E59: 33169 | F59: 28762 | G59: 22305 | I59: 46292 | J59: 40575 | K59: 33169 | L59: 28762 | M59: 22305 | O59: TRUE | P59: TRUE | Q59: TRUE | R59: TRUE | S59: TRUE
A60: 72 | C60: 49915 | D60: 43752 | E60: 35792 | F60: 31035 | G60: 24069 | I60: 49915 | J60: 43752 | K60: 35792 | L60: 31035 | M60: 24069 | O60: TRUE | P60: TRUE | Q60: TRUE | R60: TRUE | S60: TRUE
A61: 73 | C61: 53698 | D61: 47068 | E61: 38525 | F61: 33405 | G61: 25907 | I61: 53698 | J61: 47068 | K61: 38525 | L61: 33405 | M61: 25907 | O61: TRUE | P61: TRUE | Q61: TRUE | R61: TRUE | S61: TRUE
A62: 74 | C62: 57636 | D62: 50520 | E62: 41376 | F62: 35877 | G62: 27824 | I62: 57636 | J62: 50520 | K62: 41376 | L62: 35877 | M62: 27824 | O62: TRUE | P62: TRUE | Q62: TRUE | R62: TRUE | S62: TRUE
A63: 75 | C63: 61729 | D63: 54107 | E63: 44342 | F63: 38449 | G63: 29819 | I63: 61729 | J63: 54107 | K63: 44342 | L63: 38449 | M63: 29819 | O63: TRUE | P63: TRUE | Q63: TRUE | R63: TRUE | S63: TRUE
A64: 76 | C64: 61729 | D64: 54107 | E64: 44342 | F64: 38449 | G64: 29819 | I64: 61729 | J64: 54107 | K64: 44342 | L64: 38449 | M64: 29819 | O64: TRUE | P64: TRUE | Q64: TRUE | R64: TRUE | S64: TRUE
A65: 77 | C65: 61729 | D65: 54107 | E65: 44342 | F65: 38449 | G65: 29819 | I65: 61729 | J65: 54107 | K65: 44342 | L65: 38449 | M65: 29819 | O65: TRUE | P65: TRUE | Q65: TRUE | R65: TRUE | S65: TRUE
A66: 78 | C66: 61729 | D66: 54107 | E66: 44342 | F66: 38449 | G66: 29819 | I66: 61729 | J66: 54107 | K66: 44342 | L66: 38449 | M66: 29819 | O66: TRUE | P66: TRUE | Q66: TRUE | R66: TRUE | S66: TRUE
A67: 79 | C67: 61729 | D67: 54107 | E67: 44342 | F67: 38449 | G67: 29819 | I67: 61729 | J67: 54107 | K67: 44342 | L67: 38449 | M67: 29819 | O67: TRUE | P67: TRUE | Q67: TRUE | R67: TRUE | S67: TRUE
A68: 80 | C68: 61729 | D68: 54107 | E68: 44342 | F68: 38449 | G68: 29819 | I68: 61729 | J68: 54107 | K68: 44342 | L68: 38449 | M68: 29819 | O68: TRUE | P68: TRUE | Q68: TRUE | R68: TRUE | S68: TRUE
A69: 81 | C69: 61729 | D69: 54107 | E69: 44342 | F69: 38449 | G69: 29819 | I69: 61729 | J69: 54107 | K69: 44342 | L69: 38449 | M69: 29819 | O69: TRUE | P69: TRUE | Q69: TRUE | R69: TRUE | S69: TRUE
A70: 82 | C70: 61729 | D70: 54107 | E70: 44342 | F70: 38449 | G70: 29819 | I70: 61729 | J70: 54107 | K70: 44342 | L70: 38449 | M70: 29819 | O70: TRUE | P70: TRUE | Q70: TRUE | R70: TRUE | S70: TRUE
A71: 83 | C71: 61729 | D71: 54107 | E71: 44342 | F71: 38449 | G71: 29819 | I71: 61729 | J71: 54107 | K71: 44342 | L71: 38449 | M71: 29819 | O71: TRUE | P71: TRUE | Q71: TRUE | R71: TRUE | S71: TRUE
A72: 84 | B72: o más | C72: 61729 | D72: 54107 | E72: 44342 | F72: 38449 | G72: 29819 | I72: 61729 | J72: 54107 | K72: 44342 | L72: 38449 | M72: 29819 | O72: TRUE | P72: TRUE | Q72: TRUE | R72: TRUE | S72: TRUE
A73: 1 | B73: Hijo | C73: 3163 | D73: 2773 | E73: 2349 | F73: 2038 | G73: 1581 | I73: 3163 | J73: 2773 | K73: 2349 | L73: 2038 | M73: 1581 | O73: TRUE | P73: TRUE | Q73: TRUE | R73: TRUE | S73: TRUE
A74: 2 | B74: Hijos | C74: 5379 | D74: 4715 | E74: 3993 | F74: 3462 | G74: 2686 | I74: 5379 | J74: 4715 | K74: 3993 | L74: 3462 | M74: 2686 | O74: TRUE | P74: TRUE | Q74: TRUE | R74: TRUE | S74: TRUE
A75: 3 | B75: Hijos o más | C75: 7591 | D75: 6655 | E75: 5637 | F75: 4888 | G75: 3790 | I75: 7591 | J75: 6655 | K75: 5637 | L75: 4888 | M75: 3790 | O75: TRUE | P75: TRUE | Q75: TRUE | R75: TRUE | S75: TRUE
A77: BUPA GLOBAL ELITE - MENSUALES
A78: EDAD
C79: 250 | D79: 2000 | E79: 3500 | F79: 5000 | G79: 10000
A80: 18 | C80: =C6*$K$2 -> 698.88 | D80: 612.36 | E80: 515.1066667 | F80: 446.6933333 | G80: 346.4533333
A81: 19 | C81: 698.88 | D81: 612.36 | E81: 515.1066667 | F81: 446.6933333 | G81: 346.4533333
A82: 20 | C82: 698.88 | D82: 612.36 | E82: 515.1066667 | F82: 446.6933333 | G82: 346.4533333
A83: 21 | C83: 698.88 | D83: 612.36 | E83: 515.1066667 | F83: 446.6933333 | G83: 346.4533333
A84: 22 | C84: 698.88 | D84: 612.36 | E84: 515.1066667 | F84: 446.6933333 | G84: 346.4533333
A85: 23 | C85: 698.88 | D85: 612.36 | E85: 515.1066667 | F85: 446.6933333 | G85: 346.4533333
A86: 24 | C86: 698.88 | D86: 612.36 | E86: 515.1066667 | F86: 446.6933333 | G86: 346.4533333
A87: 25 | C87: 746.8533333 | D87: 654.64 | E87: 547.3066667 | F87: 474.6 | G87: 368.1066667
A88: 26 | C88: 746.8533333 | D88: 654.64 | E88: 547.3066667 | F88: 474.6 | G88: 368.1066667
A89: 27 | C89: 746.8533333 | D89: 654.64 | E89: 547.3066667 | F89: 474.6 | G89: 368.1066667
A90: 28 | C90: =C16*$K$2 -> 746.8533333 | D90: 654.64 | E90: 547.3066667 | F90: 474.6 | G90: 368.1066667
A91: 29 | C91: 746.8533333 | D91: 654.64 | E91: 547.3066667 | F91: 474.6 | G91: 368.1066667
A92: 30 | C92: 830.76 | D92: 728.1866667 | E92: 604.0533333 | F92: 523.6933333 | G92: 406.28
A93: 31 | C93: 830.76 | D93: 728.1866667 | E93: 604.0533333 | F93: 523.6933333 | G93: 406.28
A94: 32 | C94: 830.76 | D94: 728.1866667 | E94: 604.0533333 | F94: 523.6933333 | G94: 406.28
A95: 33 | C95: 830.76 | D95: 728.1866667 | E95: 604.0533333 | F95: 523.6933333 | G95: 406.28
A96: 34 | C96: 830.76 | D96: 728.1866667 | E96: 604.0533333 | F96: 523.6933333 | G96: 406.28
A97: 35 | C97: 927.4533333 | D97: 812.9333333 | E97: 670.6 | F97: 581.3733333 | G97: 450.8933333
A98: 36 | C98: 927.4533333 | D98: 812.9333333 | E98: 670.6 | F98: 581.3733333 | G98: 450.8933333
A99: 37 | C99: 927.4533333 | D99: 812.9333333 | E99: 670.6 | F99: 581.3733333 | G99: 450.8933333
A100: 38 | C100: =C26*$K$2 -> 927.4533333 | D100: 812.9333333 | E100: 670.6 | F100: 581.3733333 | G100: 450.8933333
A101: 39 | C101: 927.4533333 | D101: 812.9333333 | E101: 670.6 | F101: 581.3733333 | G101: 450.8933333
A102: 40 | C102: 1039.173333 | D102: 910.6533333 | E102: 747.88 | F102: 648.48 | G102: 502.9733333
A103: 41 | C103: 1039.173333 | D103: 910.6533333 | E103: 747.88 | F103: 648.48 | G103: 502.9733333
A104: 42 | C104: 1039.173333 | D104: 910.6533333 | E104: 747.88 | F104: 648.48 | G104: 502.9733333
A105: 43 | C105: 1039.173333 | D105: 910.6533333 | E105: 747.88 | F105: 648.48 | G105: 502.9733333
A106: 44 | C106: 1039.173333 | D106: 910.6533333 | E106: 747.88 | F106: 648.48 | G106: 502.9733333
A107: 45 | C107: 1162.746667 | D107: 1019.293333 | E107: 834.5866667 | F107: 723.7066667 | G107: 561.3066667
A108: 46 | C108: 1162.746667 | D108: 1019.293333 | E108: 834.5866667 | F108: 723.7066667 | G108: 561.3066667
A109: 47 | C109: 1162.746667 | D109: 1019.293333 | E109: 834.5866667 | F109: 723.7066667 | G109: 561.3066667
A110: 48 | C110: =C36*$K$2 -> 1162.746667 | D110: 1019.293333 | E110: 834.5866667 | F110: 723.7066667 | G110: 561.3066667
A111: 49 | C111: 1162.746667 | D111: 1019.293333 | E111: 834.5866667 | F111: 723.7066667 | G111: 561.3066667
A112: 50 | C112: 1302.466667 | D112: 1141.653333 | E112: 932.4 | F112: 808.4533333 | G112: 627.1066667
A113: 51 | C113: 1302.466667 | D113: 1141.653333 | E113: 932.4 | F113: 808.4533333 | G113: 627.1066667
A114: 52 | C114: 1302.466667 | D114: 1141.653333 | E114: 932.4 | F114: 808.4533333 | G114: 627.1066667
A115: 53 | C115: 1302.466667 | D115: 1141.653333 | E115: 932.4 | F115: 808.4533333 | G115: 627.1066667
A116: 54 | C116: 1302.466667 | D116: 1141.653333 | E116: 932.4 | F116: 808.4533333 | G116: 627.1066667
A117: 55 | C117: 1456.186667 | D117: 1276.426667 | E117: 1041.04 | F117: 902.72 | G117: 700.1866667
A118: 56 | C118: 1456.186667 | D118: 1276.426667 | E118: 1041.04 | F118: 902.72 | G118: 700.1866667
A119: 57 | C119: 1456.186667 | D119: 1276.426667 | E119: 1041.04 | F119: 902.72 | G119: 700.1866667
A120: 58 | C120: =C46*$K$2 -> 1456.186667 | D120: 1276.426667 | E120: 1041.04 | F120: 902.72 | G120: 700.1866667
A121: 59 | C121: 1456.186667 | D121: 1276.426667 | E121: 1041.04 | F121: 902.72 | G121: 700.1866667
A122: 60 | C122: 1558.573333 | D122: 1366.026667 | E122: 1113.28 | F122: 965.5333333 | G122: 748.8133333
A123: 61 | C123: 1736.84 | D123: 1522.36 | E123: 1239.933333 | F123: 1075.2 | G123: 833.9333333
A124: 62 | C124: 1929.666667 | D124: 1691.48 | E124: 1377.226667 | F124: 1194.2 | G124: 926.1466667
A125: 63 | C125: 2137.146667 | D125: 1873.293333 | E125: 1525.253333 | F125: 1322.533333 | G125: 1025.826667
A126: 64 | C126: 2359.28 | D126: 2067.8 | E126: 1683.92 | F126: 1460.2 | G126: 1132.506667
A127: 65 | C127: 2595.693333 | D127: 2275.093333 | E127: 1853.413333 | F127: 1607.106667 | G127: 1246.466667
A128: 66 | C128: 2846.76 | D128: 2495.173333 | E128: 2033.826667 | F128: 1763.533333 | G128: 1367.613333
A129: 67 | C129: 3112.48 | D129: 2728.04 | E129: 2224.786667 | F129: 1929.106667 | G129: 1496.133333
A130: 68 | C130: =C56*$K$2 -> 3392.573333 | D130: 2973.6 | E130: 2426.386667 | F130: 2103.92 | G130: 1631.653333
A131: 69 | C131: 3687.413333 | D131: 3232.04 | E131: 2638.813333 | F131: 2288.253333 | G131: 1774.546667
A132: 70 | C132: 3996.533333 | D132: 3502.986667 | E132: 2861.88 | F132: 2481.546667 | G132: 1924.626667
A133: 71 | C133: 4320.586667 | D133: 3787 | E133: 3095.773333 | F133: 2684.453333 | G133: 2081.8
A134: 72 | C134: 4658.733333 | D134: 4083.52 | E134: 3340.586667 | F134: 2896.6 | G134: 2246.44
A135: 73 | C135: 5011.813333 | D135: 4393.013333 | E135: 3595.666667 | F135: 3117.8 | G135: 2417.986667
A136: 74 | C136: 5379.36 | D136: 4715.2 | E136: 3861.76 | F136: 3348.52 | G136: 2596.906667
A137: 75 | C137: 5761.373333 | D137: 5049.986667 | E137: 4138.586667 | F137: 3588.573333 | G137: 2783.106667
A138: 76 | C138: 5761.373333 | D138: 5049.986667 | E138: 4138.586667 | F138: 3588.573333 | G138: 2783.106667
A139: 77 | C139: 5761.373333 | D139: 5049.986667 | E139: 4138.586667 | F139: 3588.573333 | G139: 2783.106667
A140: 78 | C140: =C66*$K$2 -> 5761.373333 | D140: 5049.986667 | E140: 4138.586667 | F140: 3588.573333 | G140: 2783.106667
A141: 79 | C141: 5761.373333 | D141: 5049.986667 | E141: 4138.586667 | F141: 3588.573333 | G141: 2783.106667
A142: 80 | C142: 5761.373333 | D142: 5049.986667 | E142: 4138.586667 | F142: 3588.573333 | G142: 2783.106667
A143: 81 | C143: 5761.373333 | D143: 5049.986667 | E143: 4138.586667 | F143: 3588.573333 | G143: 2783.106667
A144: 82 | C144: 5761.373333 | D144: 5049.986667 | E144: 4138.586667 | F144: 3588.573333 | G144: 2783.106667
A145: 83 | C145: 5761.373333 | D145: 5049.986667 | E145: 4138.586667 | F145: 3588.573333 | G145: 2783.106667
A146: 84 | B146: o más | C146: 5761.373333 | D146: 5049.986667 | E146: 4138.586667 | F146: 3588.573333 | G146: 2783.106667
A147: 1 | B147: Hijo | C147: 295.2133333 | D147: 258.8133333 | E147: 219.24 | F147: 190.2133333 | G147: 147.56
A148: 2 | B148: Hijos | C148: 502.04 | D148: 440.0666667 | E148: 372.68 | F148: 323.12 | G148: 250.6933333
A149: 3 | B149: Hijos o más | C149: 708.4933333 | D149: 621.1333333 | E149: 526.12 | F149: 456.2133333 | G149: 353.7333333
A151: BUPA GLOBAL PREMIER
A152: TARIFAS ANUALES
A153: EDAD
C154: 250 | D154: 2000 | E154: 5000 | F154: 10000 | I154: Tarifas originales | O154: 250 | P154: 2000 | Q154: 5000 | R154: 10000
A155: 18 | C155: =I155*$K$5 -> 3916 | D155: =J155*$K$5 -> 3552.8 | E155: =K155*$K$5 -> 2696 | F155: =L155*$K$5 -> 2004.8 | I155: 4895 | J155: 4441 | K155: 3370 | L155: 2506 | O155: TRUE | P155: TRUE | Q155: TRUE | R155: TRUE
A156: 19 | C156: 3916 | D156: 3552.8 | E156: 2696 | F156: 2004.8 | I156: 4895 | J156: 4441 | K156: 3370 | L156: 2506 | O156: TRUE | P156: TRUE | Q156: TRUE | R156: TRUE
A157: 20 | C157: 3916 | D157: 3552.8 | E157: 2696 | F157: 2004.8 | I157: 4895 | J157: 4441 | K157: 3370 | L157: 2506 | O157: TRUE | P157: TRUE | Q157: TRUE | R157: TRUE
A158: 21 | C158: 3916 | D158: 3552.8 | E158: 2696 | F158: 2004.8 | I158: 4895 | J158: 4441 | K158: 3370 | L158: 2506 | O158: TRUE | P158: TRUE | Q158: TRUE | R158: TRUE
A159: 22 | C159: 3916 | D159: 3552.8 | E159: 2696 | F159: 2004.8 | I159: 4895 | J159: 4441 | K159: 3370 | L159: 2506 | O159: TRUE | P159: TRUE | Q159: TRUE | R159: TRUE
A160: 23 | C160: 3916 | D160: 3552.8 | E160: 2696 | F160: 2004.8 | I160: 4895 | J160: 4441 | K160: 3370 | L160: 2506 | O160: TRUE | P160: TRUE | Q160: TRUE | R160: TRUE
A161: 24 | C161: 3916 | D161: 3552.8 | E161: 2696 | F161: 2004.8 | I161: 4895 | J161: 4441 | K161: 3370 | L161: 2506 | O161: TRUE | P161: TRUE | Q161: TRUE | R161: TRUE
A162: 25 | C162: 4184 | D162: 3796.8 | E162: 2851.2 | F162: 2121.6 | I162: 5230 | J162: 4746 | K162: 3564 | L162: 2652 | O162: TRUE | P162: TRUE | Q162: TRUE | R162: TRUE
A163: 26 | C163: 4184 | D163: 3796.8 | E163: 2851.2 | F163: 2121.6 | I163: 5230 | J163: 4746 | K163: 3564 | L163: 2652 | O163: TRUE | P163: TRUE | Q163: TRUE | R163: TRUE
A164: 27 | C164: 4184 | D164: 3796.8 | E164: 2851.2 | F164: 2121.6 | I164: 5230 | J164: 4746 | K164: 3564 | L164: 2652 | O164: TRUE | P164: TRUE | Q164: TRUE | R164: TRUE
A165: 28 | C165: 4184 | D165: 3796.8 | E165: 2851.2 | F165: 2121.6 | I165: 5230 | J165: 4746 | K165: 3564 | L165: 2652 | O165: TRUE | P165: TRUE | Q165: TRUE | R165: TRUE
A166: 29 | C166: 4184 | D166: 3796.8 | E166: 2851.2 | F166: 2121.6 | I166: 5230 | J166: 4746 | K166: 3564 | L166: 2652 | O166: TRUE | P166: TRUE | Q166: TRUE | R166: TRUE
A167: 30 | C167: 4655.2 | D167: 4223.2 | E167: 3130.4 | F167: 2328.8 | I167: 5819 | J167: 5279 | K167: 3913 | L167: 2911 | O167: TRUE | P167: TRUE | Q167: TRUE | R167: TRUE
A168: 31 | C168: 4655.2 | D168: 4223.2 | E168: 3130.4 | F168: 2328.8 | I168: 5819 | J168: 5279 | K168: 3913 | L168: 2911 | O168: TRUE | P168: TRUE | Q168: TRUE | R168: TRUE
A169: 32 | C169: 4655.2 | D169: 4223.2 | E169: 3130.4 | F169: 2328.8 | I169: 5819 | J169: 5279 | K169: 3913 | L169: 2911 | O169: TRUE | P169: TRUE | Q169: TRUE | R169: TRUE
A170: 33 | C170: 4655.2 | D170: 4223.2 | E170: 3130.4 | F170: 2328.8 | I170: 5819 | J170: 5279 | K170: 3913 | L170: 2911 | O170: TRUE | P170: TRUE | Q170: TRUE | R170: TRUE
A171: 34 | C171: 4655.2 | D171: 4223.2 | E171: 3130.4 | F171: 2328.8 | I171: 5819 | J171: 5279 | K171: 3913 | L171: 2911 | O171: TRUE | P171: TRUE | Q171: TRUE | R171: TRUE
A172: 35 | C172: 5195.2 | D172: 4716 | E172: 3460 | F172: 2572.8 | I172: 6494 | J172: 5895 | K172: 4325 | L172: 3216 | O172: TRUE | P172: TRUE | Q172: TRUE | R172: TRUE
A173: 36 | C173: 5195.2 | D173: 4716 | E173: 3460 | F173: 2572.8 | I173: 6494 | J173: 5895 | K173: 4325 | L173: 3216 | O173: TRUE | P173: TRUE | Q173: TRUE | R173: TRUE
A174: 37 | C174: 5195.2 | D174: 4716 | E174: 3460 | F174: 2572.8 | I174: 6494 | J174: 5895 | K174: 4325 | L174: 3216 | O174: TRUE | P174: TRUE | Q174: TRUE | R174: TRUE
A175: 38 | C175: 5195.2 | D175: 4716 | E175: 3460 | F175: 2572.8 | I175: 6494 | J175: 5895 | K175: 4325 | L175: 3216 | O175: TRUE | P175: TRUE | Q175: TRUE | R175: TRUE
A176: 39 | C176: 5195.2 | D176: 4716 | E176: 3460 | F176: 2572.8 | I176: 6494 | J176: 5895 | K176: 4325 | L176: 3216 | O176: TRUE | P176: TRUE | Q176: TRUE | R176: TRUE
A177: 40 | C177: 5821.6 | D177: 5284 | E177: 3846.4 | F177: 2861.6 | I177: 7277 | J177: 6605 | K177: 4808 | L177: 3577 | O177: TRUE | P177: TRUE | Q177: TRUE | R177: TRUE
A178: 41 | C178: 5821.6 | D178: 5284 | E178: 3846.4 | F178: 2861.6 | I178: 7277 | J178: 6605 | K178: 4808 | L178: 3577 | O178: TRUE | P178: TRUE | Q178: TRUE | R178: TRUE
A179: 42 | C179: 5821.6 | D179: 5284 | E179: 3846.4 | F179: 2861.6 | I179: 7277 | J179: 6605 | K179: 4808 | L179: 3577 | O179: TRUE | P179: TRUE | Q179: TRUE | R179: TRUE
A180: 43 | C180: 5821.6 | D180: 5284 | E180: 3846.4 | F180: 2861.6 | I180: 7277 | J180: 6605 | K180: 4808 | L180: 3577 | O180: TRUE | P180: TRUE | Q180: TRUE | R180: TRUE
A181: 44 | C181: 5821.6 | D181: 5284 | E181: 3846.4 | F181: 2861.6 | I181: 7277 | J181: 6605 | K181: 4808 | L181: 3577 | O181: TRUE | P181: TRUE | Q181: TRUE | R181: TRUE
A182: 45 | C182: 6516 | D182: 5914.4 | E182: 4281.6 | F182: 3184.8 | I182: 8145 | J182: 7393 | K182: 5352 | L182: 3981 | O182: TRUE | P182: TRUE | Q182: TRUE | R182: TRUE
A183: 46 | C183: 6516 | D183: 5914.4 | E183: 4281.6 | F183: 3184.8 | I183: 8145 | J183: 7393 | K183: 5352 | L183: 3981 | O183: TRUE | P183: TRUE | Q183: TRUE | R183: TRUE
A184: 47 | C184: 6516 | D184: 5914.4 | E184: 4281.6 | F184: 3184.8 | I184: 8145 | J184: 7393 | K184: 5352 | L184: 3981 | O184: TRUE | P184: TRUE | Q184: TRUE | R184: TRUE
A185: 48 | C185: 6516 | D185: 5914.4 | E185: 4281.6 | F185: 3184.8 | I185: 8145 | J185: 7393 | K185: 5352 | L185: 3981 | O185: TRUE | P185: TRUE | Q185: TRUE | R185: TRUE
A186: 49 | C186: 6516 | D186: 5914.4 | E186: 4281.6 | F186: 3184.8 | I186: 8145 | J186: 7393 | K186: 5352 | L186: 3981 | O186: TRUE | P186: TRUE | Q186: TRUE | R186: TRUE
A187: 50 | C187: =I187*$K$5 -> 7297.6 | D187: =J187*$K$5 -> 6622.4 | E187: =K187*$K$5 -> 4776 | F187: =L187*$K$5 -> 3552.8 | I187: 9122 | J187: 8278 | K187: 5970 | L187: 4441 | O187: TRUE | P187: TRUE | Q187: TRUE | R187: TRUE
A188: 51 | C188: 7297.6 | D188: 6622.4 | E188: 4776 | F188: 3552.8 | I188: 9122 | J188: 8278 | K188: 5970 | L188: 4441 | O188: TRUE | P188: TRUE | Q188: TRUE | R188: TRUE
A189: 52 | C189: 7297.6 | D189: 6622.4 | E189: 4776 | F189: 3552.8 | I189: 9122 | J189: 8278 | K189: 5970 | L189: 4441 | O189: TRUE | P189: TRUE | Q189: TRUE | R189: TRUE
A190: 53 | C190: 7297.6 | D190: 6622.4 | E190: 4776 | F190: 3552.8 | I190: 9122 | J190: 8278 | K190: 5970 | L190: 4441 | O190: TRUE | P190: TRUE | Q190: TRUE | R190: TRUE
A191: 54 | C191: 7297.6 | D191: 6622.4 | E191: 4776 | F191: 3552.8 | I191: 9122 | J191: 8278 | K191: 5970 | L191: 4441 | O191: TRUE | P191: TRUE | Q191: TRUE | R191: TRUE
A192: 55 | C192: 8159.2 | D192: 7404.8 | E192: 5325.6 | F192: 3962.4 | I192: 10199 | J192: 9256 | K192: 6657 | L192: 4953 | O192: TRUE | P192: TRUE | Q192: TRUE | R192: TRUE
A193: 56 | C193: 8159.2 | D193: 7404.8 | E193: 5325.6 | F193: 3962.4 | I193: 10199 | J193: 9256 | K193: 6657 | L193: 4953 | O193: TRUE | P193: TRUE | Q193: TRUE | R193: TRUE
A194: 57 | C194: 8159.2 | D194: 7404.8 | E194: 5325.6 | F194: 3962.4 | I194: 10199 | J194: 9256 | K194: 6657 | L194: 4953 | O194: TRUE | P194: TRUE | Q194: TRUE | R194: TRUE
A195: 58 | C195: 8159.2 | D195: 7404.8 | E195: 5325.6 | F195: 3962.4 | I195: 10199 | J195: 9256 | K195: 6657 | L195: 4953 | O195: TRUE | P195: TRUE | Q195: TRUE | R195: TRUE
A196: 59 | C196: 8159.2 | D196: 7404.8 | E196: 5325.6 | F196: 3962.4 | I196: 10199 | J196: 9256 | K196: 6657 | L196: 4953 | O196: TRUE | P196: TRUE | Q196: TRUE | R196: TRUE
A197: 60 | C197: 8732.8 | D197: 7924 | E197: 5693.6 | F197: 4235.2 | I197: 10916 | J197: 9905 | K197: 7117 | L197: 5294 | O197: TRUE | P197: TRUE | Q197: TRUE | R197: TRUE
A198: 61 | C198: 9732 | D198: 8831.2 | E198: 6336 | F198: 4713.6 | I198: 12165 | J198: 11039 | K198: 7920 | L198: 5892 | O198: TRUE | P198: TRUE | Q198: TRUE | R198: TRUE
A199: 62 | C199: 10809.6 | D199: 9812 | E199: 7036 | F199: 5234.4 | I199: 13512 | J199: 12265 | K199: 8795 | L199: 6543 | O199: TRUE | P199: TRUE | Q199: TRUE | R199: TRUE
A200: 63 | C200: 11972.8 | D200: 10865.6 | E200: 7793.6 | F200: 5796.8 | I200: 14966 | J200: 13582 | K200: 9742 | L200: 7246 | O200: TRUE | P200: TRUE | Q200: TRUE | R200: TRUE
A201: 64 | C201: 13216.8 | D201: 11993.6 | E201: 8606.4 | F201: 6402.4 | I201: 16521 | J201: 14992 | K201: 10758 | L201: 8003 | O201: TRUE | P201: TRUE | Q201: TRUE | R201: TRUE
A202: 65 | C202: 14541.6 | D202: 13195.2 | E202: 9474.4 | F202: 7048 | I202: 18177 | J202: 16494 | K202: 11843 | L202: 8810 | O202: TRUE | P202: TRUE | Q202: TRUE | R202: TRUE
... 1276 more rows
